Workbook

Sheet 2DA DE OCTUBRE DEFINITIVA
M1: =SUBTOTAL(9,M9:M330) -> 0 | N1: 47069.1299 | O1: 2022441.56 | P1: 80896.8 | Q1: 141569.74 | R1: 0 | S1: 222466.54 | T1: 2022441.56 | U1: 2244908.1 | W1: =SUBTOTAL(9,W9:W330) -> 0 | X1: =SUBTOTAL(9,X9:X330) -> 0 | Y1: =SUBTOTAL(9,Y9:Y308) ->  | Z1: =SUBTOTAL(9,Z9:Z330) -> 140736.09 | AA1: =SUBTOTAL(9,AA9:AA330) -> 14742.01 | AB1: =SUBTOTAL(9,AB9:AB330) -> 2118914.02 | AD1: =SUBTOTAL(9,AD9:AD308) -> 0
O2: =TRUNC(N2*I2,2) -> 0 | P2: =TRUNC(N2*I2*0.04,2) -> 0 | Q2: =TRUNC(N2*0.07*I2,2) -> 0 | R2: =L2 -> 0 | S2: =TRUNC(Q2+P2+(IF(R2>519,519,R2))+IF(K2=0,0,K2*N2),2) -> 0 | T2: =TRUNC((IF(K2=0,I2*N2,(I2-K2)*N2))+(IF(R2<519,0,R2-519)),2)+M2 -> 0 | U2: =S2+T2 -> 0 | V2: =P2 -> 0 | Y2: =IF(N2>0.01,(T2-VLOOKUP(T2,quincenal,1))*VLOOKUP(T2,quincenal,3)+VLOOKUP(T2,quincenal,2)-VLOOKUP(T2,subquincenal,2),0) -> 0 | Z2: =TRUNC(IF(Y2>0.01,Y2,0),2) -> 0 | AA2: =TRUNC(IF(Y2<0.01,-Y2,0),2) -> 0 | AB2: =U2-W2-X2-Z2+AA2-P2 -> 0 | AC2: =#REF! -> 
A3: H. AYUNTAMIENTO DE ETZATLAN, JALISCO
B4: ADMINISTRACION 2012-2015
B5: NOMINA CORRESPONDIENTE A LA SEGUNDA QUINCENA DE OCTUBRE DE 2015
D6: Etzatlán, Jalisco a 30 de Octubre de 2015.
B7: CAPITULO | C7: PARTIDA | D7: NOMBRE | E7: RFC | F7: CURP | G7: FECHA DE INGRESO | H7: CARGO | I7: DIAS LABORADOS | J7: PAGO CON | K7: DIAS CON INCAPACIDAD | L7: TIEMPO EXTRA | M7: OTROS INGRESOS | N7: SUELDO POR DIA PROPUESTO | O7: SUELDO BASE | P7: FONDO DE AHORRO | Q7: APOYO EDUCACIONAL | R7: TIEMPO EXTRA | S7: SUB TOTAL EXENTO | T7: SUB TOTAL GRAVADO | U7: SUB TOTAL A PAGAR | V7: FONDO DE AHORRO | W7: PRESTAMOS | X7: OTRAS DEDUCCIONES | Y7: CALCULO | Z7: I.S.R. | AA7: SUBSIDIO AL EMPLEO | AB7: TOTAL A PAGAR | AC7: nomina | AD7: FIRMA DE RECIBIDO
D8: SALA DE REGIDORES
A9: 1 | B9: 1 | C9: 1 | D9: GOMEZ ALVARADO MA MAGDALENA | E9: FEGC520708 | F9: FEGC520708HJCRMR08 | G9: 2012-10-01 | H9: REGIDOR | I9: 15 | J9: TARJETA | L9: 0 | M9: 0 | N9: =8023/15 -> 534.8666667 | O9: =TRUNC(N9*I9,2) -> 8023 | P9: =TRUNC(N9*I9*0.04,2) -> 320.92 | Q9: =TRUNC(N9*0.07*I9,2) -> 561.61 | R9: =L9 -> 0 | S9: =TRUNC(Q9+P9+(IF(R9>519,519,R9))+IF(K9=0,0,K9*N9),2) -> 882.53 | T9: =TRUNC((IF(K9=0,I9*N9,(I9-K9)*N9))+(IF(R9<519,0,R9-519)),2)+M9 -> 8023 | U9: =S9+T9 -> 8905.53 | X9: 0 | Y9: =IF(N9>0.01,(T9-VLOOKUP(T9,quincenal,1))*VLOOKUP(T9,quincenal,3)+VLOOKUP(T9,quincenal,2)-VLOOKUP(T9,subquincenal,2),0) -> 1166.523624 | Z9: =TRUNC(IF(Y9>0.01,Y9,0),2) -> 1166.52 | AA9: =TRUNC(IF(Y9<0.01,-Y9,0),2) -> 0 | AB9: =U9-W9-X9-Z9+AA9 -> 7739.01 | AC9: =#REF! ->  | AE9: 1
D10: COVARRUBIAS VALENCIA JOSE | H10: REGIDOR | I10: 15 | J10: TARJETA | L10: 0 | M10: 0 | N10: =8023/15 -> 534.8666667 | O10: =TRUNC(N10*I10,2) -> 8023 | P10: =TRUNC(N10*I10*0.04,2) -> 320.92 | Q10: =TRUNC(N10*0.07*I10,2) -> 561.61 | R10: =L10 -> 0 | S10: =TRUNC(Q10+P10+(IF(R10>519,519,R10))+IF(K10=0,0,K10*N10),2) -> 882.53 | T10: =TRUNC((IF(K10=0,I10*N10,(I10-K10)*N10))+(IF(R10<519,0,R10-519)),2)+M10 -> 8023 | U10: =S10+T10 -> 8905.53 | X10: 0 | Y10: =IF(N10>0.01,(T10-VLOOKUP(T10,quincenal,1))*VLOOKUP(T10,quincenal,3)+VLOOKUP(T10,quincenal,2)-VLOOKUP(T10,subquincenal,2),0) -> 1166.523624 | Z10: =TRUNC(IF(Y10>0.01,Y10,0),2) -> 1166.52 | AA10: =TRUNC(IF(Y10<0.01,-Y10,0),2) -> 0 | AB10: =U10-W10-X10-Z10+AA10 -> 7739.01 | AE10: 2
A11: 3 | B11: 1 | C11: 1 | D11: BARAJAS DE LA TORRE ABIGAIL | G11: 2012-10-01 | H11: REGIDOR | I11: 15 | J11: TARJETA | L11: 0 | M11: 0 | N11: 534.8666667 | O11: =TRUNC(N11*I11,2) -> 8023 | P11: =TRUNC(N11*I11*0.04,2) -> 320.92 | Q11: =TRUNC(N11*0.07*I11,2) -> 561.61 | R11: =L11 -> 0 | S11: =TRUNC(Q11+P11+(IF(R11>519,519,R11))+IF(K11=0,0,K11*N11),2) -> 882.53 | T11: =TRUNC((IF(K11=0,I11*N11,(I11-K11)*N11))+(IF(R11<519,0,R11-519)),2)+M11 -> 8023 | U11: =S11+T11 -> 8905.53 | X11: 0 | Y11: =IF(N11>0.01,(T11-VLOOKUP(T11,quincenal,1))*VLOOKUP(T11,quincenal,3)+VLOOKUP(T11,quincenal,2)-VLOOKUP(T11,subquincenal,2),0) -> 1166.523624 | Z11: 1166.52 | AA11: =TRUNC(IF(Y11<0.01,-Y11,0),2) -> 0 | AB11: =U11-W11-X11-Z11+AA11 -> 7739.01 | AC11: =#REF! ->  | AE11: 3
A12: 4 | B12: 1 | C12: 1 | D12: MELCHOR NAVARRO OBED | G12: 2012-10-01 | H12: REGIDOR | I12: 15 | J12: TARJETA | L12: 0 | M12: 0 | N12: 534.8666667 | O12: 8023 | P12: 320.92 | Q12: 561.61 | R12: 0 | S12: 882.53 | T12: 8023 | U12: 8905.53 | X12: 0 | Y12: 1166.523624 | Z12: 1166.52 | AA12: 0 | AB12: 7739.01 | AC12: =#REF! ->  | AE12: 4
A13: 5 | B13: 1 | C13: 1 | D13: GOMEZ RICO LUZ ELENA | G13: 2012-10-01 | H13: REGIDOR | I13: 15 | J13: TARJETA | L13: 0 | M13: 0 | N13: 534.8666667 | O13: 8023 | P13: 320.92 | Q13: 561.61 | R13: 0 | S13: 882.53 | T13: 8023 | U13: 8905.53 | X13: 0 | Y13: 1166.523624 | Z13: 1166.52 | AA13: 0 | AB13: 7739.01 | AC13: =#REF! ->  | AE13: 5
A14: 6 | B14: 1 | C14: 1 | D14: GUTIERREZ GARCIA GERARDO | G14: 2012-10-01 | H14: REGIDOR | I14: 15 | J14: TARJETA | L14: 0 | M14: 0 | N14: 534.8666667 | O14: 8023 | P14: 320.92 | Q14: 561.61 | R14: 0 | S14: 882.53 | T14: 8023 | U14: 8905.53 | X14: 0 | Y14: 1166.523624 | Z14: 1166.52 | AA14: 0 | AB14: 7739.01 | AC14: =#REF! ->  | AE14: 6
A15: 7 | B15: 1 | C15: 1 | D15: ROBLEDO ORTIZ EDGAR ANTONIO | G15: 2012-10-01 | H15: REGIDOR | I15: 15 | J15: TARJETA | L15: 0 | M15: 0 | N15: 534.8666667 | O15: 8023 | P15: 320.92 | Q15: 561.61 | R15: 0 | S15: 882.53 | T15: 8023 | U15: 8905.53 | Y15: 1166.523624 | Z15: 1166.52 | AA15: 0 | AB15: 7739.01 | AC15: =#REF! ->  | AE15: 7
A16: 8 | B16: 1 | C16: 1 | D16: SIERRA ROMERO DOLORES EDITH | G16: 2012-10-01 | H16: REGIDOR | I16: 15 | J16: TARJETA | L16: 0 | M16: 0 | N16: 534.8666667 | O16: 8023 | P16: 320.92 | Q16: 561.61 | R16: 0 | S16: 882.53 | T16: 8023 | U16: 8905.53 | Y16: 1166.523624 | Z16: 1166.52 | AA16: 0 | AB16: 7739.01 | AC16: =#REF! ->  | AE16: 8
A17: 9 | B17: 1 | C17: 1 | D17: VELEZ FREGOSO LUIS MANUEL | G17: 2012-10-01 | H17: REGIDOR | I17: 15 | J17: TARJETA | L17: 0 | M17: 0 | N17: 534.8666667 | O17: 8023 | P17: 320.92 | Q17: 561.61 | R17: 0 | S17: 882.53 | T17: 8023 | U17: 8905.53 | W17: 0 | Y17: 1166.523624 | Z17: 1166.52 | AA17: 0 | AB17: 7739.01 | AC17: =#REF! ->  | AE17: 9
B18: 1 | C18: 1 | E18: BAGV780611 | F18: BAGV780611MJCRTR04 | H18: SECRETARIA SALA DE REGIDORES | I18: 0 | J18: TARJETA | L18: 0 | M18: 0 | N18: 172.16 | O18: =TRUNC(N18*I18,2) -> 0 | P18: 0 | Q18: 0 | R18: 0 | S18: 0 | T18: 0 | U18: 0 | X18: 0 | Z18: 0 | AA18: 0 | AB18: 0 | AC18: =#REF! ->  | AE18: 2658.44
D19: SALA DE REGIDORES | O19: =SUM(O9:O18) -> 72207 | P19: =SUM(P9:P18) -> 2888.28 | Q19: 5054.49 | R19: 0 | S19: 7942.77 | T19: 72207 | U19: 80149.77 | V19: 0 | W19: 0 | X19: 0 | Y19: 10498.71262 | Z19: 10498.68 | AA19: 0 | AB19: 69651.09 | AD19: 0
D21: PRESIDENCIA MUNICIPAL
D22: RON RAMOS EDUARDO | H22: PRESIDENTE MUNICIPAL | I22: 15 | J22: TARJETA | L22: 0 | M22: 0 | N22: =14227/15 -> 948.4666667 | O22: =TRUNC(N22*I22,2) -> 14227 | P22: =TRUNC(N22*I22*0.04,2) -> 569.08 | Q22: =TRUNC(N22*0.07*I22,2) -> 995.89 | R22: =L22 -> 0 | S22: =TRUNC(Q22+P22+(IF(R22>519,519,R22))+IF(K22=0,0,K22*N22),2) -> 1564.97 | T22: =TRUNC((IF(K22=0,I22*N22,(I22-K22)*N22))+(IF(R22<519,0,R22-519)),2)+M22 -> 14227 | U22: =S22+T22 -> 15791.97 | X22: 0 | Y22: =IF(N22>0.01,(T22-VLOOKUP(T22,quincenal,1))*VLOOKUP(T22,quincenal,3)+VLOOKUP(T22,quincenal,2)-VLOOKUP(T22,subquincenal,2),0) -> 2577.502608 | Z22: =TRUNC(IF(Y22>0.01,Y22,0),2) -> 2577.5 | AA22: =TRUNC(IF(Y22<0.01,-Y22,0),2) -> 0 | AB22: =U22-W22-X22-Z22+AA22 -> 13214.47 | AE22: 10
D23: BAROCIO FIGUEROA ANTONIO | E23: FEPM871023ND1 | F23: FEPM871023MJCRRR07 | H23: SECRETARIO PARTICULAR | I23: 15 | J23: TARJETA | L23: 0 | M23: 0 | N23: 405.5341 | O23: =TRUNC(N23*I23,2) -> 6083.01 | P23: =TRUNC(N23*I23*0.04,2) -> 243.32 | Q23: =TRUNC(N23*0.07*I23,2) -> 425.81 | R23: =L23 -> 0 | S23: =TRUNC(Q23+P23+(IF(R23>519,519,R23))+IF(K23=0,0,K23*N23),2) -> 669.13 | T23: =TRUNC((IF(K23=0,I23*N23,(I23-K23)*N23))+(IF(R23<519,0,R23-519)),2)+M23 -> 6083.01 | U23: =S23+T23 -> 6752.14 | X23: 0 | Y23: =IF(N23>0.01,(T23-VLOOKUP(T23,quincenal,1))*VLOOKUP(T23,quincenal,3)+VLOOKUP(T23,quincenal,2)-VLOOKUP(T23,subquincenal,2),0) -> 752.14176 | Z23: =TRUNC(IF(Y23>0.01,Y23,0),2) -> 752.14 | AA23: =TRUNC(IF(Y23<0.01,-Y23,0),2) -> 0 | AB23: =U23-W23-X23-Z23+AA23 -> 6000 | AE23: 11
D24: BECERRA GONZALEZ MARISOL | E24: FEPM871023ND1 | F24: FEPM871023MJCRRR07 | H24: SECRETARIA | I24: 15 | J24: TARJETA | L24: 0 | M24: 0 | N24: 260.287 | O24: =TRUNC(N24*I24,2) -> 3904.3 | P24: =TRUNC(N24*I24*0.04,2) -> 156.17 | Q24: =TRUNC(N24*0.07*I24,2) -> 273.3 | R24: =L24 -> 0 | S24: =TRUNC(Q24+P24+(IF(R24>519,519,R24))+IF(K24=0,0,K24*N24),2) -> 429.47 | T24: =TRUNC((IF(K24=0,I24*N24,(I24-K24)*N24))+(IF(R24<519,0,R24-519)),2)+M24 -> 3904.3 | U24: =S24+T24 -> 4333.77 | X24: 0 | Y24: =IF(N24>0.01,(T24-VLOOKUP(T24,quincenal,1))*VLOOKUP(T24,quincenal,3)+VLOOKUP(T24,quincenal,2)-VLOOKUP(T24,subquincenal,2),0) -> 333.7764 | Z24: =TRUNC(IF(Y24>0.01,Y24,0),2) -> 333.77 | AA24: =TRUNC(IF(Y24<0.01,-Y24,0),2) -> 0 | AB24: =U24-W24-X24-Z24+AA24 -> 4000 | AC24: =#REF! ->  | AE24: 12
A25: 11 | B25: 1 | C25: 2 | D25: FREGOSO PARRA MARTHA | E25: FEPM871023ND1 | F25: FEPM871023MJCRRR07 | H25: SECRETARIA PARTICULAR | I25: 15 | J25: TARJETA | L25: 0 | M25: 0 | N25: =3349/15 -> 223.2666667 | O25: =TRUNC(N25*I25,2) -> 3349 | P25: =TRUNC(N25*I25*0.04,2) -> 133.96 | Q25: =TRUNC(N25*0.07*I25,2) -> 234.43 | R25: =L25 -> 0 | S25: =TRUNC(Q25+P25+(IF(R25>519,519,R25))+IF(K25=0,0,K25*N25),2) -> 368.39 | T25: =TRUNC((IF(K25=0,I25*N25,(I25-K25)*N25))+(IF(R25<519,0,R25-519)),2)+M25 -> 3349 | U25: =S25+T25 -> 3717.39 | X25: 0 | Y25: =IF(N25>0.01,(T25-VLOOKUP(T25,quincenal,1))*VLOOKUP(T25,quincenal,3)+VLOOKUP(T25,quincenal,2)-VLOOKUP(T25,subquincenal,2),0) -> 135.188112 | Z25: =TRUNC(IF(Y25>0.01,Y25,0),2) -> 135.18 | AA25: =TRUNC(IF(Y25<0.01,-Y25,0),2) -> 0 | AB25: =U25-W25-X25-Z25+AA25 -> 3582.21 | AC25: =[2]PORTADA!$D$10 -> 1 | AE25: 13
D26: PRESIDENCIA MUNICIPAL | O26: =SUM(O22:O25) -> 27563.31 | P26: =SUM(P22:P25) -> 1102.53 | Q26: 1929.43 | R26: 0 | S26: 3031.96 | T26: 27563.31 | U26: 30595.27 | V26: 0 | W26: 0 | X26: 0 | Y26: 3798.60888 | Z26: 3798.59 | AA26: 0 | AB26: 26796.68
D28: SECRETARIA GENERAL Y SINDICATURA
A29: 13 | B29: 1 | C29: 5 | D29: FREGOSO BARBOZA MARTIN DANIEL | H29: SINDICO MUNICIPAL | I29: 15 | J29: TARJETA | L29: 0 | M29: 0 | N29: =10307/15 -> 687.1333333 | O29: =TRUNC(N29*I29,2) -> 10307 | P29: =TRUNC(N29*I29*0.04,2) -> 412.28 | Q29: =TRUNC(N29*0.07*I29,2) -> 721.49 | R29: =L29 -> 0 | S29: =TRUNC(Q29+P29+(IF(R29>519,519,R29))+IF(K29=0,0,K29*N29),2) -> 1133.77 | T29: =TRUNC((IF(K29=0,I29*N29,(I29-K29)*N29))+(IF(R29<519,0,R29-519)),2)+M29 -> 10307 | U29: =S29+T29 -> 11440.77 | W29: 0 | X29: 0 | Y29: =IF(N29>0.01,(T29-VLOOKUP(T29,quincenal,1))*VLOOKUP(T29,quincenal,3)+VLOOKUP(T29,quincenal,2)-VLOOKUP(T29,subquincenal,2),0) -> 1655.518608 | Z29: =TRUNC(IF(Y29>0.01,Y29,0),2) -> 1655.51 | AA29: =TRUNC(IF(Y29<0.01,-Y29,0),2) -> 0 | AB29: =U29-W29-X29-Z29+AA29 -> 9785.26 | AC29: =#REF! ->  | AE29: 14
A30: 14 | B30: 1 | C30: 1 | D30: MEDINA FLORES EVERARDO | G30: 2012-10-01 | H30: SECRETARIO GENERAL | I30: 15 | J30: TARJETA | L30: 0 | M30: 0 | N30: 617.494 | O30: =TRUNC(N30*I30,2) -> 9262.41 | P30: =TRUNC(N30*I30*0.04,2) -> 370.49 | Q30: =TRUNC(N30*0.07*I30,2) -> 648.36 | R30: =L30 -> 0 | S30: =TRUNC(Q30+P30+(IF(R30>519,519,R30))+IF(K30=0,0,K30*N30),2) -> 1018.85 | T30: =TRUNC((IF(K30=0,I30*N30,(I30-K30)*N30))+(IF(R30<519,0,R30-519)),2)+M30 -> 9262.41 | U30: =S30+T30 -> 10281.26 | X30: 0 | Y30: =IF(N30>0.01,(T30-VLOOKUP(T30,quincenal,1))*VLOOKUP(T30,quincenal,3)+VLOOKUP(T30,quincenal,2)-VLOOKUP(T30,subquincenal,2),0) -> 1431.2616 | Z30: =TRUNC(IF(Y30>0.01,Y30,0),2) -> 1431.26 | AA30: =TRUNC(IF(Y30<0.01,-Y30,0),2) -> 0 | AB30: =U30-W30-X30-Z30+AA30 -> 8850 | AE30: 15
A31: 15 | D31: GUTIERREZ SIORDIA LORENA | H31: SECRETARIA DE SECRETARIA GENERAL | I31: 15 | J31: TARJETA | L31: 0 | M31: 0 | N31: 183.152 | O31: =TRUNC(N31*I31,2) -> 2747.28 | P31: =TRUNC(N31*I31*0.04,2) -> 109.89 | Q31: =TRUNC(N31*0.07*I31,2) -> 192.3 | R31: =L31 -> 0 | S31: =TRUNC(Q31+P31+(IF(R31>519,519,R31))+IF(K31=0,0,K31*N31),2) -> 302.19 | T31: =TRUNC((IF(K31=0,I31*N31,(I31-K31)*N31))+(IF(R31<519,0,R31-519)),2)+M31 -> 2747.28 | U31: =S31+T31 -> 3049.47 | X31: 0 | Y31: =IF(N31>0.01,(T31-VLOOKUP(T31,quincenal,1))*VLOOKUP(T31,quincenal,3)+VLOOKUP(T31,quincenal,2)-VLOOKUP(T31,subquincenal,2),0) -> 49.470976 | Z31: =TRUNC(IF(Y31>0.01,Y31,0),2) -> 49.47 | AA31: =TRUNC(IF(Y31<0.01,-Y31,0),2) -> 0 | AB31: =U31-W31-X31-Z31+AA31 -> 3000 | AE31: 16
A32: 16 | D32: CARDENAS GUEVARA JORGE RAFAEL | H32: AUXILIAR ADMINISTRATIVO | I32: 15 | J32: TARJETA | L32: 0 | M32: 0 | N32: 183.152 | O32: =TRUNC(N32*I32,2) -> 2747.28 | P32: =TRUNC(N32*I32*0.04,2) -> 109.89 | Q32: =TRUNC(N32*0.07*I32,2) -> 192.3 | R32: =L32 -> 0 | S32: =TRUNC(Q32+P32+(IF(R32>519,519,R32))+IF(K32=0,0,K32*N32),2) -> 302.19 | T32: =TRUNC((IF(K32=0,I32*N32,(I32-K32)*N32))+(IF(R32<519,0,R32-519)),2)+M32 -> 2747.28 | U32: =S32+T32 -> 3049.47 | X32: 0 | Y32: =IF(N32>0.01,(T32-VLOOKUP(T32,quincenal,1))*VLOOKUP(T32,quincenal,3)+VLOOKUP(T32,quincenal,2)-VLOOKUP(T32,subquincenal,2),0) -> 49.470976 | Z32: =TRUNC(IF(Y32>0.01,Y32,0),2) -> 49.47 | AA32: =TRUNC(IF(Y32<0.01,-Y32,0),2) -> 0 | AB32: =U32-W32-X32-Z32+AA32 -> 3000 | AC32: =#REF! ->  | AE32: 17
D33: SECRETARIA GENERAL Y SINDICATURA | O33: =SUM(O29:O32) -> 25063.97 | P33: 1002.55 | Q33: 1754.45 | R33: 0 | S33: 2757 | T33: 25063.97 | U33: 27820.97 | V33: 0 | W33: 0 | X33: 0 | Y33: =SUM(Y29:Y32) -> 3185.72216 | Z33: 3185.71 | AA33: 0 | AB33: 24635.26
D35: OFICIALIA MAYOR ADMINISTRATIVA
D36: LEDESMA MORAN JOSE FEDERICO | H36: OFICIAL MAYOR | I36: 15 | J36: TARJETA | L36: 0 | M36: 0 | N36: 479.9055 | O36: =TRUNC(N36*I36,2) -> 7198.58 | P36: =TRUNC(N36*I36*0.04,2) -> 287.94 | Q36: =TRUNC(N36*0.07*I36,2) -> 503.9 | R36: =L36 -> 0 | S36: =TRUNC(Q36+P36+(IF(R36>519,519,R36))+IF(K36=0,0,K36*N36),2) -> 791.84 | T36: =TRUNC((IF(K36=0,I36*N36,(I36-K36)*N36))+(IF(R36<519,0,R36-519)),2)+M36 -> 7198.58 | U36: =S36+T36 -> 7990.42 | X36: 0 | Y36: =IF(N36>0.01,(T36-VLOOKUP(T36,quincenal,1))*VLOOKUP(T36,quincenal,3)+VLOOKUP(T36,quincenal,2)-VLOOKUP(T36,subquincenal,2),0) -> 990.427512 | Z36: =TRUNC(IF(Y36>0.01,Y36,0),2) -> 990.42 | AA36: =TRUNC(IF(Y36<0.01,-Y36,0),2) -> 0 | AB36: =U36-W36-X36-Z36+AA36 -> 7000 | AE36: 18
D37: VENTURA PEREZ HERLINDA AURORA | E37: VEPH840722PR4 | F37: VEPH840722MJCNRR04 | H37: SECRETARIA | I37: 15 | J37: TARJETA | L37: 0 | M37: 0 | N37: =3056/15 -> 203.7333333 | O37: =TRUNC(N37*I37,2) -> 3056 | P37: =TRUNC(N37*I37*0.04,2) -> 122.24 | Q37: =TRUNC(N37*0.07*I37,2) -> 213.92 | R37: 0 | S37: =TRUNC(Q37+P37+(IF(R37>519,519,R37))+IF(K37=0,0,K37*N37),2) -> 336.16 | T37: =TRUNC((IF(K37=0,I37*N37,(I37-K37)*N37))+(IF(R37<519,0,R37-519)),2)+M37 -> 3056 | U37: 3392.16 | W37: 0 | X37: 0 | Y37: =IF(N37>0.01,(T37-VLOOKUP(T37,quincenal,1))*VLOOKUP(T37,quincenal,3)+VLOOKUP(T37,quincenal,2)-VLOOKUP(T37,subquincenal,2),0) -> 83.059712 | Z37: 83.05 | AA37: 0 | AB37: 3309.11 | AC37: =[2]PORTADA!$D$10 -> 1 | AE37: 19
A38: 20 | D38: BARAJAS DE LA TORRE ANA MARIA | E38: GOTG850723 | H38: ATENCIO CIUDADANA | I38: 15 | J38: TARJETA | L38: 0 | M38: 0 | N38: 113.977 | O38: =TRUNC(N38*I38,2) -> 1709.65 | P38: =TRUNC(N38*I38*0.04,2) -> 68.38 | Q38: =TRUNC(N38*0.07*I38,2) -> 119.67 | R38: =L38 -> 0 | S38: =TRUNC(Q38+P38+(IF(R38>519,519,R38))+IF(K38=0,0,K38*N38),2) -> 188.05 | T38: =TRUNC((IF(K38=0,I38*N38,(I38-K38)*N38))+(IF(R38<519,0,R38-519)),2)+M38 -> 1709.65 | U38: =S38+T38 -> 1897.7 | X38: 0 | Y38: =IF(N38>0.01,(T38-VLOOKUP(T38,quincenal,1))*VLOOKUP(T38,quincenal,3)+VLOOKUP(T38,quincenal,2)-VLOOKUP(T38,subquincenal,2),0) -> -102.30024 | Z38: =TRUNC(IF(Y38>0.01,Y38,0),2) -> 0 | AA38: =TRUNC(IF(Y38<0.01,-Y38,0),2) -> 102.3 | AB38: =U38-W38-X38-Z38+AA38 -> 2000 | AC38: =#REF! ->  | AE38: 20
A39: 22 | D39: HERNANDEZ SANCHEZ ROSA ELIZABETH | H39: CONSERJE | I39: 15 | J39: SOBRE | L39: 0 | M39: 0 | N39: 101.23 | O39: 1518.45 | P39: 60.73 | Q39: 106.29 | R39: 0 | S39: 167.02 | T39: 1518.45 | U39: 1685.47 | W39: 0 | X39: 0 | Y39: -114.53704 | Z39: =TRUNC(IF(Y39>0.01,Y39,0),2) -> 0 | AA39: =TRUNC(IF(Y39<0.01,-Y39,0),2) -> 114.53 | AB39: =U39-W39-X39-Z39+AA39 -> 1800 | AC39: =#REF! ->  | AE39: 21
D40: OFICIALIA MAYOR ADMINISTRATIVA | O40: =SUM(O36:O39) -> 13482.68 | P40: 539.29 | Q40: 943.78 | R40: 0 | S40: 1483.07 | T40: 13482.68 | U40: 14965.75 | V40: 0 | W40: 0 | X40: 0 | Y40: 856.649944 | Z40: 1073.47 | AA40: 216.83 | AB40: 14109.11
D42: DEPARTAMENTO JURIDICO
A43: 23 | B43: 1 | C43: 7 | D43: FREGOSO MEDRANO CARLOS ALEJANDRO | H43: DIRECTOR JURIDICO | I43: 15 | J43: TARJETA | L43: 0 | M43: 0 | N43: 665.835 | O43: =TRUNC(N43*I43,2) -> 9987.52 | P43: =TRUNC(N43*I43*0.04,2) -> 399.5 | Q43: =TRUNC(N43*0.07*I43,2) -> 699.12 | R43: =L43 -> 0 | S43: =TRUNC(Q43+P43+(IF(R43>519,519,R43))+IF(K43=0,0,K43*N43),2) -> 1098.62 | T43: =TRUNC((IF(K43=0,I43*N43,(I43-K43)*N43))+(IF(R43<519,0,R43-519)),2)+M43 -> 9987.52 | U43: =S43+T43 -> 11086.14 | X43: 0 | Y43: =IF(N43>0.01,(T43-VLOOKUP(T43,quincenal,1))*VLOOKUP(T43,quincenal,3)+VLOOKUP(T43,quincenal,2)-VLOOKUP(T43,subquincenal,2),0) -> 1586.145096 | Z43: =TRUNC(IF(Y43>0.01,Y43,0),2) -> 1586.14 | AA43: =TRUNC(IF(Y43<0.01,-Y43,0),2) -> 0 | AB43: =U43-W43-X43-Z43+AA43 -> 9500 | AC43: =[2]PORTADA!$D$10 -> 1 | AE43: 22
A44: 24 | D44: REYNAGA LOPEZ NAHSDHELLY ALEJANDRA | H44: AUXILIAR JURIDICO | I44: 15 | J44: TARJETA | L44: 0 | M44: 0 | N44: =3896/15 -> 259.7333333 | O44: =TRUNC(N44*I44,2) -> 3896 | P44: =TRUNC(N44*I44*0.04,2) -> 155.84 | Q44: =TRUNC(N44*0.07*I44,2) -> 272.72 | R44: =L44 -> 0 | S44: =TRUNC(Q44+P44+(IF(R44>519,519,R44))+IF(K44=0,0,K44*N44),2) -> 428.56 | T44: =TRUNC((IF(K44=0,I44*N44,(I44-K44)*N44))+(IF(R44<519,0,R44-519)),2)+M44 -> 3896 | U44: =S44+T44 -> 4324.56 | X44: 0 | Y44: =IF(N44>0.01,(T44-VLOOKUP(T44,quincenal,1))*VLOOKUP(T44,quincenal,3)+VLOOKUP(T44,quincenal,2)-VLOOKUP(T44,subquincenal,2),0) -> 332.4484 | Z44: =TRUNC(IF(Y44>0.01,Y44,0),2) -> 332.44 | AA44: =TRUNC(IF(Y44<0.01,-Y44,0),2) -> 0 | AB44: =U44-W44-X44-Z44+AA44 -> 3992.12 | AE44: 23
D45: CARRILLO MUÑOZ CESAR OMAR | E45: CARH770717 | F45: CARH770717HJCRDG01 | H45: JUEZ MUNICIPAL | I45: 15 | J45: TARJETA | L45: 0 | M45: 0 | N45: =4612/15 -> 307.4666667 | O45: =TRUNC(N45*I45,2) -> 4612 | P45: =TRUNC(N45*I45*0.04,2) -> 184.48 | Q45: =TRUNC(N45*0.07*I45,2) -> 322.84 | R45: =L45 -> 0 | S45: =TRUNC(Q45+P45+(IF(R45>519,519,R45))+IF(K45=0,0,K45*N45),2) -> 507.32 | T45: =TRUNC((IF(K45=0,I45*N45,(I45-K45)*N45))+(IF(R45<519,0,R45-519)),2)+M45 -> 4612 | U45: =S45+T45 -> 5119.32 | X45: 0 | Y45: =IF(N45>0.01,(T45-VLOOKUP(T45,quincenal,1))*VLOOKUP(T45,quincenal,3)+VLOOKUP(T45,quincenal,2)-VLOOKUP(T45,subquincenal,2),0) -> 453.975888 | Z45: =TRUNC(IF(Y45>0.01,Y45,0),2) -> 453.97 | AA45: =TRUNC(IF(Y45<0.01,-Y45,0),2) -> 0 | AB45: =U45-W45-X45-Z45+AA45 -> 4665.35 | AE45: 24
D46: DEPARTAMENTO JURIDICO | O46: =SUM(O43:O45) -> 18495.52 | P46: 739.82 | Q46: 1294.68 | R46: 0 | S46: 2034.5 | T46: 18495.52 | U46: 20530.02 | V46: 0 | W46: 0 | X46: 0 | Y46: 2372.569384 | Z46: 2372.55 | AA46: 0 | AB46: 18157.47
D48: UNIDAD DE TRANSPARENCIA
D49: ALDAZ VELEZ LORENZO MIGUEL | E49: HEEG670312 | F49: HEER670312MJCRNS06 | G49: 2007-01-08 | H49: DIRECTOR DE TRANSPARENCIA | I49: 15 | J49: TARJETA | L49: 0 | M49: 0 | N49: 405.5341 | O49: =TRUNC(N49*I49,2) -> 6083.01 | P49: =TRUNC(N49*I49*0.04,2) -> 243.32 | Q49: =TRUNC(N49*0.07*I49,2) -> 425.81 | R49: =L49 -> 0 | S49: =TRUNC(Q49+P49+(IF(R49>519,519,R49))+IF(K49=0,0,K49*N49),2) -> 669.13 | T49: =TRUNC((IF(K49=0,I49*N49,(I49-K49)*N49))+(IF(R49<519,0,R49-519)),2)+M49 -> 6083.01 | U49: =S49+T49 -> 6752.14 | X49: 0 | Y49: =IF(N49>0.01,(T49-VLOOKUP(T49,quincenal,1))*VLOOKUP(T49,quincenal,3)+VLOOKUP(T49,quincenal,2)-VLOOKUP(T49,subquincenal,2),0) -> 752.14176 | Z49: =TRUNC(IF(Y49>0.01,Y49,0),2) -> 752.14 | AA49: =TRUNC(IF(Y49<0.01,-Y49,0),2) -> 0 | AB49: =U49-W49-X49-Z49+AA49 -> 6000 | AC49: =#REF! ->  | AE49: 25
D50: MONTERO REYES HECTOR CARLOS | E50: PAGM780607 | F50: PAGM780607MJCLRR03 | H50: AUXILIAR DE TRANSPARENCIA | I50: 15 | J50: TARJETA | L50: 0 | M50: 0 | N50: 217.7938 | O50: =TRUNC(N50*I50,2) -> 3266.9 | P50: =TRUNC(N50*I50*0.04,2) -> 130.67 | Q50: =TRUNC(N50*0.07*I50,2) -> 228.68 | R50: =L50 -> 0 | S50: =TRUNC(Q50+P50+(IF(R50>519,519,R50))+IF(K50=0,0,K50*N50),2) -> 359.35 | T50: =TRUNC((IF(K50=0,I50*N50,(I50-K50)*N50))+(IF(R50<519,0,R50-519)),2)+M50 -> 3266.9 | U50: =S50+T50 -> 3626.25 | X50: 0 | Y50: =IF(N50>0.01,(T50-VLOOKUP(T50,quincenal,1))*VLOOKUP(T50,quincenal,3)+VLOOKUP(T50,quincenal,2)-VLOOKUP(T50,subquincenal,2),0) -> 126.255632 | Z50: =TRUNC(IF(Y50>0.01,Y50,0),2) -> 126.25 | AA50: =TRUNC(IF(Y50<0.01,-Y50,0),2) -> 0 | AB50: =U50-W50-X50-Z50+AA50 -> 3500 | AC50: =#REF! ->  | AE50: 26
D51: UNIDAD DE TRANSPARENCIA | O51: =SUM(O49:O50) -> 9349.91 | P51: =SUM(P49:P50) -> 373.99 | Q51: 654.49 | R51: 0 | S51: 1028.48 | T51: 9349.91 | U51: 10378.39 | V51: 0 | W51: 0 | X51: 0 | Y51: 878.397392 | Z51: 878.39 | AA51: 0 | AB51: 9500
D53: DIRECCION DE REGISTRO CIVIL
D54: HERNANDEZ ENRIQUEZ ROSA GUADALUPE | E54: HEEG670312 | F54: HEER670312MJCRNS06 | G54: 2007-01-08 | H54: JEFE OFICIAL DE REGISTRO CIVIL | I54: 15 | J54: TARJETA | L54: 0 | M54: 0 | N54: =4459/15 -> 297.2666667 | O54: =TRUNC(N54*I54,2) -> 4459 | P54: =TRUNC(N54*I54*0.04,2) -> 178.36 | Q54: =TRUNC(N54*0.07*I54,2) -> 312.13 | R54: =L54 -> 0 | S54: =TRUNC(Q54+P54+(IF(R54>519,519,R54))+IF(K54=0,0,K54*N54),2) -> 490.49 | T54: =TRUNC((IF(K54=0,I54*N54,(I54-K54)*N54))+(IF(R54<519,0,R54-519)),2)+M54 -> 4459 | U54: =S54+T54 -> 4949.49 | X54: 0 | Y54: =IF(N54>0.01,(T54-VLOOKUP(T54,quincenal,1))*VLOOKUP(T54,quincenal,3)+VLOOKUP(T54,quincenal,2)-VLOOKUP(T54,subquincenal,2),0) -> 426.558288 | Z54: =TRUNC(IF(Y54>0.01,Y54,0),2) -> 426.55 | AA54: =TRUNC(IF(Y54<0.01,-Y54,0),2) -> 0 | AB54: =U54-W54-X54-Z54+AA54 -> 4522.94 | AC54: =[2]PORTADA!$D$10 -> 1 | AE54: 27
D55: PLASCENCIA GARCIA MIREYA ESMERALDA | E55: PAGM780607 | F55: PAGM780607MJCLRR03 | H55: OFICIAL AUX. DE REGISTRO CIVIL | I55: 15 | J55: TARJETA | L55: 0 | M55: 0 | N55: =2492/15 -> 166.1333333 | O55: =TRUNC(N55*I55,2) -> 2492 | P55: =TRUNC(N55*I55*0.04,2) -> 99.68 | Q55: =TRUNC(N55*0.07*I55,2) -> 174.44 | R55: =L55 -> 0 | S55: =TRUNC(Q55+P55+(IF(R55>519,519,R55))+IF(K55=0,0,K55*N55),2) -> 274.12 | T55: =TRUNC((IF(K55=0,I55*N55,(I55-K55)*N55))+(IF(R55<519,0,R55-519)),2)+M55 -> 2492 | U55: =S55+T55 -> 2766.12 | X55: 0 | Y55: =IF(N55>0.01,(T55-VLOOKUP(T55,quincenal,1))*VLOOKUP(T55,quincenal,3)+VLOOKUP(T55,quincenal,2)-VLOOKUP(T55,subquincenal,2),0) -> 6.696512 | Z55: =TRUNC(IF(Y55>0.01,Y55,0),2) -> 6.69 | AA55: =TRUNC(IF(Y55<0.01,-Y55,0),2) -> 0 | AB55: =U55-W55-X55-Z55+AA55 -> 2759.43 | AC55: =[2]PORTADA!$D$10 -> 1 | AE55: 28
D56: GONZALEZ MARTINEZ KARINA | H56: SECRETARIA EN REGISTRO CIVIL | I56: 15 | J56: TARJETA | L56: 0 | M56: 0 | N56: 147.9015 | O56: =TRUNC(N56*I56,2) -> 2218.52 | P56: =TRUNC(N56*I56*0.04,2) -> 88.74 | Q56: =TRUNC(N56*0.07*I56,2) -> 155.29 | R56: =L56 -> 0 | S56: =TRUNC(Q56+P56+(IF(R56>519,519,R56))+IF(K56=0,0,K56*N56),2) -> 244.03 | T56: =TRUNC((IF(K56=0,I56*N56,(I56-K56)*N56))+(IF(R56<519,0,R56-519)),2)+M56 -> 2218.52 | U56: =S56+T56 -> 2462.55 | Y56: =IF(N56>0.01,(T56-VLOOKUP(T56,quincenal,1))*VLOOKUP(T56,quincenal,3)+VLOOKUP(T56,quincenal,2)-VLOOKUP(T56,subquincenal,2),0) -> -37.458112 | Z56: =TRUNC(IF(Y56>0.01,Y56,0),2) -> 0 | AA56: =TRUNC(IF(Y56<0.01,-Y56,0),2) -> 37.45 | AB56: =U56-W56-X56-Z56+AA56 -> 2500 | AE56: 29
A57: 28 | B57: 1 | C57: 14 | D57: NAVARRO HERNANDEZ ALMA SAGRARIO | H57: ASISTENTE DE REGISTRO CIVIL | I57: 15 | J57: TARJETA | L57: 0 | M57: 0 | N57: 183.152 | O57: =TRUNC(N57*I57,2) -> 2747.28 | P57: =TRUNC(N57*I57*0.04,2) -> 109.89 | Q57: =TRUNC(N57*0.07*I57,2) -> 192.3 | R57: =L57 -> 0 | S57: =TRUNC(Q57+P57+(IF(R57>519,519,R57))+IF(K57=0,0,K57*N57),2) -> 302.19 | T57: =TRUNC((IF(K57=0,I57*N57,(I57-K57)*N57))+(IF(R57<519,0,R57-519)),2)+M57 -> 2747.28 | U57: =S57+T57 -> 3049.47 | X57: 0 | Y57: =IF(N57>0.01,(T57-VLOOKUP(T57,quincenal,1))*VLOOKUP(T57,quincenal,3)+VLOOKUP(T57,quincenal,2)-VLOOKUP(T57,subquincenal,2),0) -> 49.470976 | Z57: =TRUNC(IF(Y57>0.01,Y57,0),2) -> 49.47 | AA57: =TRUNC(IF(Y57<0.01,-Y57,0),2) -> 0 | AB57: =U57-W57-X57-Z57+AA57 -> 3000 | AC57: =#REF! ->  | AE57: 30
D58: DIRECCION DE REGISTRO CIVIL | O58: =SUM(O54:O57) -> 11916.8 | P58: =SUM(P54:P57) -> 476.67 | Q58: 834.16 | R58: 0 | S58: 1310.83 | T58: 11916.8 | U58: 13227.63 | V58: 0 | W58: 0 | X58: 0 | Y58: 445.267664 | Z58: 482.71 | AA58: 37.45 | AB58: 12782.37
D60: OFICIALIA MAYOR DE CULTURA
D61: GONZALEZ PEÑA LETICIA | E61: MAM620222 | H61: DIRECTOR DE CULTURA Y TURISMO | I61: 15 | J61: TARJETA | L61: 0 | M61: 0 | N61: 331.436 | O61: =TRUNC(N61*I61,2) -> 4971.54 | P61: =TRUNC(N61*I61*0.04,2) -> 198.86 | Q61: =TRUNC(N61*0.07*I61,2) -> 348 | R61: =L61 -> 0 | S61: =TRUNC(Q61+P61+(IF(R61>519,519,R61))+IF(K61=0,0,K61*N61),2) -> 546.86 | T61: =TRUNC((IF(K61=0,I61*N61,(I61-K61)*N61))+(IF(R61<519,0,R61-519)),2)+M61 -> 4971.54 | U61: =S61+T61 -> 5518.4 | X61: 0 | Y61: =IF(N61>0.01,(T61-VLOOKUP(T61,quincenal,1))*VLOOKUP(T61,quincenal,3)+VLOOKUP(T61,quincenal,2)-VLOOKUP(T61,subquincenal,2),0) -> 518.405456 | Z61: =TRUNC(IF(Y61>0.01,Y61,0),2) -> 518.4 | AA61: =TRUNC(IF(Y61<0.01,-Y61,0),2) -> 0 | AB61: =U61-W61-X61-Z61+AA61 -> 5000 | AC61: =[3]PORTADA!$D$10 -> 1 | AE61: 31
D62: PARRA RON CARLOS ENRIQUE | E62: PARC480708 | F62: PARC480708HJCRNR08 | G62: 2004-01-01 | H62: CRONISTA | I62: 15 | J62: TARJETA | L62: 0 | M62: 0 | N62: =3463/15 -> 230.8666667 | O62: 3463 | P62: 138.52 | Q62: 242.41 | R62: 0 | S62: 380.93 | T62: 3463 | U62: 3843.93 | X62: 0 | Y62: =IF(N62>0.01,(T62-VLOOKUP(T62,quincenal,1))*VLOOKUP(T62,quincenal,3)+VLOOKUP(T62,quincenal,2)-VLOOKUP(T62,subquincenal,2),0) -> 147.591312 | Z62: 147.59 | AA62: 0 | AB62: 3696.34 | AC62: =[2]PORTADA!$D$10 -> 1 | AE62: 32
D63: GONZALEZ JUAREZ ALEJANDRA AMANDA | H63: SECRETARIA DE CASA DE LA CULTURA | I63: 15 | J63: TARJETA | L63: 0 | M63: 0 | N63: 147.9015 | O63: =TRUNC(N63*I63,2) -> 2218.52 | P63: =TRUNC(N63*I63*0.04,2) -> 88.74 | Q63: =TRUNC(N63*0.07*I63,2) -> 155.29 | R63: =L63 -> 0 | S63: =TRUNC(Q63+P63+(IF(R63>519,519,R63))+IF(K63=0,0,K63*N63),2) -> 244.03 | T63: =TRUNC((IF(K63=0,I63*N63,(I63-K63)*N63))+(IF(R63<519,0,R63-519)),2)+M63 -> 2218.52 | U63: =S63+T63 -> 2462.55 | Y63: =IF(N63>0.01,(T63-VLOOKUP(T63,quincenal,1))*VLOOKUP(T63,quincenal,3)+VLOOKUP(T63,quincenal,2)-VLOOKUP(T63,subquincenal,2),0) -> -37.458112 | Z63: 0 | AA63: 37.45 | AB63: =U63-W63-X63-Z63+AA63 -> 2500 | AE63: 33
D64: GALLEGOS PEREZ DIEGO ARMANDO | H64: ENCARGADO DE LA CULTURA DEL AGUA | I64: 15 | L64: 0 | M64: 0 | N64: 172.831 | O64: =TRUNC(N64*I64,2) -> 2592.46 | P64: =TRUNC(N64*I64*0.04,2) -> 103.69 | Q64: =TRUNC(N64*0.07*I64,2) -> 181.47 | R64: =L64 -> 0 | S64: =TRUNC(Q64+P64+(IF(R64>519,519,R64))+IF(K64=0,0,K64*N64),2) -> 285.16 | T64: =TRUNC((IF(K64=0,I64*N64,(I64-K64)*N64))+(IF(R64<519,0,R64-519)),2)+M64 -> 2592.46 | U64: =S64+T64 -> 2877.62 | Y64: =IF(N64>0.01,(T64-VLOOKUP(T64,quincenal,1))*VLOOKUP(T64,quincenal,3)+VLOOKUP(T64,quincenal,2)-VLOOKUP(T64,subquincenal,2),0) -> 17.62656 | Z64: =TRUNC(IF(Y64>0.01,Y64,0),2) -> 17.62 | AA64: =TRUNC(IF(Y64<0.01,-Y64,0),2) -> 0 | AB64: =U64-W64-X64-Z64+AA64 -> 2860 | AE64: 34
D65: ESPARZA ZAVALZA INDALECIO | H65: MAESTRO DE MUSICA | I65: 15 | L65: 0 | M65: 0 | N65: 154.56 | O65: =TRUNC(N65*I65,2) -> 2318.4 | P65: =TRUNC(N65*I65*0.04,2) -> 92.73 | Q65: =TRUNC(N65*0.07*I65,2) -> 162.28 | R65: =L65 -> 0 | S65: =TRUNC(Q65+P65+(IF(R65>519,519,R65))+IF(K65=0,0,K65*N65),2) -> 255.01 | T65: =TRUNC((IF(K65=0,I65*N65,(I65-K65)*N65))+(IF(R65<519,0,R65-519)),2)+M65 -> 2318.4 | U65: =S65+T65 -> 2573.41 | Y65: =IF(N65>0.01,(T65-VLOOKUP(T65,quincenal,1))*VLOOKUP(T65,quincenal,3)+VLOOKUP(T65,quincenal,2)-VLOOKUP(T65,subquincenal,2),0) -> -26.591168 | Z65: 0 | AA65: 26.59 | AB65: =U65-W65-X65-Z65+AA65 -> 2600 | AE65: 35
D66: CARRILLO DIAZ ANTONIO SALVADOR | H66: INTENDENTE | I66: 15 | J66: TARJETA | L66: 0 | M66: 0 | N66: 113.977 | O66: =TRUNC(N66*I66,2) -> 1709.65 | P66: =TRUNC(N66*I66*0.04,2) -> 68.38 | Q66: =TRUNC(N66*0.07*I66,2) -> 119.67 | R66: =L66 -> 0 | S66: =TRUNC(Q66+P66+(IF(R66>519,519,R66))+IF(K66=0,0,K66*N66),2) -> 188.05 | T66: =TRUNC((IF(K66=0,I66*N66,(I66-K66)*N66))+(IF(R66<519,0,R66-519)),2)+M66 -> 1709.65 | U66: =S66+T66 -> 1897.7 | X66: 0 | Y66: =IF(N66>0.01,(T66-VLOOKUP(T66,quincenal,1))*VLOOKUP(T66,quincenal,3)+VLOOKUP(T66,quincenal,2)-VLOOKUP(T66,subquincenal,2),0) -> -102.30024 | Z66: 0 | AA66: 102.3 | AB66: =U66-W66-X66-Z66+AA66 -> 2000 | AE66: 36
D67: ARCINIEGA RODRIGUEZ ANTONIO | H67: ENCARGADO DE EQUIPO DE SONIDO | I67: 15 | J67: TARJETA | L67: 0 | M67: 0 | N67: =4060/15 -> 270.6666667 | O67: 4060 | P67: 162.4 | Q67: 284.2 | R67: 0 | S67: 446.6 | T67: 4060 | U67: 4506.6 | X67: 0 | Y67: =IF(N67>0.01,(T67-VLOOKUP(T67,quincenal,1))*VLOOKUP(T67,quincenal,3)+VLOOKUP(T67,quincenal,2)-VLOOKUP(T67,subquincenal,2),0) -> 358.6884 | Z67: 358.68 | AA67: 0 | AB67: 4147.92 | AC67: =[2]PORTADA!$D$10 -> 1 | AE67: 37
D68: OFICIALIA MAYOR DE CULTURA | O68: =SUM(O61:O67) -> 21333.57 | P68: =SUM(P61:P67) -> 853.32 | Q68: 1493.32 | R68: 0 | S68: 2346.64 | T68: 21333.57 | U68: 23680.21 | V68: 0 | W68: 0 | X68: 0 | Y68: 875.962208 | Z68: 1042.29 | AA68: 166.34 | AB68: 22804.26
D70: DEPARTAMENTO DE PRENSA Y PUBLICIDAD
A71: 35 | B71: 1 | C71: 19 | D71: DIAZ PEREZ SAMUEL | H71: DIRECTOR DE PRENSA Y PUBLICIDAD | I71: 15 | J71: TARJETA | L71: 0 | M71: 0 | N71: 405.5341 | O71: =TRUNC(N71*I71,2) -> 6083.01 | P71: =TRUNC(N71*I71*0.04,2) -> 243.32 | Q71: =TRUNC(N71*0.07*I71,2) -> 425.81 | R71: =L71 -> 0 | S71: =TRUNC(Q71+P71+(IF(R71>519,519,R71))+IF(K71=0,0,K71*N71),2) -> 669.13 | T71: =TRUNC((IF(K71=0,I71*N71,(I71-K71)*N71))+(IF(R71<519,0,R71-519)),2)+M71 -> 6083.01 | U71: =S71+T71 -> 6752.14 | X71: 0 | Y71: =IF(N71>0.01,(T71-VLOOKUP(T71,quincenal,1))*VLOOKUP(T71,quincenal,3)+VLOOKUP(T71,quincenal,2)-VLOOKUP(T71,subquincenal,2),0) -> 752.14176 | Z71: =TRUNC(IF(Y71>0.01,Y71,0),2) -> 752.14 | AA71: =TRUNC(IF(Y71<0.01,-Y71,0),2) -> 0 | AB71: =U71-W71-X71-Z71+AA71 -> 6000 | AC71: =#REF! ->  | AE71: 38
A72: 36 | D72: GOMEZ SANTIAGO MARIA DOLORES | H72: SECRETARIA DE COMUNICACIÓN SOCIAL | I72: 15 | J72: TARJETA | L72: 0 | M72: 0 | N72: 101.23 | O72: =TRUNC(N72*I72,2) -> 1518.45 | P72: =TRUNC(N72*I72*0.04,2) -> 60.73 | Q72: =TRUNC(N72*0.07*I72,2) -> 106.29 | R72: =L72 -> 0 | S72: =TRUNC(Q72+P72+(IF(R72>519,519,R72))+IF(K72=0,0,K72*N72),2) -> 167.02 | T72: =TRUNC((IF(K72=0,I72*N72,(I72-K72)*N72))+(IF(R72<519,0,R72-519)),2)+M72 -> 1518.45 | U72: =S72+T72 -> 1685.47 | W72: 0 | X72: 0 | Y72: =IF(N72>0.01,(T72-VLOOKUP(T72,quincenal,1))*VLOOKUP(T72,quincenal,3)+VLOOKUP(T72,quincenal,2)-VLOOKUP(T72,subquincenal,2),0) -> -114.53704 | Z72: =TRUNC(IF(Y72>0.01,Y72,0),2) -> 0 | AA72: =TRUNC(IF(Y72<0.01,-Y72,0),2) -> 114.53 | AB72: =U72-W72-X72-Z72+AA72 -> 1800 | AC72: =#REF! ->  | AE72: 39
D73: VAZQUEZ PEREZ LUIS ENRIQUE | H73: AUXILIAR DE COMUNICACIÓN SOCIAL (FOTOGRAFO Y VIDEO) | I73: 15 | J73: TARJETA | L73: 0 | M73: 0 | N73: 183.152 | O73: =TRUNC(N73*I73,2) -> 2747.28 | P73: =TRUNC(N73*I73*0.04,2) -> 109.89 | Q73: =TRUNC(N73*0.07*I73,2) -> 192.3 | R73: =L73 -> 0 | S73: =TRUNC(Q73+P73+(IF(R73>519,519,R73))+IF(K73=0,0,K73*N73),2) -> 302.19 | T73: =TRUNC((IF(K73=0,I73*N73,(I73-K73)*N73))+(IF(R73<519,0,R73-519)),2)+M73 -> 2747.28 | U73: =S73+T73 -> 3049.47 | X73: 0 | Y73: =IF(N73>0.01,(T73-VLOOKUP(T73,quincenal,1))*VLOOKUP(T73,quincenal,3)+VLOOKUP(T73,quincenal,2)-VLOOKUP(T73,subquincenal,2),0) -> 49.470976 | Z73: =TRUNC(IF(Y73>0.01,Y73,0),2) -> 49.47 | AA73: =TRUNC(IF(Y73<0.01,-Y73,0),2) -> 0 | AB73: =U73-W73-X73-Z73+AA73 -> 3000 | AE73: 40
D74: DEPARTAMENTO DE PRENSA Y PUBLICIDAD | O74: =SUM(O71:O73) -> 10348.74 | P74: =SUM(P71:P73) -> 413.94 | Q74: 724.4 | R74: 0 | S74: 1138.34 | T74: 10348.74 | U74: 11487.08 | V74: 0 | W74: 0 | X74: 0 | Y74: 687.075696 | Z74: 801.61 | AA74: 114.53 | AB74: 10800
D76: DIRECCION DE EDUCACION
A77: 37 | D77: MARISCAL MORALES ILIANA PATRICIA | H77: SUBDIRECTORA DE TALLERES DE CAPACITACION | I77: 15 | J77: TARJETA | L77: 0 | M77: 0 | N77: 217.7938 | O77: =TRUNC(N77*I77,2) -> 3266.9 | P77: =TRUNC(N77*I77*0.04,2) -> 130.67 | Q77: =TRUNC(N77*0.07*I77,2) -> 228.68 | R77: =L77 -> 0 | S77: =TRUNC(Q77+P77+(IF(R77>519,519,R77))+IF(K77=0,0,K77*N77),2) -> 359.35 | T77: =TRUNC((IF(K77=0,I77*N77,(I77-K77)*N77))+(IF(R77<519,0,R77-519)),2)+M77 -> 3266.9 | U77: =S77+T77 -> 3626.25 | X77: 0 | Y77: =IF(N77>0.01,(T77-VLOOKUP(T77,quincenal,1))*VLOOKUP(T77,quincenal,3)+VLOOKUP(T77,quincenal,2)-VLOOKUP(T77,subquincenal,2),0) -> 126.255632 | Z77: =TRUNC(IF(Y77>0.01,Y77,0),2) -> 126.25 | AA77: =TRUNC(IF(Y77<0.01,-Y77,0),2) -> 0 | AB77: =U77-W77-X77-Z77+AA77 -> 3500 | AE77: 41
D78: ESPERICUETA HERNANDEZ EFRAIN | H78: TALLERES DE CAPACITACION | I78: 15 | J78: TARJETA | L78: 0 | M78: 0 | N78: 260.287 | O78: =TRUNC(N78*I78,2) -> 3904.3 | P78: =TRUNC(N78*I78*0.04,2) -> 156.17 | Q78: =TRUNC(N78*0.07*I78,2) -> 273.3 | R78: =L78 -> 0 | S78: =TRUNC(Q78+P78+(IF(R78>519,519,R78))+IF(K78=0,0,K78*N78),2) -> 429.47 | T78: =TRUNC((IF(K78=0,I78*N78,(I78-K78)*N78))+(IF(R78<519,0,R78-519)),2)+M78 -> 3904.3 | U78: =S78+T78 -> 4333.77 | X78: 0 | Y78: =IF(N78>0.01,(T78-VLOOKUP(T78,quincenal,1))*VLOOKUP(T78,quincenal,3)+VLOOKUP(T78,quincenal,2)-VLOOKUP(T78,subquincenal,2),0) -> 333.7764 | Z78: =TRUNC(IF(Y78>0.01,Y78,0),2) -> 333.77 | AA78: =TRUNC(IF(Y78<0.01,-Y78,0),2) -> 0 | AB78: =U78-W78-X78-Z78+AA78 -> 4000 | AE78: 42
D79: MADRID ZAINES DELIA CAROLINA | H79: SECRETARIA DE DIRECTOR DE EDUCACION | I79: 15 | J79: TARJETA | L79: 0 | M79: 0 | N79: 183.152 | O79: =TRUNC(N79*I79,2) -> 2747.28 | P79: =TRUNC(N79*I79*0.04,2) -> 109.89 | Q79: =TRUNC(N79*0.07*I79,2) -> 192.3 | R79: =L79 -> 0 | S79: =TRUNC(Q79+P79+(IF(R79>519,519,R79))+IF(K79=0,0,K79*N79),2) -> 302.19 | T79: =TRUNC((IF(K79=0,I79*N79,(I79-K79)*N79))+(IF(R79<519,0,R79-519)),2)+M79 -> 2747.28 | U79: =S79+T79 -> 3049.47 | X79: 0 | Y79: =IF(N79>0.01,(T79-VLOOKUP(T79,quincenal,1))*VLOOKUP(T79,quincenal,3)+VLOOKUP(T79,quincenal,2)-VLOOKUP(T79,subquincenal,2),0) -> 49.470976 | Z79: =TRUNC(IF(Y79>0.01,Y79,0),2) -> 49.47 | AA79: =TRUNC(IF(Y79<0.01,-Y79,0),2) -> 0 | AB79: =U79-W79-X79-Z79+AA79 -> 3000 | AE79: 43
A80: 37 | D80: VALENZUELA PARRA PERLA PATRICIA | H80: SECRETARIA DE DIRECTOR DE EDUCACION | I80: 15 | J80: TARJETA | L80: 0 | M80: 0 | N80: 147.369 | O80: =TRUNC(N80*I80,2) -> 2210.53 | P80: =TRUNC(N80*I80*0.04,2) -> 88.42 | Q80: =TRUNC(N80*0.07*I80,2) -> 154.73 | R80: =L80 -> 0 | S80: =TRUNC(Q80+P80+(IF(R80>519,519,R80))+IF(K80=0,0,K80*N80),2) -> 243.15 | T80: =TRUNC((IF(K80=0,I80*N80,(I80-K80)*N80))+(IF(R80<519,0,R80-519)),2)+M80 -> 2210.53 | U80: =S80+T80 -> 2453.68 | X80: 0 | Y80: =IF(N80>0.01,(T80-VLOOKUP(T80,quincenal,1))*VLOOKUP(T80,quincenal,3)+VLOOKUP(T80,quincenal,2)-VLOOKUP(T80,subquincenal,2),0) -> -38.327424 | Z80: =TRUNC(IF(Y80>0.01,Y80,0),2) -> 0 | AA80: =TRUNC(IF(Y80<0.01,-Y80,0),2) -> 38.32 | AB80: =U80-W80-X80-Z80+AA80 -> 2492 | AC80: =#REF! ->  | AE80: 44
D81: DIRECCION DE EDUCACION | O81: =SUM(O77:O80) -> 12129.01 | P81: =SUM(P77:P80) -> 485.15 | Q81: 849.01 | R81: 0 | S81: 1334.16 | T81: 12129.01 | U81: 13463.17 | V81: 0 | W81: 0 | X81: 0 | Y81: 471.175584 | Z81: 509.49 | AA81: 38.32 | AB81: 12992
D83: DEPARTAMENTO DE PROMOCION Y DESARROLLO ECONOMICO
A84: 38 | D84: RODRIGUEZ ARQUIETA FAUSTO RAFAEL | H84: DIRECTOR | I84: 15 | J84: TARJETA | L84: 0 | M84: 0 | N84: 479.9059 | O84: =TRUNC(N84*I84,2) -> 7198.58 | P84: =TRUNC(N84*I84*0.04,2) -> 287.94 | Q84: =TRUNC(N84*0.07*I84,2) -> 503.9 | R84: =L84 -> 0 | S84: =TRUNC(Q84+P84+(IF(R84>519,519,R84))+IF(K84=0,0,K84*N84),2) -> 791.84 | T84: =TRUNC((IF(K84=0,I84*N84,(I84-K84)*N84))+(IF(R84<519,0,R84-519)),2)+M84 -> 7198.58 | U84: =S84+T84 -> 7990.42 | X84: 0 | Y84: =IF(N84>0.01,(T84-VLOOKUP(T84,quincenal,1))*VLOOKUP(T84,quincenal,3)+VLOOKUP(T84,quincenal,2)-VLOOKUP(T84,subquincenal,2),0) -> 990.427512 | Z84: =TRUNC(IF(Y84>0.01,Y84,0),2) -> 990.42 | AA84: =TRUNC(IF(Y84<0.01,-Y84,0),2) -> 0 | AB84: =U84-W84-X84-Z84+AA84 -> 7000 | AE84: 45
D85: HERNANDEZ ENRIQUEZ J. FILEMON | H85: DIRECTOR DE PROMOCION ECONOMICA | I85: 15 | J85: TARJETA | L85: 0 | M85: 0 | N85: 442.72 | O85: 6640.8 | P85: 265.63 | Q85: 464.85 | R85: 0 | S85: 730.48 | T85: 6640.8 | U85: 7371.28 | X85: 0 | Y85: 871.285704 | Z85: 871.28 | AA85: =TRUNC(IF(Y85<0.01,-Y85,0),2) -> 0 | AB85: 6500 | AE85: 46
D86: PLASCENCIA GARCIA OSCARI | E86: PAGO721112 | F86: PAGO721112HJCLRS01 | H86: AUXILIAR ADMINISTRATIVO DE DESARROLLO RURAL | I86: 15 | J86: TARJETA | L86: 0 | M86: 0 | N86: =3086/15 -> 205.7333333 | O86: 3086 | P86: 123.44 | Q86: 216.02 | R86: 0 | S86: 339.46 | T86: 3086 | U86: 3425.46 | X86: 0 | Y86: 106.573712 | Z86: 106.57 | AA86: =TRUNC(IF(Y86<0.01,-Y86,0),2) -> 0 | AB86: 3318.89 | AE86: 47
D87: MARTINEZ MARTINEZ SALVADOR TAURINO JONATHAN | E87: MAMS900118M80 | F87: MAMS900118HJCRRL02 | G87: 2007-01-01 | H87: AYUDANTE | I87: 15 | J87: TARJETA | L87: 0 | M87: 0 | N87: =2788/15 -> 185.8666667 | O87: 2788 | P87: 111.52 | Q87: 195.16 | R87: 0 | S87: 306.68 | T87: 2788 | U87: 3094.68 | X87: 0 | Y87: 53.901312 | Z87: 53.9 | AA87: 0 | AB87: 3040.78 | AC87: =[2]PORTADA!$D$10 -> 1 | AE87: 48
D88: ULLOA MARTINEZ MARCELA GUADALUPE | E88: UOMM730612 | F88: UOMM730612MJCLRR02 | G88: 1998-01-01 | H88: AUXILIAR ADMINISTRATIVO | I88: 15 | J88: TARJETA | L88: 0 | M88: 0 | N88: =3261/15 -> 217.4 | O88: 3261 | P88: 130.44 | Q88: 228.27 | R88: 0 | S88: 358.71 | T88: 3261 | U88: 3619.71 | X88: 0 | Y88: 125.613712 | Z88: 125.61 | AA88: =TRUNC(IF(Y88<0.01,-Y88,0),2) -> 0 | AB88: 3494.1 | AC88: =[2]PORTADA!$D$10 -> 1 | AE88: 49
D89: GONZALEZ MARTINEZ ERIKA DELFINA | E89: FEIA870704 | F89: FEIA870704MJCRXN02 | H89: SECRETARIA | I89: 15 | J89: TARJETA | L89: 0 | M89: 0 | N89: =2658/15 -> 177.2 | O89: 2658 | P89: 106.32 | Q89: 186.06 | R89: 0 | S89: 292.38 | T89: 2658 | U89: 2950.38 | W89: 0 | X89: 0 | Y89: 39.757312 | Z89: 39.75 | AA89: =TRUNC(IF(Y89<0.01,-Y89,0),2) -> 0 | AB89: 2910.63 | AC89: =[2]PORTADA!$D$10 -> 1 | AE89: 50
D90: DEPARTAMENTO DE PROMOCION Y DESARROLLO ECONOMICO | O90: =SUM(O84:O89) -> 25632.38 | P90: =SUM(P84:P89) -> 1025.29 | Q90: 1794.26 | R90: 0 | S90: 2819.55 | T90: 25632.38 | U90: 28451.93 | V90: 0 | W90: 0 | X90: 0 | Y90: 2187.559264 | Z90: 2187.53 | AA90: 0 | AB90: 26264.4
D92: OFICINA DE ENLACE RELACIONES EXTERIORES
D93: GUTIERREZ REYES CAROL | E93: GURC680410 | F93: GURC680410MJCTYR00 | G93: 2001-01-02 | H93: JEFE ADMINISTRADOR | I93: 15 | J93: TARJETA | L93: 0 | M93: 0 | N93: 370.2 | O93: =TRUNC(N93*I93,2) -> 5553 | P93: =TRUNC(N93*I93*0.04,2) -> 222.12 | Q93: =TRUNC(N93*0.07*I93,2) -> 388.71 | R93: =L93 -> 0 | S93: =TRUNC(Q93+P93+(IF(R93>519,519,R93))+IF(K93=0,0,K93*N93),2) -> 610.83 | T93: =TRUNC((IF(K93=0,I93*N93,(I93-K93)*N93))+(IF(R93<519,0,R93-519)),2)+M93 -> 5553 | U93: =S93+T93 -> 6163.83 | X93: 0 | Y93: =IF(N93>0.01,(T93-VLOOKUP(T93,quincenal,1))*VLOOKUP(T93,quincenal,3)+VLOOKUP(T93,quincenal,2)-VLOOKUP(T93,subquincenal,2),0) -> 638.931624 | Z93: =TRUNC(IF(Y93>0.01,Y93,0),2) -> 638.93 | AA93: =TRUNC(IF(Y93<0.01,-Y93,0),2) -> 0 | AB93: =U93-W93-X93-Z93+AA93 -> 5524.9 | AC93: =[2]PORTADA!$D$10 -> 1 | AE93: 51
D94: FREGOSO HURTADO ALEJANDRA | E94: FEHA831218 | F94: FEHA831218MJCRRL07 | G94: 2007-04-10 | H94: AUX. ADMINISTRATIVO | I94: 15 | J94: TARJETA | L94: 0 | M94: 0 | N94: 211.816 | O94: =TRUNC(N94*I94,2) -> 3177.24 | P94: =TRUNC(N94*I94*0.04,2) -> 127.08 | Q94: =TRUNC(N94*0.07*I94,2) -> 222.4 | R94: =L94 -> 0 | S94: =TRUNC(Q94+P94+(IF(R94>519,519,R94))+IF(K94=0,0,K94*N94),2) -> 349.48 | T94: =TRUNC((IF(K94=0,I94*N94,(I94-K94)*N94))+(IF(R94<519,0,R94-519)),2)+M94 -> 3177.24 | U94: =S94+T94 -> 3526.72 | X94: 0 | Y94: =IF(N94>0.01,(T94-VLOOKUP(T94,quincenal,1))*VLOOKUP(T94,quincenal,3)+VLOOKUP(T94,quincenal,2)-VLOOKUP(T94,subquincenal,2),0) -> 116.500624 | Z94: =TRUNC(IF(Y94>0.01,Y94,0),2) -> 116.5 | AA94: =TRUNC(IF(Y94<0.01,-Y94,0),2) -> 0 | AB94: =U94-W94-X94-Z94+AA94 -> 3410.22 | AC94: =[2]PORTADA!$D$10 -> 1 | AE94: 52
D95: LOPEZ MARTINEZ YVETTE AMALIA MARGARITA | E95: LOMY681017 | F95: LOMY681017MJCPRV08 | G95: 2001-01-01 | H95: SUPERVISOR | I95: 15 | J95: TARJETA | L95: 0 | M95: 0 | N95: 211.816 | O95: =TRUNC(N95*I95,2) -> 3177.24 | P95: =TRUNC(N95*I95*0.04,2) -> 127.08 | Q95: =TRUNC(N95*0.07*I95,2) -> 222.4 | R95: =L95 -> 0 | S95: =TRUNC(Q95+P95+(IF(R95>519,519,R95))+IF(K95=0,0,K95*N95),2) -> 349.48 | T95: =TRUNC((IF(K95=0,I95*N95,(I95-K95)*N95))+(IF(R95<519,0,R95-519)),2)+M95 -> 3177.24 | U95: =S95+T95 -> 3526.72 | X95: 0 | Y95: =IF(N95>0.01,(T95-VLOOKUP(T95,quincenal,1))*VLOOKUP(T95,quincenal,3)+VLOOKUP(T95,quincenal,2)-VLOOKUP(T95,subquincenal,2),0) -> 116.500624 | Z95: =TRUNC(IF(Y95>0.01,Y95,0),2) -> 116.5 | AA95: =TRUNC(IF(Y95<0.01,-Y95,0),2) -> 0 | AB95: =U95-W95-X95-Z95+AA95 -> 3410.22 | AC95: =[2]PORTADA!$D$10 -> 1 | AE95: 53
D96: ESTRADA GOMEZ JUAN CARLOS | E96: EAGJ510220NR1 | F96: EAGJ510220HJCSMN09 | H96: MENSAJERO | I96: 15 | J96: TARJETA | L96: 0 | M96: 0 | N96: 216.7235 | O96: =TRUNC(N96*I96,2) -> 3250.85 | P96: =TRUNC(N96*I96*0.04,2) -> 130.03 | Q96: =TRUNC(N96*0.07*I96,2) -> 227.55 | R96: =L96 -> 0 | S96: =TRUNC(Q96+P96+(IF(R96>519,519,R96))+IF(K96=0,0,K96*N96),2) -> 357.58 | T96: =TRUNC((IF(K96=0,I96*N96,(I96-K96)*N96))+(IF(R96<519,0,R96-519)),2)+M96 -> 3250.85 | U96: =S96+T96 -> 3608.43 | W96: 0 | X96: 0 | Y96: =IF(N96>0.01,(T96-VLOOKUP(T96,quincenal,1))*VLOOKUP(T96,quincenal,3)+VLOOKUP(T96,quincenal,2)-VLOOKUP(T96,subquincenal,2),0) -> 124.509392 | Z96: =TRUNC(IF(Y96>0.01,Y96,0),2) -> 124.5 | AA96: =TRUNC(IF(Y96<0.01,-Y96,0),2) -> 0 | AB96: =U96-W96-X96-Z96+AA96 -> 3483.93 | AC96: =[2]PORTADA!$D$10 -> 1 | AE96: 54
D97: OFICINA DE ENLACE RELACIONES EXTERIORES | O97: =SUM(O93:O96) -> 15158.33 | P97: 606.31 | Q97: 1061.06 | R97: 0 | S97: 1667.37 | T97: 15158.33 | U97: 16825.7 | V97: 0 | W97: 0 | X97: 0 | Y97: 996.442264 | Z97: 996.43 | AA97: 0 | AB97: 15829.27
D99: AGENCIAS MUNICIPALES
A100: 46 | B100: 2 | C100: 2 | D100: GOMEZ HERNANDEZ FRANCISCO JAVIER | H100: AGENTE MUNICIPAL STA. ROSALIA | I100: 15 | J100: TARJETA | L100: 0 | M100: 0 | N100: 101.23 | O100: =TRUNC(N100*I100,2) -> 1518.45 | P100: =TRUNC(N100*I100*0.04,2) -> 60.73 | Q100: =TRUNC(N100*0.07*I100,2) -> 106.29 | R100: =L100 -> 0 | S100: =TRUNC(Q100+P100+(IF(R100>519,519,R100))+IF(K100=0,0,K100*N100),2) -> 167.02 | T100: =TRUNC((IF(K100=0,I100*N100,(I100-K100)*N100))+(IF(R100<519,0,R100-519)),2)+M100 -> 1518.45 | U100: =S100+T100 -> 1685.47 | X100: 0 | Y100: =IF(N100>0.01,(T100-VLOOKUP(T100,quincenal,1))*VLOOKUP(T100,quincenal,3)+VLOOKUP(T100,quincenal,2)-VLOOKUP(T100,subquincenal,2),0) -> -114.53704 | Z100: =TRUNC(IF(Y100>0.01,Y100,0),2) -> 0 | AA100: =TRUNC(IF(Y100<0.01,-Y100,0),2) -> 114.53 | AB100: =U100-W100-X100-Z100+AA100 -> 1800 | AC100: =#REF! ->  | AE100: 55
A101: 47 | B101: 2 | C101: 2 | D101: BERNAL LOPEZ JUAN MANUEL | E101: PALR | H101: AGENTE MUNICIPAL SAN RAFAEL | I101: 15 | J101: TARJETA | L101: 0 | M101: 0 | N101: 82.1097 | O101: 1231.64 | P101: 49.26 | Q101: 86.21 | R101: 0 | S101: 135.47 | T101: 1231.64 | U101: 1367.11 | X101: 0 | Y101: -132.89288 | Z101: =TRUNC(IF(Y101>0.01,Y101,0),2) -> 0 | AA101: =TRUNC(IF(Y101<0.01,-Y101,0),2) -> 132.89 | AB101: 1500 | AC101: =#REF! ->  | AE101: 56
A102: 48 | B102: 2 | C102: 2 | D102: GONZALEZ RUIZ JOSE ANGEL | E102: GORA710130M39 | F102: GORA710130HJCNZN08 | H102: AGENTE MUNICIPAL SAN SEBASTIAN | I102: 15 | J102: TARJETA | L102: 0 | M102: 0 | N102: 75.7359 | O102: 1136.03 | P102: 45.44 | Q102: 79.52 | R102: 0 | S102: 124.96 | T102: 1136.03 | U102: 1260.99 | X102: 0 | Y102: -139.01192 | Z102: =TRUNC(IF(Y102>0.01,Y102,0),2) -> 0 | AA102: =TRUNC(IF(Y102<0.01,-Y102,0),2) -> 139.01 | AB102: 1400 | AC102: =#REF! ->  | AE102: 57
A103: 49 | B103: 2 | C103: 2 | D103: SIERRA LLAMAS JUAN JOSE | E103: SILJ660418 | F103: SILJ660418HJCRLN17 | H103: AGENTE MUNICIPAL DE PUERTA DE PERICOS | I103: 15 | J103: TARJETA | L103: 0 | M103: 0 | N103: 88.4834 | O103: 1327.25 | P103: 53.09 | Q103: 92.9 | R103: 0 | S103: 145.99 | T103: 1327.25 | U103: 1473.24 | X103: 0 | Y103: -126.77384 | Z103: =TRUNC(IF(Y103>0.01,Y103,0),2) -> 0 | AA103: =TRUNC(IF(Y103<0.01,-Y103,0),2) -> 126.77 | AB103: 1600.01 | AC103: =#REF! ->  | AE103: 58
D104: NAVARRO AYON RAUL JAIME | H104: AGENTE MUNICIPAL DE LA MAZATA | I104: 15 | J104: TARJETA | L104: 0 | M104: 0 | N104: 82.1097 | O104: =TRUNC(N104*I104,2) -> 1231.64 | P104: =TRUNC(N104*I104*0.04,2) -> 49.26 | Q104: =TRUNC(N104*0.07*I104,2) -> 86.21 | R104: =L104 -> 0 | S104: =TRUNC(Q104+P104+(IF(R104>519,519,R104))+IF(K104=0,0,K104*N104),2) -> 135.47 | T104: =TRUNC((IF(K104=0,I104*N104,(I104-K104)*N104))+(IF(R104<519,0,R104-519)),2)+M104 -> 1231.64 | U104: =S104+T104 -> 1367.11 | X104: 0 | Y104: =IF(N104>0.01,(T104-VLOOKUP(T104,quincenal,1))*VLOOKUP(T104,quincenal,3)+VLOOKUP(T104,quincenal,2)-VLOOKUP(T104,subquincenal,2),0) -> -132.89288 | Z104: 0 | AA104: 132.89 | AB104: =U104-W104-X104-Z104+AA104 -> 1500 | AE104: 59
D105: PEREZ LLAMAS SAMUEL | H105: AGENTE MUNICIPAL DE LA QUEBRADA | I105: 15 | J105: TARJETA | L105: 0 | M105: 0 | N105: 113.977 | O105: 1709.65 | P105: 68.38 | Q105: 119.67 | R105: 0 | S105: 188.05 | T105: 1709.65 | U105: 1897.7 | X105: 0 | Y105: -102.30024 | Z105: 0 | AA105: 102.3 | AB105: 2000 | AE105: 60
A106: 54 | D106: SANCHEZ NAVARRO ARTURO | H106: ASEO LA MAZATA | I106: 15 | J106: TARJETA | N106: 90.65 | O106: =TRUNC(N106*I106,2) -> 1359.75 | P106: =TRUNC(N106*I106*0.04,2) -> 54.39 | Q106: =TRUNC(N106*0.07*I106,2) -> 95.18 | R106: =L106 -> 0 | S106: =TRUNC(Q106+P106+(IF(R106>519,519,R106))+IF(K106=0,0,K106*N106),2) -> 149.57 | T106: =TRUNC((IF(K106=0,I106*N106,(I106-K106)*N106))+(IF(R106<519,0,R106-519)),2)+M106 -> 1359.75 | U106: =S106+T106 -> 1509.32 | X106: 0 | Y106: =IF(N106>0.01,(T106-VLOOKUP(T106,quincenal,1))*VLOOKUP(T106,quincenal,3)+VLOOKUP(T106,quincenal,2)-VLOOKUP(T106,subquincenal,2),0) -> -124.69384 | Z106: =TRUNC(IF(Y106>0.01,Y106,0),2) -> 0 | AA106: =TRUNC(IF(Y106<0.01,-Y106,0),2) -> 124.69 | AB106: =U106-W106-X106-Z106+AA106 -> 1634.01 | AE106: 61
D107: LOPEZ SILVA CARLOS DAMIAN | E107: GOHV780710 | F107: GOHV780710HJCMRL00 | G107: 2007-02-01 | H107: CHOFER RECOLECTOR | I107: 15 | J107: TARJETA | L107: 0 | M107: 0 | N107: =2530/15 -> 168.6666667 | O107: =TRUNC(N107*I107,2) -> 2530 | P107: =TRUNC(N107*I107*0.04,2) -> 101.2 | Q107: =TRUNC(N107*0.07*I107,2) -> 177.1 | R107: =L107 -> 0 | S107: =TRUNC(Q107+P107+(IF(R107>519,519,R107))+IF(K107=0,0,K107*N107),2) -> 278.3 | T107: =TRUNC((IF(K107=0,I107*N107,(I107-K107)*N107))+(IF(R107<519,0,R107-519)),2)+M107 -> 2530 | U107: =S107+T107 -> 2808.3 | X107: 0 | Y107: =IF(N107>0.01,(T107-VLOOKUP(T107,quincenal,1))*VLOOKUP(T107,quincenal,3)+VLOOKUP(T107,quincenal,2)-VLOOKUP(T107,subquincenal,2),0) -> 10.830912 | Z107: =TRUNC(IF(Y107>0.01,Y107,0),2) -> 10.83 | AA107: =TRUNC(IF(Y107<0.01,-Y107,0),2) -> 0 | AB107: =U107-W107-X107-Z107+AA107 -> 2797.47 | AC107: =[2]PORTADA!$D$10 -> 1 | AE107: 62
D108: AGENCIAS MUNICIPALES | O108: =SUM(O100:O107) -> 12044.41 | P108: =SUM(P100:P107) -> 481.75 | Q108: 843.08 | R108: 0 | S108: 1324.83 | T108: 12044.41 | U108: 13369.24 | V108: 0 | W108: 0 | X108: 0 | Y108: -862.271728 | Z108: 10.83 | AA108: 873.08 | AB108: 14231.49
D110: ADMIN ISTRACION DE LA HACIENDA MUNICIPAL
A111: 56 | B111: 3 | C111: 1 | D111: CAMARENA GONZALEZ RUBIO MARIO | H111: ENCARGADO DE HACIENDA PUBLICA | I111: 15 | J111: TARJETA | L111: 0 | M111: 0 | N111: =8355/15 -> 557 | O111: =TRUNC(N111*I111,2) -> 8355 | P111: =TRUNC(N111*I111*0.04,2) -> 334.2 | Q111: =TRUNC(N111*0.07*I111,2) -> 584.85 | R111: =L111 -> 0 | S111: =TRUNC(Q111+P111+(IF(R111>519,519,R111))+IF(K111=0,0,K111*N111),2) -> 919.05 | T111: =TRUNC((IF(K111=0,I111*N111,(I111-K111)*N111))+(IF(R111<519,0,R111-519)),2)+M111 -> 8355 | U111: =S111+T111 -> 9274.05 | X111: 0 | Y111: =IF(N111>0.01,(T111-VLOOKUP(T111,quincenal,1))*VLOOKUP(T111,quincenal,3)+VLOOKUP(T111,quincenal,2)-VLOOKUP(T111,subquincenal,2),0) -> 1237.438824 | Z111: =TRUNC(IF(Y111>0.01,Y111,0),2) -> 1237.43 | AA111: =TRUNC(IF(Y111<0.01,-Y111,0),2) -> 0 | AB111: =U111-W111-X111-Z111+AA111 -> 8036.62 | AC111: =#REF! ->  | AE111: 63
D112: PEREZ JAIME ARTURO | E112: PEJA600718 | F112: PEXJ600718HJCRXM09 | G112: 2009-01-05 | H112: AUXILIAR CONTABLE | I112: 15 | J112: TARJETA | L112: 0 | M112: 0 | N112: =5198/15 -> 346.5333333 | O112: =TRUNC(N112*I112,2) -> 5198 | P112: =TRUNC(N112*I112*0.04,2) -> 207.92 | Q112: =TRUNC(N112*0.07*I112,2) -> 363.86 | R112: =L112 -> 0 | S112: =TRUNC(Q112+P112+(IF(R112>519,519,R112))+IF(K112=0,0,K112*N112),2) -> 571.78 | T112: =TRUNC((IF(K112=0,I112*N112,(I112-K112)*N112))+(IF(R112<519,0,R112-519)),2)+M112 -> 5198 | U112: =S112+T112 -> 5769.78 | X112: 0 | Y112: =IF(N112>0.01,(T112-VLOOKUP(T112,quincenal,1))*VLOOKUP(T112,quincenal,3)+VLOOKUP(T112,quincenal,2)-VLOOKUP(T112,subquincenal,2),0) -> 563.103624 | Z112: =TRUNC(IF(Y112>0.01,Y112,0),2) -> 563.1 | AA112: =TRUNC(IF(Y112<0.01,-Y112,0),2) -> 0 | AB112: =U112-W112-X112-Z112+AA112 -> 5206.68 | AE112: 64
D113: ARQUIETA GONZALEZ IRENE MAGALI | H113: ENCARGADO DEL DEPTO DE ADQUISICIONES | I113: 15 | J113: TARJETA | L113: 0 | M113: 0 | N113: 217.7938 | O113: =TRUNC(N113*I113,2) -> 3266.9 | P113: =TRUNC(N113*I113*0.04,2) -> 130.67 | Q113: =TRUNC(N113*0.07*I113,2) -> 228.68 | R113: =L113 -> 0 | S113: =TRUNC(Q113+P113+(IF(R113>519,519,R113))+IF(K113=0,0,K113*N113),2) -> 359.35 | T113: =TRUNC((IF(K113=0,I113*N113,(I113-K113)*N113))+(IF(R113<519,0,R113-519)),2)+M113 -> 3266.9 | U113: =S113+T113 -> 3626.25 | X113: 0 | Y113: =IF(N113>0.01,(T113-VLOOKUP(T113,quincenal,1))*VLOOKUP(T113,quincenal,3)+VLOOKUP(T113,quincenal,2)-VLOOKUP(T113,subquincenal,2),0) -> 126.255632 | Z113: =TRUNC(IF(Y113>0.01,Y113,0),2) -> 126.25 | AA113: =TRUNC(IF(Y113<0.01,-Y113,0),2) -> 0 | AB113: =U113-W113-X113-Z113+AA113 -> 3500 | AC113: =#REF! ->  | AE113: 65
D114: GOMEZ ESQUIVEL JULIO ISRAEL | H114: CAPTURISTA EN TESORERIA | I114: 15 | J114: TARJETA | L114: 0 | M114: 0 | N114: 147.9014 | O114: =TRUNC(N114*I114,2) -> 2218.52 | P114: =TRUNC(N114*I114*0.04,2) -> 88.74 | Q114: =TRUNC(N114*0.07*I114,2) -> 155.29 | R114: =L114 -> 0 | S114: =TRUNC(Q114+P114+(IF(R114>519,519,R114))+IF(K114=0,0,K114*N114),2) -> 244.03 | T114: =TRUNC((IF(K114=0,I114*N114,(I114-K114)*N114))+(IF(R114<519,0,R114-519)),2)+M114 -> 2218.52 | U114: =S114+T114 -> 2462.55 | X114: 0 | Y114: =IF(N114>0.01,(T114-VLOOKUP(T114,quincenal,1))*VLOOKUP(T114,quincenal,3)+VLOOKUP(T114,quincenal,2)-VLOOKUP(T114,subquincenal,2),0) -> -37.458112 | Z114: =TRUNC(IF(Y114>0.01,Y114,0),2) -> 0 | AA114: =TRUNC(IF(Y114<0.01,-Y114,0),2) -> 37.45 | AB114: =U114-W114-X114-Z114+AA114 -> 2500 | AE114: 66
D115: MARTINEZ PAREDES ANNA VERONICA | E115: MAPA820618 | F115: MAPA820618MJCRRN00 | G115: 2007-01-31 | H115: AUXILIAR CONTABLE | I115: 15 | J115: TARJETA | L115: 0 | M115: 0 | N115: =4693/15 -> 312.8666667 | O115: =TRUNC(N115*I115,2) -> 4693 | P115: =TRUNC(N115*I115*0.04,2) -> 187.72 | Q115: =TRUNC(N115*0.07*I115,2) -> 328.51 | R115: =L115 -> 0 | S115: =TRUNC(Q115+P115+(IF(R115>519,519,R115))+IF(K115=0,0,K115*N115),2) -> 516.23 | T115: =TRUNC((IF(K115=0,I115*N115,(I115-K115)*N115))+(IF(R115<519,0,R115-519)),2)+M115 -> 4693 | U115: =S115+T115 -> 5209.23 | X115: 0 | Y115: =IF(N115>0.01,(T115-VLOOKUP(T115,quincenal,1))*VLOOKUP(T115,quincenal,3)+VLOOKUP(T115,quincenal,2)-VLOOKUP(T115,subquincenal,2),0) -> 468.491088 | Z115: =TRUNC(IF(Y115>0.01,Y115,0),2) -> 468.49 | AA115: =TRUNC(IF(Y115<0.01,-Y115,0),2) -> 0 | AB115: =U115-W115-X115-Z115+AA115 -> 4740.74 | AC115: =[2]PORTADA!$D$10 -> 1 | AE115: 67
D116: ADMIN ISTRACION DE LA HACIENDA MUNICIPAL | O116: =SUM(O111:O115) -> 23731.42 | P116: =SUM(P111:P115) -> 949.25 | Q116: 1661.19 | R116: 0 | S116: 2610.44 | T116: 23731.42 | U116: 26341.86 | V116: 0 | W116: 0 | X116: 0 | Y116: 2357.831056 | Z116: 2395.27 | AA116: 37.45 | AB116: 23984.04
D118: DEPARTAMENTO DE INGRESOS
A119: 61 | B119: 11 | C119: 17 | D119: ARIAS RAMOS MARIA DEL SOCORRO | E119: AIRS650514 | F119: AIRS650514MJCRMC06 | H119: CAJERA | I119: 15 | J119: TARJETA | L119: 0 | M119: 0 | N119: =3228/15 -> 215.2 | O119: =TRUNC(N119*I119,2) -> 3228 | P119: =TRUNC(N119*I119*0.04,2) -> 129.12 | Q119: =TRUNC(N119*0.07*I119,2) -> 225.96 | R119: =L119 -> 0 | S119: =TRUNC(Q119+P119+(IF(R119>519,519,R119))+IF(K119=0,0,K119*N119),2) -> 355.08 | T119: =TRUNC((IF(K119=0,I119*N119,(I119-K119)*N119))+(IF(R119<519,0,R119-519)),2)+M119 -> 3228 | U119: =S119+T119 -> 3583.08 | X119: 0 | Y119: =IF(N119>0.01,(T119-VLOOKUP(T119,quincenal,1))*VLOOKUP(T119,quincenal,3)+VLOOKUP(T119,quincenal,2)-VLOOKUP(T119,subquincenal,2),0) -> 122.023312 | Z119: =TRUNC(IF(Y119>0.01,Y119,0),2) -> 122.02 | AA119: =TRUNC(IF(Y119<0.01,-Y119,0),2) -> 0 | AB119: =U119-W119-X119-Z119+AA119 -> 3461.06 | AC119: =[2]PORTADA!$D$10 -> 1 | AE119: 68
D120: CABRALES GONZALEZ JOSE MANUEL | E120: CAGM680912 | F120: CAGM680912HJCBNN06 | G120: 2007-01-01 | H120: RECAUDADOR DE PISO | I120: 15 | J120: TARJETA | L120: 0 | M120: 0 | N120: =3016/15 -> 201.0666667 | O120: =TRUNC(N120*I120,2) -> 3016 | P120: =TRUNC(N120*I120*0.04,2) -> 120.64 | Q120: =TRUNC(N120*0.07*I120,2) -> 211.12 | R120: =L120 -> 0 | S120: =TRUNC(Q120+P120+(IF(R120>519,519,R120))+IF(K120=0,0,K120*N120),2) -> 331.76 | T120: =TRUNC((IF(K120=0,I120*N120,(I120-K120)*N120))+(IF(R120<519,0,R120-519)),2)+M120 -> 3016 | U120: =S120+T120 -> 3347.76 | X120: 0 | Y120: =IF(N120>0.01,(T120-VLOOKUP(T120,quincenal,1))*VLOOKUP(T120,quincenal,3)+VLOOKUP(T120,quincenal,2)-VLOOKUP(T120,subquincenal,2),0) -> 78.707712 | Z120: =TRUNC(IF(Y120>0.01,Y120,0),2) -> 78.7 | AA120: =TRUNC(IF(Y120<0.01,-Y120,0),2) -> 0 | AB120: =U120-W120-X120-Z120+AA120 -> 3269.06 | AC120: =[2]PORTADA!$D$10 -> 1 | AE120: 69
A121: LAURO | D121: BERNAL RUIZ LAURO | H121: NOTIFICADOR | I121: 5 | N121: 203.128 | O121: =TRUNC(N121*I121,2) -> 1015.64 | P121: =TRUNC(N121*I121*0.04,2) -> 40.62 | Q121: =TRUNC(N121*0.07*I121,2) -> 71.09 | R121: =L121 -> 0 | S121: =TRUNC(Q121+P121+(IF(R121>519,519,R121))+IF(K121=0,0,K121*N121),2) -> 111.71 | T121: =TRUNC((IF(K121=0,I121*N121,(I121-K121)*N121))+(IF(R121<519,0,R121-519)),2)+M121 -> 1015.64 | U121: =S121+T121 -> 1127.35 | X121: 0 | Y121: =IF(N121>0.01,(T121-VLOOKUP(T121,quincenal,1))*VLOOKUP(T121,quincenal,3)+VLOOKUP(T121,quincenal,2)-VLOOKUP(T121,subquincenal,2),0) -> -146.71688 | Z121: =TRUNC(IF(Y121>0.01,Y121,0),2) -> 0 | AA121: =TRUNC(IF(Y121<0.01,-Y121,0),2) -> 146.71 | AB121: =U121-W121-X121-Z121+AA121 -> 1274.06 | AE121: 70
D122: GONZALEZ ARQUIETA CESAR ARMANDO | E122: MAGG | H122: INSPECTOR TESORERIA | I122: 15 | J122: TARJETA | L122: 0 | M122: 0 | N122: 66.176 | O122: =TRUNC(N122*I122,2) -> 992.64 | P122: =TRUNC(N122*I122*0.04,2) -> 39.7 | Q122: =TRUNC(N122*0.07*I122,2) -> 69.48 | R122: =L122 -> 0 | S122: =TRUNC(Q122+P122+(IF(R122>519,519,R122))+IF(K122=0,0,K122*N122),2) -> 109.18 | T122: =TRUNC((IF(K122=0,I122*N122,(I122-K122)*N122))+(IF(R122<519,0,R122-519)),2)+M122 -> 992.64 | U122: =S122+T122 -> 1101.82 | X122: 0 | Y122: =IF(N122>0.01,(T122-VLOOKUP(T122,quincenal,1))*VLOOKUP(T122,quincenal,3)+VLOOKUP(T122,quincenal,2)-VLOOKUP(T122,subquincenal,2),0) -> -148.18888 | Z122: =TRUNC(IF(Y122>0.01,Y122,0),2) -> 0 | AA122: =TRUNC(IF(Y122<0.01,-Y122,0),2) -> 148.18 | AB122: =U122-W122-X122-Z122+AA122 -> 1250 | AC122: =#REF! ->  | AE122: 71
D123: DEPARTAMENTO DE INGRESOS | O123: =SUM(O119:O122) -> 8252.28 | P123: =SUM(P119:P122) -> 330.08 | Q123: 577.65 | R123: 0 | S123: 907.73 | T123: 8252.28 | U123: 9160.01 | V123: 0 | W123: 0 | X123: 0 | Y123: -94.174736 | Z123: 200.72 | AA123: 294.89 | AB123: 9254.18
D125: DEPARTAMENTO DE EGRESOS
A126: 63 | B126: 3 | C126: 7 | E126: LEGJ | H126: COORDINADOR DE EGRESOS | I126: 0 | J126: TARJETA | L126: 0 | M126: 0 | N126: =5198/15 -> 346.5333333 | O126: =TRUNC(N126*I126,2) -> 0 | P126: =TRUNC(N126*I126*0.04,2) -> 0 | Q126: =TRUNC(N126*0.07*I126,2) -> 0 | R126: =L126 -> 0 | S126: =TRUNC(Q126+P126+(IF(R126>519,519,R126))+IF(K126=0,0,K126*N126),2) -> 0 | T126: =TRUNC((IF(K126=0,I126*N126,(I126-K126)*N126))+(IF(R126<519,0,R126-519)),2)+M126 -> 0 | U126: =S126+T126 -> 0 | X126: 0 | Y126: =IF(N126>0.01,(T126-VLOOKUP(T126,quincenal,1))*VLOOKUP(T126,quincenal,3)+VLOOKUP(T126,quincenal,2)-VLOOKUP(T126,subquincenal,2),0) ->  | AB126: =U126-W126-X126-Z126+AA126 -> 0 | AC126: =#REF! ->  | AE126: 72
D127: DEPARTAMENTO DE EGRESOS | O127: =SUM(O126) -> 0 | P127: 0 | Q127: 0 | R127: 0 | S127: 0 | T127: 0 | U127: 0 | V127: 0 | W127: 0 | X127: 0 | Z127: 0 | AA127: 0 | AB127: 0
D129: DEPARTAMENTO DE INFORMATICA
A130: 64 | B130: 3 | C130: 12 | D130: ILLAN ARIAS CESAR | E130: DIME | H130: DIRECTOR DE IDE NFORMATICA Y SISTEMAS | I130: 15 | J130: TARJETA | L130: 0 | M130: 0 | N130: 260.287 | O130: =TRUNC(N130*I130,2) -> 3904.3 | P130: =TRUNC(N130*I130*0.04,2) -> 156.17 | Q130: =TRUNC(N130*0.07*I130,2) -> 273.3 | R130: =L130 -> 0 | S130: =TRUNC(Q130+P130+(IF(R130>519,519,R130))+IF(K130=0,0,K130*N130),2) -> 429.47 | T130: =TRUNC((IF(K130=0,I130*N130,(I130-K130)*N130))+(IF(R130<519,0,R130-519)),2)+M130 -> 3904.3 | U130: =S130+T130 -> 4333.77 | X130: 0 | Y130: =IF(N130>0.01,(T130-VLOOKUP(T130,quincenal,1))*VLOOKUP(T130,quincenal,3)+VLOOKUP(T130,quincenal,2)-VLOOKUP(T130,subquincenal,2),0) -> 333.7764 | Z130: =TRUNC(IF(Y130>0.01,Y130,0),2) -> 333.77 | AA130: =TRUNC(IF(Y130<0.01,-Y130,0),2) -> 0 | AB130: =U130-W130-X130-Z130+AA130 -> 4000 | AC130: =#REF! ->  | AE130: 73
D131: BERNAL ESTRADA EDGAR FERNANDO | H131: AUXILIAR DEL DEPARTAMENTO DE NFORMATICA | I131: 15 | J131: TARJETA | L131: 0 | M131: 0 | N131: 147.9015 | O131: =TRUNC(N131*I131,2) -> 2218.52 | P131: =TRUNC(N131*I131*0.04,2) -> 88.74 | Q131: =TRUNC(N131*0.07*I131,2) -> 155.29 | R131: =L131 -> 0 | S131: =TRUNC(Q131+P131+(IF(R131>519,519,R131))+IF(K131=0,0,K131*N131),2) -> 244.03 | T131: =TRUNC((IF(K131=0,I131*N131,(I131-K131)*N131))+(IF(R131<519,0,R131-519)),2)+M131 -> 2218.52 | U131: =S131+T131 -> 2462.55 | Y131: =IF(N131>0.01,(T131-VLOOKUP(T131,quincenal,1))*VLOOKUP(T131,quincenal,3)+VLOOKUP(T131,quincenal,2)-VLOOKUP(T131,subquincenal,2),0) -> -37.458112 | Z131: =TRUNC(IF(Y131>0.01,Y131,0),2) -> 0 | AA131: =TRUNC(IF(Y131<0.01,-Y131,0),2) -> 37.45 | AB131: =U131-W131-X131-Z131+AA131 -> 2500 | AC131: =#REF! ->  | AE131: 74
D132: DEPARTAMENTO DE COMPUTO E INFORMATICA | O132: =SUM(O130) -> 3904.3 | P132: 156.17 | Q132: 273.3 | R132: 0 | S132: 429.47 | T132: 3904.3 | U132: 4333.77 | V132: 0 | W132: 0 | X132: 0 | Y132: 333.7764 | Z132: 333.77 | AA132: 0 | AB132: 4000
D134: DEPARTAMENTO DE IMPUESTO PREDIAL Y CATASTRO
D135: ROBLES VENEGAS OSCAR HUMBERTO | H135: DIRECTOR | I135: 15 | J135: TARJETA | L135: 0 | M135: 0 | N135: 405.5341 | O135: =TRUNC(N135*I135,2) -> 6083.01 | P135: =TRUNC(N135*I135*0.04,2) -> 243.32 | Q135: =TRUNC(N135*0.07*I135,2) -> 425.81 | R135: =L135 -> 0 | S135: =TRUNC(Q135+P135+(IF(R135>519,519,R135))+IF(K135=0,0,K135*N135),2) -> 669.13 | T135: =TRUNC((IF(K135=0,I135*N135,(I135-K135)*N135))+(IF(R135<519,0,R135-519)),2)+M135 -> 6083.01 | U135: =S135+T135 -> 6752.14 | X135: 0 | Y135: =IF(N135>0.01,(T135-VLOOKUP(T135,quincenal,1))*VLOOKUP(T135,quincenal,3)+VLOOKUP(T135,quincenal,2)-VLOOKUP(T135,subquincenal,2),0) -> 752.14176 | Z135: =TRUNC(IF(Y135>0.01,Y135,0),2) -> 752.14 | AA135: =TRUNC(IF(Y135<0.01,-Y135,0),2) -> 0 | AB135: =U135-W135-X135-Z135+AA135 -> 6000 | AE135: 75
A136: 66 | B136: 3 | C136: 13 | D136: CASTELLANOS LOPEZ FRANCISCO JAVIER | E136: CAPB801105 | F136: CAPB801105MJCMRR06 | G136: 2007-01-01 | H136: SUB-DIRECTOR DE CATASTRO | I136: 15 | J136: TARJETA | L136: 0 | M136: 0 | N136: 274.0419 | O136: =TRUNC(N136*I136,2) -> 4110.62 | P136: =TRUNC(N136*I136*0.04,2) -> 164.42 | Q136: =TRUNC(N136*0.07*I136,2) -> 287.74 | R136: =L136 -> 0 | S136: =TRUNC(Q136+P136+(IF(R136>519,519,R136))+IF(K136=0,0,K136*N136),2) -> 452.16 | T136: =TRUNC((IF(K136=0,I136*N136,(I136-K136)*N136))+(IF(R136<519,0,R136-519)),2)+M136 -> 4110.62 | U136: =S136+T136 -> 4562.78 | X136: 0 | Y136: =IF(N136>0.01,(T136-VLOOKUP(T136,quincenal,1))*VLOOKUP(T136,quincenal,3)+VLOOKUP(T136,quincenal,2)-VLOOKUP(T136,subquincenal,2),0) -> 366.7876 | Z136: =TRUNC(IF(Y136>0.01,Y136,0),2) -> 366.78 | AA136: =TRUNC(IF(Y136<0.01,-Y136,0),2) -> 0 | AB136: =U136-W136-X136-Z136+AA136 -> 4196 | AC136: =#REF! ->  | AE136: 76
A137: 63 | B137: 3 | C137: 13 | E137: GOME840310 | F137: GOME840310MJCNRR06 | G137: 2009-01-01 | H137: SECRETARIA | I137: 0 | J137: TARJETA | L137: 0 | M137: 0 | N137: 170.38 | O137: 0 | P137: 0 | Q137: 0 | R137: 0 | S137: 0 | T137: 0 | U137: 0 | W137: 0 | X137: 0 | AB137: 0 | AC137: =#REF! -> 
A138: 67 | D138: GARCIA LOPEZ MARIA ESMERALDA | E138: HEBC | H138: SECRETARIA EN CATASTRO | I138: 15 | J138: TARJETA | L138: 0 | M138: 0 | N138: 147.369 | O138: 2210.53 | P138: 88.42 | Q138: 154.73 | R138: 0 | S138: 243.15 | T138: 2210.53 | U138: 2453.68 | Y138: =IF(N138>0.01,(T138-VLOOKUP(T138,quincenal,1))*VLOOKUP(T138,quincenal,3)+VLOOKUP(T138,quincenal,2)-VLOOKUP(T138,subquincenal,2),0) -> -38.327424 | Z138: =TRUNC(IF(Y138>0.01,Y138,0),2) -> 0 | AA138: =TRUNC(IF(Y138<0.01,-Y138,0),2) -> 38.32 | AB138: 2492 | AE138: 77
D139: ORTEGA CRUZ ERIKA NARSEDALIA | H139: SECRETARIA EN CATASTRO | I139: 15 | J139: TARJETA | L139: 0 | M139: 0 | N139: 147.369 | O139: =TRUNC(N139*I139,2) -> 2210.53 | P139: =TRUNC(N139*I139*0.04,2) -> 88.42 | Q139: =TRUNC(N139*0.07*I139,2) -> 154.73 | R139: =L139 -> 0 | S139: =TRUNC(Q139+P139+(IF(R139>519,519,R139))+IF(K139=0,0,K139*N139),2) -> 243.15 | T139: =TRUNC((IF(K139=0,I139*N139,(I139-K139)*N139))+(IF(R139<519,0,R139-519)),2)+M139 -> 2210.53 | U139: =S139+T139 -> 2453.68 | X139: 0 | Y139: =IF(N139>0.01,(T139-VLOOKUP(T139,quincenal,1))*VLOOKUP(T139,quincenal,3)+VLOOKUP(T139,quincenal,2)-VLOOKUP(T139,subquincenal,2),0) -> -38.327424 | Z139: =TRUNC(IF(Y139>0.01,Y139,0),2) -> 0 | AA139: =TRUNC(IF(Y139<0.01,-Y139,0),2) -> 38.32 | AB139: =U139-W139-X139-Z139+AA139 -> 2492 | AE139: 78
D140: DEPARTAMENTO DE IMPUESTO PREDIAL Y CATASTRO | O140: =SUM(O135:O139) -> 14614.69 | P140: 584.58 | Q140: 1023.01 | R140: 0 | S140: 1607.59 | T140: 14614.69 | U140: 16222.28 | V140: 0 | W140: 0 | X140: 0 | Y140: 1042.274512 | Z140: 1118.92 | AA140: 76.64 | AB140: 15180
D142: ADMINISTRACION DE LOS SERVICIOS PUBLICOS MUNICIPALES
A143: 69 | D143: MARISCAL MORALES JESUS RICARDO | E143: HEAM740507 | F143: HEAM740507HJCRGN04 | G143: 2008-05-01 | H143: DIRECTOR DE SERVICIOS ´PÚBLICOS MUNICIPALES | I143: 15 | J143: TARJETA | L143: 0 | M143: 0 | N143: 479.9059 | O143: =TRUNC(N143*I143,2) -> 7198.58 | P143: =TRUNC(N143*I143*0.04,2) -> 287.94 | Q143: =TRUNC(N143*0.07*I143,2) -> 503.9 | R143: =L143 -> 0 | S143: =TRUNC(Q143+P143+(IF(R143>519,519,R143))+IF(K143=0,0,K143*N143),2) -> 791.84 | T143: =TRUNC((IF(K143=0,I143*N143,(I143-K143)*N143))+(IF(R143<519,0,R143-519)),2)+M143 -> 7198.58 | U143: =S143+T143 -> 7990.42 | X143: 0 | Y143: =IF(N143>0.01,(T143-VLOOKUP(T143,quincenal,1))*VLOOKUP(T143,quincenal,3)+VLOOKUP(T143,quincenal,2)-VLOOKUP(T143,subquincenal,2),0) -> 990.427512 | Z143: =TRUNC(IF(Y143>0.01,Y143,0),2) -> 990.42 | AA143: =TRUNC(IF(Y143<0.01,-Y143,0),2) -> 0 | AB143: =U143-W143-X143-Z143+AA143 -> 7000 | AC143: =#REF! ->  | AE143: 79
A144: 70 | D144: CERVANTES VELAZCO ISAIAS | E144: IAOR | H144: ENCARGADO DE MANTENIMIENTO A VEHICULOS | I144: 15 | J144: TARJETA | L144: 0 | M144: 0 | N144: 295.625 | O144: =TRUNC(N144*I144,2) -> 4434.37 | P144: =TRUNC(N144*I144*0.04,2) -> 177.37 | Q144: =TRUNC(N144*0.07*I144,2) -> 310.4 | R144: =L144 -> 0 | S144: =TRUNC(Q144+P144+(IF(R144>519,519,R144))+IF(K144=0,0,K144*N144),2) -> 487.77 | T144: =TRUNC((IF(K144=0,I144*N144,(I144-K144)*N144))+(IF(R144<519,0,R144-519)),2)+M144 -> 4434.37 | U144: =S144+T144 -> 4922.14 | X144: 0 | Y144: =IF(N144>0.01,(T144-VLOOKUP(T144,quincenal,1))*VLOOKUP(T144,quincenal,3)+VLOOKUP(T144,quincenal,2)-VLOOKUP(T144,subquincenal,2),0) -> 422.144592 | Z144: =TRUNC(IF(Y144>0.01,Y144,0),2) -> 422.14 | AA144: =TRUNC(IF(Y144<0.01,-Y144,0),2) -> 0 | AB144: =U144-W144-X144-Z144+AA144 -> 4500 | AE144: 80
D145: HERNANDEZ AGUIRRE JOSE MANUEL | H145: OPERADOR DE MAQUINARIA | I145: 15 | N145: 228.53 | O145: =TRUNC(N145*I145,2) -> 3427.95 | P145: =TRUNC(N145*I145*0.04,2) -> 137.11 | Q145: =TRUNC(N145*0.07*I145,2) -> 239.95 | R145: =L145 -> 0 | S145: =TRUNC(Q145+P145+(IF(R145>519,519,R145))+IF(K145=0,0,K145*N145),2) -> 377.06 | T145: =TRUNC((IF(K145=0,I145*N145,(I145-K145)*N145))+(IF(R145<519,0,R145-519)),2)+M145 -> 3427.95 | U145: =S145+T145 -> 3805.01 | X145: 0 | Y145: =IF(N145>0.01,(T145-VLOOKUP(T145,quincenal,1))*VLOOKUP(T145,quincenal,3)+VLOOKUP(T145,quincenal,2)-VLOOKUP(T145,subquincenal,2),0) -> 143.777872 | Z145: =TRUNC(IF(Y145>0.01,Y145,0),2) -> 143.77 | AA145: =TRUNC(IF(Y145<0.01,-Y145,0),2) -> 0 | AB145: =U145-W145-X145-Z145+AA145 -> 3661.24 | AE145: 81
A146: 80 | D146: JUAREZ FLORES HUGO | H146: CHOFER | I146: 15 | J146: TARJETA | L146: 0 | M146: 0 | N146: 183.152 | O146: =TRUNC(N146*I146,2) -> 2747.28 | P146: =TRUNC(N146*I146*0.04,2) -> 109.89 | Q146: =TRUNC(N146*0.07*I146,2) -> 192.3 | R146: =L146 -> 0 | S146: =TRUNC(Q146+P146+(IF(R146>519,519,R146))+IF(K146=0,0,K146*N146),2) -> 302.19 | T146: =TRUNC((IF(K146=0,I146*N146,(I146-K146)*N146))+(IF(R146<519,0,R146-519)),2)+M146 -> 2747.28 | U146: =S146+T146 -> 3049.47 | X146: 0 | Y146: =IF(N146>0.01,(T146-VLOOKUP(T146,quincenal,1))*VLOOKUP(T146,quincenal,3)+VLOOKUP(T146,quincenal,2)-VLOOKUP(T146,subquincenal,2),0) -> 49.470976 | Z146: =TRUNC(IF(Y146>0.01,Y146,0),2) -> 49.47 | AA146: =TRUNC(IF(Y146<0.01,-Y146,0),2) -> 0 | AB146: =U146-W146-X146-Z146+AA146 -> 3000 | AE146: 82
D147: GARCIA MARTINEZ FRANCISCO RIGOBERTO | H147: AUX ILIAR DE LIMPIEZA PLAZA DE TOROS | I147: 13 | J147: TARJETA | N147: 147.9015 | O147: 1922.71 | P147: 76.9 | Q147: 134.59 | R147: 0 | S147: 211.49 | T147: 1922.71 | U147: 2134.2 | X147: 0 | Y147: -76.6644 | Z147: =TRUNC(IF(Y147>0.01,Y147,0),2) -> 0 | AA147: =TRUNC(IF(Y147<0.01,-Y147,0),2) -> 76.66 | AB147: 2210.86 | AE147: 84
D148: DOMINGUEZ HECTOR FREDDI | E148: BECR460228 | F148: BECR460207HJCRHS07 | G148: 2004-01-01 | H148: CHOFER | I148: 15 | J148: TARJETA | L148: 0 | M148: 0 | N148: 217.7938 | O148: 3266.9 | P148: 130.67 | Q148: 228.68 | R148: 0 | S148: 359.35 | T148: 3266.9 | U148: 3626.25 | X148: 0 | Y148: 126.255632 | Z148: =TRUNC(IF(Y148>0.01,Y148,0),2) -> 126.25 | AA148: =TRUNC(IF(Y148<0.01,-Y148,0),2) -> 0 | AB148: 3500 | AE148: 85
D149: DELGADO PACHECO RICARDO | H149: AYUDANTE | I149: 15 | J149: TARJETA | L149: 0 | M149: 0 | N149: 183.152 | O149: 2747.28 | P149: 109.89 | Q149: 192.3 | R149: 0 | S149: 302.19 | T149: 2747.28 | U149: 3049.47 | X149: 0 | Y149: 49.470976 | Z149: =TRUNC(IF(Y149>0.01,Y149,0),2) -> 49.47 | AA149: =TRUNC(IF(Y149<0.01,-Y149,0),2) -> 0 | AB149: 3000 | AE149: 86
D150: JUAREZ JIMENEZ ALFREDO | E150: BECR460228 | F150: BECR460207HJCRHS07 | G150: 2004-01-01 | H150: CHOFER | I150: 15 | J150: TARJETA | L150: 0 | M150: 0 | N150: 147.9015 | O150: 2218.52 | P150: 88.74 | Q150: 155.29 | R150: 0 | S150: 244.03 | T150: 2218.52 | U150: 2462.55 | Y150: -37.458112 | Z150: =TRUNC(IF(Y150>0.01,Y150,0),2) -> 0 | AA150: =TRUNC(IF(Y150<0.01,-Y150,0),2) -> 37.45 | AB150: 2500 | AE150: 87
D151: MOJARRO BERUMEN ENRIQUE | H151: EMPEDRADOR | I151: 15 | J151: TARJETA | L151: 0 | M151: 0 | N151: =2866/15 -> 191.0666667 | O151: =TRUNC(N151*I151,2) -> 2866 | P151: =TRUNC(N151*I151*0.04,2) -> 114.64 | Q151: =TRUNC(N151*0.07*I151,2) -> 200.62 | R151: =L151 -> 0 | S151: =TRUNC(Q151+P151+(IF(R151>519,519,R151))+IF(K151=0,0,K151*N151),2) -> 315.26 | T151: =TRUNC((IF(K151=0,I151*N151,(I151-K151)*N151))+(IF(R151<519,0,R151-519)),2)+M151 -> 2866 | U151: =S151+T151 -> 3181.26 | Y151: =IF(N151>0.01,(T151-VLOOKUP(T151,quincenal,1))*VLOOKUP(T151,quincenal,3)+VLOOKUP(T151,quincenal,2)-VLOOKUP(T151,subquincenal,2),0) -> 62.387712 | Z151: =TRUNC(IF(Y151>0.01,Y151,0),2) -> 62.38 | AA151: =TRUNC(IF(Y151<0.01,-Y151,0),2) -> 0 | AB151: =U151-W151-X151-Z151+AA151 -> 3118.88 | AE151: 88
D152: FERREL ALCANTAR EDMUNDO | H152: EMPEDRADOR | I152: 15 | J152: TARJETA | L152: 0 | M152: 0 | N152: =2866/15 -> 191.0666667 | O152: 2866 | P152: 114.64 | Q152: 200.62 | R152: 0 | S152: 315.26 | T152: 2866 | U152: 3181.26 | Y152: 62.387712 | Z152: 62.38 | AA152: 0 | AB152: 3118.88 | AE152: 89
D153: NAVARRO GUTIERREZ MOISES EDMUNDO | H153: AYUDANTE | I153: 15 | J153: TARJETA | L153: 0 | M153: 0 | N153: =2222/15 -> 148.1333333 | O153: 2222 | P153: 88.88 | Q153: 155.54 | R153: 0 | S153: 244.42 | T153: 2222 | U153: 2466.42 | Y153: =IF(N153>0.01,(T153-VLOOKUP(T153,quincenal,1))*VLOOKUP(T153,quincenal,3)+VLOOKUP(T153,quincenal,2)-VLOOKUP(T153,subquincenal,2),0) -> -37.079488 | Z153: 0 | AA153: 37.07 | AB153: 2503.49 | AE153: 90
D154: GALLEGOS RIVAS ADRIAN | H154: AYUDANTE | I154: 15 | J154: TARJETA | L154: 0 | M154: 0 | N154: =2222/15 -> 148.1333333 | O154: 2222 | P154: 88.88 | Q154: 155.54 | R154: 0 | S154: 244.42 | T154: 2222 | U154: 2466.42 | Y154: -37.079488 | Z154: 0 | AA154: 37.07 | AB154: 2503.49 | AE154: 91
D155: RAMIREZ GARCIA J. JESUS | H155: AYUDANTE | I155: 15 | J155: TARJETA | L155: 0 | M155: 0 | N155: =2222/15 -> 148.1333333 | O155: 2222 | P155: 88.88 | Q155: 155.54 | R155: 0 | S155: 244.42 | T155: 2222 | U155: 2466.42 | Y155: -37.079488 | Z155: 0 | AA155: 37.07 | AB155: 2503.49 | AE155: 92
D156: ORENDAIN BERNAL ROBERTO | H156: AYUDANTE | I156: 15 | J156: TARJETA | L156: 0 | M156: 0 | N156: =2222/15 -> 148.1333333 | O156: 2222 | P156: 88.88 | Q156: 155.54 | R156: 0 | S156: 244.42 | T156: 2222 | U156: 2466.42 | Y156: -37.079488 | Z156: 0 | AA156: 37.07 | AB156: 2503.49 | AE156: 93
D157: ACEVEDO OCHOA J. GUADALUPE | H157: ALMACENISTA | I157: 15 | J157: TARJETA | L157: 0 | M157: 0 | N157: 183.152 | O157: =TRUNC(N157*I157,2) -> 2747.28 | P157: =TRUNC(N157*I157*0.04,2) -> 109.89 | Q157: =TRUNC(N157*0.07*I157,2) -> 192.3 | R157: =L157 -> 0 | S157: =TRUNC(Q157+P157+(IF(R157>519,519,R157))+IF(K157=0,0,K157*N157),2) -> 302.19 | T157: =TRUNC((IF(K157=0,I157*N157,(I157-K157)*N157))+(IF(R157<519,0,R157-519)),2)+M157 -> 2747.28 | U157: =S157+T157 -> 3049.47 | X157: 0 | Y157: =IF(N157>0.01,(T157-VLOOKUP(T157,quincenal,1))*VLOOKUP(T157,quincenal,3)+VLOOKUP(T157,quincenal,2)-VLOOKUP(T157,subquincenal,2),0) -> 49.470976 | Z157: =TRUNC(IF(Y157>0.01,Y157,0),2) -> 49.47 | AA157: =TRUNC(IF(Y157<0.01,-Y157,0),2) -> 0 | AB157: =U157-W157-X157-Z157+AA157 -> 3000 | AE157: 94
D158: GONZALEZ AZPEITIA ALVARO | H158: AYUDANTE | I158: 15 | J158: TARJETA | L158: 0 | M158: 0 | N158: =1989/15 -> 132.6 | O158: =TRUNC(N158*I158,2) -> 1989 | P158: =TRUNC(N158*I158*0.04,2) -> 79.56 | Q158: =TRUNC(N158*0.07*I158,2) -> 139.23 | R158: =L158 -> 0 | S158: =TRUNC(Q158+P158+(IF(R158>519,519,R158))+IF(K158=0,0,K158*N158),2) -> 218.79 | T158: =TRUNC((IF(K158=0,I158*N158,(I158-K158)*N158))+(IF(R158<519,0,R158-519)),2)+M158 -> 1989 | U158: =S158+T158 -> 2207.79 | Y158: =IF(N158>0.01,(T158-VLOOKUP(T158,quincenal,1))*VLOOKUP(T158,quincenal,3)+VLOOKUP(T158,quincenal,2)-VLOOKUP(T158,subquincenal,2),0) -> -72.42184 | Z158: =TRUNC(IF(Y158>0.01,Y158,0),2) -> 0 | AA158: =TRUNC(IF(Y158<0.01,-Y158,0),2) -> 72.42 | AB158: =U158-W158-X158-Z158+AA158 -> 2280.21 | AE158: 95
D159: ARQUIETA VADILLO ARTURO | E159: AUVA551030FJ0 | F159: AUVA551030HJCRDR15 | H159: PINTOR GENERAL | I159: 15 | J159: SOBRE | L159: 0 | M159: 0 | N159: =4527/15 -> 301.8 | O159: 4527 | P159: 181.08 | Q159: 316.89 | R159: =L159 -> 0 | S159: 497.97 | T159: 4527 | U159: =S159+T159 -> 5024.97 | Y159: =IF(N159>0.01,(T159-VLOOKUP(T159,quincenal,1))*VLOOKUP(T159,quincenal,3)+VLOOKUP(T159,quincenal,2)-VLOOKUP(T159,subquincenal,2),0) -> 438.743888 | Z159: =TRUNC(IF(Y159>0.01,Y159,0),2) -> 438.74 | AA159: =TRUNC(IF(Y159<0.01,-Y159,0),2) -> 0 | AB159: =U159-W159-X159-Z159+AA159 -> 4586.23 | AE159: 96
D160: ADMINISTRACION DE LOS SERVICIOS PUBLICOS MUNICIPALES | O160: =SUM(O143:O159) -> 51846.87 | P160: =SUM(P143:P159) -> 2073.84 | Q160: 3629.23 | R160: 0 | S160: 5703.07 | T160: 51846.87 | U160: 57549.94 | V160: 0 | W160: 0 | X160: 0 | Y160: 2059.675544 | Z160: 2394.49 | AA160: 334.81 | AB160: 55490.26
D161: DIRECCION GENERAL DE OBRAS PUBLICAS
A162: 83 | B162: 4 | C162: 1 | D162: DAVALOS SALCEDO MIGUEL CARLOS | H162: DIRECTOR DE OBRAS PÚBLICAS | I162: 15 | J162: TARJETA | L162: 0 | M162: 0 | N162: 479.9059 | O162: =TRUNC(N162*I162,2) -> 7198.58 | P162: =TRUNC(N162*I162*0.04,2) -> 287.94 | Q162: =TRUNC(N162*0.07*I162,2) -> 503.9 | R162: =L162 -> 0 | S162: =TRUNC(Q162+P162+(IF(R162>519,519,R162))+IF(K162=0,0,K162*N162),2) -> 791.84 | T162: =TRUNC((IF(K162=0,I162*N162,(I162-K162)*N162))+(IF(R162<519,0,R162-519)),2)+M162 -> 7198.58 | U162: =S162+T162 -> 7990.42 | X162: 0 | Y162: =IF(N162>0.01,(T162-VLOOKUP(T162,quincenal,1))*VLOOKUP(T162,quincenal,3)+VLOOKUP(T162,quincenal,2)-VLOOKUP(T162,subquincenal,2),0) -> 990.427512 | Z162: =TRUNC(IF(Y162>0.01,Y162,0),2) -> 990.42 | AA162: =TRUNC(IF(Y162<0.01,-Y162,0),2) -> 0 | AB162: =U162-W162-X162-Z162+AA162 -> 7000 | AC162: =#REF! ->  | AE162: 97
D163: GUTIERREZ MARTINEZ JORGE | H163: SUB DIRECTOR DE OBRAS PÚBLICAS | I163: 15 | J163: TARJETA | L163: 0 | M163: 0 | N163: 331.436 | O163: =TRUNC(N163*I163,2) -> 4971.54 | P163: =TRUNC(N163*I163*0.04,2) -> 198.86 | Q163: =TRUNC(N163*0.07*I163,2) -> 348 | R163: =L163 -> 0 | S163: =TRUNC(Q163+P163+(IF(R163>519,519,R163))+IF(K163=0,0,K163*N163),2) -> 546.86 | T163: =TRUNC((IF(K163=0,I163*N163,(I163-K163)*N163))+(IF(R163<519,0,R163-519)),2)+M163 -> 4971.54 | U163: =S163+T163 -> 5518.4 | X163: 0 | Y163: =IF(N163>0.01,(T163-VLOOKUP(T163,quincenal,1))*VLOOKUP(T163,quincenal,3)+VLOOKUP(T163,quincenal,2)-VLOOKUP(T163,subquincenal,2),0) -> 518.405456 | Z163: =TRUNC(IF(Y163>0.01,Y163,0),2) -> 518.4 | AA163: =TRUNC(IF(Y163<0.01,-Y163,0),2) -> 0 | AB163: =U163-W163-X163-Z163+AA163 -> 5000 | AE163: 98
D164: FLORES IÑIGUEZ JUAN RAYMUNDO | E164: FOIJ8508313Z1 | F164: FOIJ850831HJCLXN07 | G164: 2007-01-01 | H164: SUB-DIRECTOR DESARROLLO URBANO | I164: 15 | J164: TARJETA | L164: 0 | M164: 0 | N164: =3741/15 -> 249.4 | O164: 3741 | P164: 149.64 | Q164: 261.87 | R164: 0 | S164: 411.51 | T164: 3741 | U164: 4152.51 | X164: 0 | Y164: =IF(N164>0.01,(T164-VLOOKUP(T164,quincenal,1))*VLOOKUP(T164,quincenal,3)+VLOOKUP(T164,quincenal,2)-VLOOKUP(T164,subquincenal,2),0) -> 307.6484 | Z164: 307.64 | AA164: 0 | AB164: 3844.87 | AC164: =[2]PORTADA!$D$10 -> 1 | AE164: 99
D165: RENTERIA MENDEZ FRANCISCO | E165: REMF850816I26 | F165: REMF850816HJCNNR00 | G165: 2008-03-05 | H165: AUXILIAR DE DIRECCIÓN | I165: 15 | J165: TARJETA | L165: 0 | M165: 0 | N165: =4385/15 -> 292.3333333 | O165: 4385 | P165: 175.4 | Q165: 306.95 | R165: 0 | S165: 482.35 | T165: 4385 | U165: 4867.35 | X165: 0 | Y165: 413.297488 | Z165: 413.29 | AA165: 0 | AB165: 4454.06 | AC165: =[2]PORTADA!$D$10 -> 1 | AE165: 100
D166: RENTERIA LOPEZ JUAN CARLOS | H166: AUXILIAR DE DESARROLLO URBANO | I166: 15 | N166: =2411.14/15 -> 160.7426667 | O166: =TRUNC(N166*I166,2) -> 2411.14 | P166: =TRUNC(N166*I166*0.04,2) -> 96.44 | Q166: =TRUNC(N166*0.07*I166,2) -> 168.77 | R166: =L166 -> 0 | S166: =TRUNC(Q166+P166+(IF(R166>519,519,R166))+IF(K166=0,0,K166*N166),2) -> 265.21 | T166: =TRUNC((IF(K166=0,I166*N166,(I166-K166)*N166))+(IF(R166<519,0,R166-519)),2)+M166 -> 2411.14 | U166: =S166+T166 -> 2676.35 | X166: 0 | Y166: =IF(N166>0.01,(T166-VLOOKUP(T166,quincenal,1))*VLOOKUP(T166,quincenal,3)+VLOOKUP(T166,quincenal,2)-VLOOKUP(T166,subquincenal,2),0) -> -2.101056 | Z166: =TRUNC(IF(Y166>0.01,Y166,0),2) -> 0 | AA166: =TRUNC(IF(Y166<0.01,-Y166,0),2) -> 2.1 | AB166: =U166-W166-X166-Z166+AA166 -> 2678.45 | AE166: 101
D167: NOLASCO VALLE ARTURO | E167: NOVA | H167: CHOFER | I167: 15 | J167: TARJETA | L167: 0 | M167: 0 | N167: =2866/15 -> 191.0666667 | O167: 2866 | P167: 114.64 | Q167: 200.62 | R167: 0 | S167: 315.26 | T167: 2866 | U167: 3181.26 | W167: 0 | X167: 0 | Y167: =IF(N167>0.01,(T167-VLOOKUP(T167,quincenal,1))*VLOOKUP(T167,quincenal,3)+VLOOKUP(T167,quincenal,2)-VLOOKUP(T167,subquincenal,2),0) -> 62.387712 | Z167: 62.38 | AA167: 0 | AB167: 3118.88 | AC167: =[2]PORTADA!$D$10 -> 1 | AE167: 102
D168: =D161 -> DIRECCION GENERAL DE OBRAS PUBLICAS | O168: =SUM(O162:O167) -> 25573.26 | P168: =SUM(P162:P167) -> 1022.92 | Q168: 1790.11 | R168: 0 | S168: 2813.03 | T168: 25573.26 | U168: 28386.29 | V168: 0 | W168: 0 | X168: 0 | Y168: 2290.065512 | Z168: 2292.13 | AA168: 2.1 | AB168: 26096.26
D170: DEPARTAMENTO DE CEMENTERIOS
D171: ILLAN RUIZ FERNANDO | E171: RIOA520619 | F171: RIOA520619HJCVRD05 | H171: ADMINISTRADOR DE CEMENTERIOS | I171: 15 | J171: TARJETA | L171: 0 | M171: 0 | N171: 217.7938 | O171: =TRUNC(N171*I171,2) -> 3266.9 | P171: =TRUNC(N171*I171*0.04,2) -> 130.67 | Q171: =TRUNC(N171*0.07*I171,2) -> 228.68 | R171: =L171 -> 0 | S171: =TRUNC(Q171+P171+(IF(R171>519,519,R171))+IF(K171=0,0,K171*N171),2) -> 359.35 | T171: =TRUNC((IF(K171=0,I171*N171,(I171-K171)*N171))+(IF(R171<519,0,R171-519)),2)+M171 -> 3266.9 | U171: =S171+T171 -> 3626.25 | X171: 0 | Y171: =IF(N171>0.01,(T171-VLOOKUP(T171,quincenal,1))*VLOOKUP(T171,quincenal,3)+VLOOKUP(T171,quincenal,2)-VLOOKUP(T171,subquincenal,2),0) -> 126.255632 | Z171: =TRUNC(IF(Y171>0.01,Y171,0),2) -> 126.25 | AA171: =TRUNC(IF(Y171<0.01,-Y171,0),2) -> 0 | AB171: =U171-W171-X171-Z171+AA171 -> 3500 | AE171: 103
D172: MURILLO SUAREZ HECTOR | E172: RIOA520619 | F172: RIOA520619HJCVRD05 | H172: AYUDANTE DE CEMENTERIOS | I172: 15 | J172: TARJETA | L172: 0 | M172: 0 | N172: 113.977 | O172: =TRUNC(N172*I172,2) -> 1709.65 | P172: =TRUNC(N172*I172*0.04,2) -> 68.38 | Q172: =TRUNC(N172*0.07*I172,2) -> 119.67 | R172: =L172 -> 0 | S172: =TRUNC(Q172+P172+(IF(R172>519,519,R172))+IF(K172=0,0,K172*N172),2) -> 188.05 | T172: =TRUNC((IF(K172=0,I172*N172,(I172-K172)*N172))+(IF(R172<519,0,R172-519)),2)+M172 -> 1709.65 | U172: =S172+T172 -> 1897.7 | X172: 0 | Y172: =IF(N172>0.01,(T172-VLOOKUP(T172,quincenal,1))*VLOOKUP(T172,quincenal,3)+VLOOKUP(T172,quincenal,2)-VLOOKUP(T172,subquincenal,2),0) -> -102.30024 | Z172: 0 | AA172: =TRUNC(IF(Y172<0.01,-Y172,0),2) -> 102.3 | AB172: =U172-W172-X172-Z172+AA172 -> 2000 | AE172: 104
D173: HERNANDEZ BAILON JUAN ALFREDO | I173: 15 | J173: TARJETA | L173: 0 | M173: 0 | N173: 113.977 | O173: =TRUNC(N173*I173,2) -> 1709.65 | P173: =TRUNC(N173*I173*0.04,2) -> 68.38 | Q173: =TRUNC(N173*0.07*I173,2) -> 119.67 | R173: =L173 -> 0 | S173: =TRUNC(Q173+P173+(IF(R173>519,519,R173))+IF(K173=0,0,K173*N173),2) -> 188.05 | T173: =TRUNC((IF(K173=0,I173*N173,(I173-K173)*N173))+(IF(R173<519,0,R173-519)),2)+M173 -> 1709.65 | U173: =S173+T173 -> 1897.7 | X173: 0 | Y173: =IF(N173>0.01,(T173-VLOOKUP(T173,quincenal,1))*VLOOKUP(T173,quincenal,3)+VLOOKUP(T173,quincenal,2)-VLOOKUP(T173,subquincenal,2),0) -> -102.30024 | Z173: 0 | AA173: =TRUNC(IF(Y173<0.01,-Y173,0),2) -> 102.3 | AB173: =U173-W173-X173-Z173+AA173 -> 2000 | AE173: 105
A174: 91 | B174: 5 | C174: 2 | D174: FAJARDO LOPEZ JORGE ANTONIO | E174: RIOA520619 | F174: RIOA520619HJCVRD05 | H174: ADMINISTRADOR DE CEMENTERIOS | I174: 15 | J174: TARJETA | L174: 0 | M174: 0 | N174: 113.977 | O174: =TRUNC(N174*I174,2) -> 1709.65 | P174: =TRUNC(N174*I174*0.04,2) -> 68.38 | Q174: =TRUNC(N174*0.07*I174,2) -> 119.67 | R174: =L174 -> 0 | S174: =TRUNC(Q174+P174+(IF(R174>519,519,R174))+IF(K174=0,0,K174*N174),2) -> 188.05 | T174: =TRUNC((IF(K174=0,I174*N174,(I174-K174)*N174))+(IF(R174<519,0,R174-519)),2)+M174 -> 1709.65 | U174: =S174+T174 -> 1897.7 | X174: 0 | Y174: =IF(N174>0.01,(T174-VLOOKUP(T174,quincenal,1))*VLOOKUP(T174,quincenal,3)+VLOOKUP(T174,quincenal,2)-VLOOKUP(T174,subquincenal,2),0) -> -102.30024 | Z174: 0 | AA174: =TRUNC(IF(Y174<0.01,-Y174,0),2) -> 102.3 | AB174: =U174-W174-X174-Z174+AA174 -> 2000 | AC174: =#REF! ->  | AE174: 106
D175: DEPARTAMENTO DE CEMENTERIOS | O175: =SUM(O171:O174) -> 8395.85 | P175: 335.81 | Q175: 587.69 | R175: 0 | S175: 923.5 | T175: 8395.85 | U175: 9319.35 | V175: 0 | W175: 0 | X175: 0 | Y175: -180.645088 | Z175: 126.25 | AA175: 306.9 | AB175: 9500
D177: DEPARTAMENTO DE RASTRO
D178: LOPEZ VILLEGAS J. JESUS | E178: LOVJ470602UN7 | F178: LOVJ470602HJCPLS07 | H178: GUARDA RASTRO | I178: 15 | J178: TARJETA | L178: 0 | M178: 0 | N178: =2367/15 -> 157.8 | O178: =TRUNC(N178*I178,2) -> 2367 | P178: =TRUNC(N178*I178*0.04,2) -> 94.68 | Q178: =TRUNC(N178*0.07*I178,2) -> 165.69 | R178: =L178 -> 0 | S178: =TRUNC(Q178+P178+(IF(R178>519,519,R178))+IF(K178=0,0,K178*N178),2) -> 260.37 | T178: =TRUNC((IF(K178=0,I178*N178,(I178-K178)*N178))+(IF(R178<519,0,R178-519)),2)+M178 -> 2367 | U178: =S178+T178 -> 2627.37 | X178: 0 | Y178: =IF(N178>0.01,(T178-VLOOKUP(T178,quincenal,1))*VLOOKUP(T178,quincenal,3)+VLOOKUP(T178,quincenal,2)-VLOOKUP(T178,subquincenal,2),0) -> -6.903488 | Z178: =TRUNC(IF(Y178>0.01,Y178,0),2) -> 0 | AA178: =TRUNC(IF(Y178<0.01,-Y178,0),2) -> 6.9 | AB178: =U178-W178-X178-Z178+AA178 -> 2634.27 | AC178: =[2]PORTADA!$D$10 -> 1 | AE178: 107
D179: FREGOSO BARBOZA CARLOS RAFAEL | E179: PARR | H179: VETERINARIO | I179: 15 | J179: TARJETA | L179: 0 | M179: 0 | N179: =3669/15 -> 244.6 | O179: =TRUNC(N179*I179,2) -> 3669 | P179: =TRUNC(N179*I179*0.04,2) -> 146.76 | Q179: =TRUNC(N179*0.07*I179,2) -> 256.83 | R179: =L179 -> 0 | S179: =TRUNC(Q179+P179+(IF(R179>519,519,R179))+IF(K179=0,0,K179*N179),2) -> 403.59 | T179: =TRUNC((IF(K179=0,I179*N179,(I179-K179)*N179))+(IF(R179<519,0,R179-519)),2)+M179 -> 3669 | U179: =S179+T179 -> 4072.59 | X179: 0 | Y179: =IF(N179>0.01,(T179-VLOOKUP(T179,quincenal,1))*VLOOKUP(T179,quincenal,3)+VLOOKUP(T179,quincenal,2)-VLOOKUP(T179,subquincenal,2),0) -> 296.1284 | Z179: =TRUNC(IF(Y179>0.01,Y179,0),2) -> 296.12 | AA179: =TRUNC(IF(Y179<0.01,-Y179,0),2) -> 0 | AB179: =U179-W179-X179-Z179+AA179 -> 3776.47 | AC179: =[2]PORTADA!$D$10 -> 1 | AE179: 108
D180: MARTINEZ TORRES JUSTINO | E180: MATJ | H180: AUXILIAR DE MENTENIMIENTO | I180: 15 | J180: TARJETA | L180: 0 | M180: 0 | N180: =1591/15 -> 106.0666667 | O180: =TRUNC(N180*I180,2) -> 1591 | P180: =TRUNC(N180*I180*0.04,2) -> 63.64 | Q180: =TRUNC(N180*0.07*I180,2) -> 111.37 | R180: =L180 -> 0 | S180: =TRUNC(Q180+P180+(IF(R180>519,519,R180))+IF(K180=0,0,K180*N180),2) -> 175.01 | T180: =TRUNC((IF(K180=0,I180*N180,(I180-K180)*N180))+(IF(R180<519,0,R180-519)),2)+M180 -> 1591 | U180: =S180+T180 -> 1766.01 | X180: 0 | Y180: =IF(N180>0.01,(T180-VLOOKUP(T180,quincenal,1))*VLOOKUP(T180,quincenal,3)+VLOOKUP(T180,quincenal,2)-VLOOKUP(T180,subquincenal,2),0) -> -109.89384 | Z180: =TRUNC(IF(Y180>0.01,Y180,0),2) -> 0 | AA180: =TRUNC(IF(Y180<0.01,-Y180,0),2) -> 109.89 | AB180: =U180-W180-X180-Z180+AA180 -> 1875.9 | AE180: 109
D181: DEPARTAMENTO DE RASTRO | O181: =SUM(O178:O180) -> 7627 | P181: =SUM(P178:P180) -> 305.08 | Q181: 533.89 | R181: 0 | S181: 838.97 | T181: 7627 | U181: 8465.97 | V181: 0 | W181: 0 | X181: 0 | Y181: 179.331072 | Z181: 296.12 | AA181: 116.79 | AB181: 8286.64 | AC181: 2 | AD181: 0
D183: DEPARTAMENTO DE MERCADOS
D184: GONZALEZ JARA J. REFUGIO JAVIER | E184: GOJR670808 | F184: GOJR670808HJCNRF13 | G184: 2007-03-17 | H184: VELADOR DEPTO DE MERCADOS | I184: 15 | J184: TARJETA | L184: 0 | M184: 0 | N184: =1577/15 -> 105.1333333 | O184: =TRUNC(N184*I184,2) -> 1577 | P184: =TRUNC(N184*I184*0.04,2) -> 63.08 | Q184: =TRUNC(N184*0.07*I184,2) -> 110.39 | R184: =L184 -> 0 | S184: =TRUNC(Q184+P184+(IF(R184>519,519,R184))+IF(K184=0,0,K184*N184),2) -> 173.47 | T184: =TRUNC((IF(K184=0,I184*N184,(I184-K184)*N184))+(IF(R184<519,0,R184-519)),2)+M184 -> 1577 | U184: =S184+T184 -> 1750.47 | X184: 0 | Y184: =IF(N184>0.01,(T184-VLOOKUP(T184,quincenal,1))*VLOOKUP(T184,quincenal,3)+VLOOKUP(T184,quincenal,2)-VLOOKUP(T184,subquincenal,2),0) -> -110.78984 | Z184: =TRUNC(IF(Y184>0.01,Y184,0),2) -> 0 | AA184: =TRUNC(IF(Y184<0.01,-Y184,0),2) -> 110.78 | AB184: =U184-W184-X184-Z184+AA184 -> 1861.25 | AC184: =[2]PORTADA!$D$10 -> 1 | AE184: 110
D185: MARTINEZ GONZALEZ JOSE DE JESUS | E185: MAGJ401015 | F185: MAGJ401015HJCRNC00 | G185: 2004-01-01 | H185: VELADOR DEPTO DE MERCADOS | I185: 15 | J185: TARJETA | L185: 0 | M185: 0 | N185: =1577/15 -> 105.1333333 | O185: =TRUNC(N185*I185,2) -> 1577 | P185: =TRUNC(N185*I185*0.04,2) -> 63.08 | Q185: =TRUNC(N185*0.07*I185,2) -> 110.39 | R185: =L185 -> 0 | S185: =TRUNC(Q185+P185+(IF(R185>519,519,R185))+IF(K185=0,0,K185*N185),2) -> 173.47 | T185: =TRUNC((IF(K185=0,I185*N185,(I185-K185)*N185))+(IF(R185<519,0,R185-519)),2)+M185 -> 1577 | U185: =S185+T185 -> 1750.47 | X185: 0 | Y185: =IF(N185>0.01,(T185-VLOOKUP(T185,quincenal,1))*VLOOKUP(T185,quincenal,3)+VLOOKUP(T185,quincenal,2)-VLOOKUP(T185,subquincenal,2),0) -> -110.78984 | Z185: =TRUNC(IF(Y185>0.01,Y185,0),2) -> 0 | AA185: =TRUNC(IF(Y185<0.01,-Y185,0),2) -> 110.78 | AB185: =U185-W185-X185-Z185+AA185 -> 1861.25 | AC185: =[2]PORTADA!$D$10 -> 1 | AE185: 111
D186: DEPARTAMENTO DE MERCADOS | O186: =SUM(O184:O185) -> 3154 | P186: =SUM(P184:P185) -> 126.16 | Q186: 220.78 | R186: 0 | S186: 346.94 | T186: 3154 | U186: 3500.94 | V186: 0 | W186: 0 | X186: 0 | Y186: -221.57968 | Z186: 0 | AA186: 221.56 | AB186: 3722.5
D188: DEPARTAMENTO DE ASEO PUBLICO
A189: 97 | B189: 5 | C189: 7 | D189: NAVARRO HERNANDEZ SOSTENES | E189: HUAB811011 | F189: HUAB810114HJCRGR01 | G189: 2007-02-01 | H189: SUPERVISOR DE ASEO PUBLICO | I189: 15 | J189: TARJETA | L189: 0 | M189: 0 | N189: 196.469 | O189: =TRUNC(N189*I189,2) -> 2947.03 | P189: =TRUNC(N189*I189*0.04,2) -> 117.88 | Q189: =TRUNC(N189*0.07*I189,2) -> 206.29 | R189: =L189 -> 0 | S189: =TRUNC(Q189+P189+(IF(R189>519,519,R189))+IF(K189=0,0,K189*N189),2) -> 324.17 | T189: =TRUNC((IF(K189=0,I189*N189,(I189-K189)*N189))+(IF(R189<519,0,R189-519)),2)+M189 -> 2947.03 | U189: =S189+T189 -> 3271.2 | X189: 0 | Y189: =IF(N189>0.01,(T189-VLOOKUP(T189,quincenal,1))*VLOOKUP(T189,quincenal,3)+VLOOKUP(T189,quincenal,2)-VLOOKUP(T189,subquincenal,2),0) -> 71.203776 | Z189: =TRUNC(IF(Y189>0.01,Y189,0),2) -> 71.2 | AA189: =TRUNC(IF(Y189<0.01,-Y189,0),2) -> 0 | AB189: =U189-W189-X189-Z189+AA189 -> 3200 | AC189: =#REF! ->  | AE189: 112
D190: HUERTA AGUILA BERNARDINO | E190: HUAB811011 | F190: HUAB810114HJCRGR01 | G190: 2007-02-01 | H190: RECOLECTOR ASEO PUBLICO | I190: 15 | J190: TARJETA | L190: 0 | M190: 0 | N190: =2222/15 -> 148.1333333 | O190: 2222 | P190: 88.88 | Q190: 155.54 | R190: 0 | S190: 244.42 | T190: 2222 | U190: 2466.42 | X190: 0 | Y190: =IF(N190>0.01,(T190-VLOOKUP(T190,quincenal,1))*VLOOKUP(T190,quincenal,3)+VLOOKUP(T190,quincenal,2)-VLOOKUP(T190,subquincenal,2),0) -> -37.079488 | Z190: 0 | AA190: 37.07 | AB190: 2503.49 | AC190: =[2]PORTADA!$D$10 -> 1 | AE190: 113
D191: GRACIA GOMEZ JAVIER | E191: GAGJ731114 | F191: GAGJ731114HJCRMV00 | G191: 2004-01-01 | H191: RECOLECTOR ASEO PUBLICO | I191: 15 | J191: TARJETA | L191: 0 | M191: 0 | N191: =2222/15 -> 148.1333333 | O191: 2222 | P191: 88.88 | Q191: 155.54 | R191: 0 | S191: 244.42 | T191: 2222 | U191: 2466.42 | X191: 0 | Y191: -37.079488 | Z191: 0 | AA191: 37.07 | AB191: 2503.49 | AC191: =[2]PORTADA!$D$10 -> 1 | AE191: 114
D192: FREGOZO ALVARADO ALFONSO | E192: FEAA650918 | F192: FEAA650818HJCRLL05 | G192: 2003-01-01 | H192: RECOLECTOR ASEO PUBLICO | I192: 15 | J192: TARJETA | L192: 0 | M192: 0 | N192: 148.1333333 | O192: 2222 | P192: 88.88 | Q192: 155.54 | R192: 0 | S192: 244.42 | T192: 2222 | U192: 2466.42 | X192: 0 | Y192: -37.079488 | Z192: 0 | AA192: 37.07 | AB192: 2503.49 | AC192: =[2]PORTADA!$D$10 -> 1 | AE192: 115
D193: TELLEZ GOMEZ VICENTE | H193: RECOLECTOR ASEO PUBLICO | I193: 15 | J193: TARJETA | L193: 0 | M193: 0 | N193: 148.1333333 | O193: 2222 | P193: 88.88 | Q193: 155.54 | R193: =L193 -> 0 | S193: 244.42 | T193: 2222 | U193: =S193+T193 -> 2466.42 | W193: 0 | X193: 0 | Y193: =IF(N193>0.01,(T193-VLOOKUP(T193,quincenal,1))*VLOOKUP(T193,quincenal,3)+VLOOKUP(T193,quincenal,2)-VLOOKUP(T193,subquincenal,2),0) -> -37.079488 | Z193: 0 | AA193: =TRUNC(IF(Y193<0.01,-Y193,0),2) -> 37.07 | AB193: =U193-W193-X193-Z193+AA193 -> 2503.49 | AE193: 116
D194: MARTINEZ VEJAR JUAN JOSE | E194: MAVJ710822 | F194: MAVJ710822HJCRJN04 | G194: 2004-01-01 | H194: CHOFER ASEO PUBLICO | I194: 15 | J194: TARJETA | L194: 0 | M194: 0 | N194: =2659/15 -> 177.2666667 | O194: 2659 | P194: 106.36 | Q194: 186.13 | R194: =L194 -> 0 | S194: 292.49 | T194: 2659 | U194: =S194+T194 -> 2951.49 | X194: 0 | Y194: =IF(N194>0.01,(T194-VLOOKUP(T194,quincenal,1))*VLOOKUP(T194,quincenal,3)+VLOOKUP(T194,quincenal,2)-VLOOKUP(T194,subquincenal,2),0) -> 39.866112 | Z194: 39.86 | AA194: =TRUNC(IF(Y194<0.01,-Y194,0),2) -> 0 | AB194: =U194-W194-X194-Z194+AA194 -> 2911.63 | AC194: =[2]PORTADA!$D$10 -> 1 | AE194: 117
D195: HERNANDEZ RICO JUAN JOSE | E195: MATM450918 | F195: MATM451028HJCRRG08 | G195: 2004-01-01 | H195: CHOFER ASEO PUBLICO | I195: 15 | J195: TARJETA | L195: 0 | M195: 0 | N195: =2745/15 -> 183 | O195: 2745 | P195: 109.8 | Q195: 192.15 | R195: 0 | S195: 301.95 | T195: 2745 | U195: 3046.95 | X195: 0 | Y195: 49.222912 | Z195: =TRUNC(IF(Y195>0.01,Y195,0),2) -> 49.22 | AA195: =TRUNC(IF(Y195<0.01,-Y195,0),2) -> 0 | AB195: 2997.73 | AC195: =[2]PORTADA!$D$10 -> 1 | AE195: 118
D196: RICO ARCE VICTOR | E196: BECR460228 | F196: BECR460207HJCRHS07 | G196: 2004-01-01 | H196: CHOFER ASEO PUBLICO | I196: 15 | J196: TARJETA | L196: 0 | M196: 0 | N196: =2745/15 -> 183 | O196: 2745 | P196: 109.8 | Q196: 192.15 | R196: 0 | S196: 301.95 | T196: 2745 | U196: 3046.95 | X196: 0 | Y196: 49.222912 | Z196: =TRUNC(IF(Y196>0.01,Y196,0),2) -> 49.22 | AA196: =TRUNC(IF(Y196<0.01,-Y196,0),2) -> 0 | AB196: 2997.73 | AE196: 119
D197: MENDEZ GARCIA MIGUEL ANGEL | E197: MEGM851109 | F197: MEGM851109HJCNRG03 | G197: 2009-01-16 | H197: AUX. DE LIMPIEZA GRAL. | I197: 15 | J197: TARJETA | L197: 0 | M197: 0 | N197: =2745/15 -> 183 | O197: 2745 | P197: 109.8 | Q197: 192.15 | R197: 0 | S197: 301.95 | T197: 2745 | U197: 3046.95 | X197: 0 | Y197: 49.222912 | Z197: 49.22 | AA197: 0 | AB197: 2997.73 | AC197: =[2]PORTADA!$D$10 -> 1 | AE197: 120
D198: CISNEROS VAZQUEZ RAMIRO | E198: CIVR540430 | F198: CIVR540430HJCSZM04 | G198: 2007-01-01 | H198: RECOLECTOR ASEO PUBLICO | I198: 15 | J198: TARJETA | L198: 0 | M198: 0 | N198: =2222/15 -> 148.1333333 | O198: 2222 | P198: 88.88 | Q198: 155.54 | R198: 0 | S198: 244.42 | T198: 2222 | U198: 2466.42 | X198: 0 | Y198: -37.079488 | Z198: 0 | AA198: 37.07 | AB198: 2503.49 | AC198: =[2]PORTADA!$D$10 -> 1 | AE198: 121
D199: DEPARTAMENTO DE ASEO PUBLICO | O199: =SUM(O189:O198) -> 24951.03 | P199: =SUM(P189:P198) -> 998.04 | Q199: 1746.57 | R199: 0 | S199: 2744.61 | T199: 24951.03 | U199: 27695.64 | V199: 0 | W199: 0 | X199: 0 | Y199: 73.341184 | Z199: 258.72 | AA199: 185.35 | AB199: 27622.27
D201: DEPARTAMENTO DE PARQUES Y JARDINES
A202: 107 | B202: 5 | C202: 8 | D202: NAVARRO HUERTA ISIDRO | E202: HUCR450811 | F202: HUCR450831HJCRRM08 | G202: 2004-01-01 | H202: SUPERVISOR DE PARQUES Y JARDINES | I202: 15 | J202: TARJETA | L202: 0 | M202: 0 | N202: 196.469 | O202: =TRUNC(N202*I202,2) -> 2947.03 | P202: =TRUNC(N202*I202*0.04,2) -> 117.88 | Q202: =TRUNC(N202*0.07*I202,2) -> 206.29 | R202: =L202 -> 0 | S202: =TRUNC(Q202+P202+(IF(R202>519,519,R202))+IF(K202=0,0,K202*N202),2) -> 324.17 | T202: =TRUNC((IF(K202=0,I202*N202,(I202-K202)*N202))+(IF(R202<519,0,R202-519)),2)+M202 -> 2947.03 | U202: =S202+T202 -> 3271.2 | X202: 0 | Y202: =IF(N202>0.01,(T202-VLOOKUP(T202,quincenal,1))*VLOOKUP(T202,quincenal,3)+VLOOKUP(T202,quincenal,2)-VLOOKUP(T202,subquincenal,2),0) -> 71.203776 | Z202: =TRUNC(IF(Y202>0.01,Y202,0),2) -> 71.2 | AA202: =TRUNC(IF(Y202<0.01,-Y202,0),2) -> 0 | AB202: =U202-W202-X202-Z202+AA202 -> 3200 | AC202: =#REF! ->  | AE202: 122
D203: HUERTA CORTES RAMON | E203: HUCR450811 | F203: HUCR450831HJCRRM08 | G203: 2004-01-01 | H203: JARDINERO | I203: 15 | J203: TARJETA | L203: 0 | M203: 0 | N203: =2307/15 -> 153.8 | O203: 2307 | P203: 92.28 | Q203: 161.49 | R203: 0 | S203: 253.77 | T203: 2307 | U203: 2560.77 | X203: 0 | Y203: =IF(N203>0.01,(T203-VLOOKUP(T203,quincenal,1))*VLOOKUP(T203,quincenal,3)+VLOOKUP(T203,quincenal,2)-VLOOKUP(T203,subquincenal,2),0) -> -27.831488 | Z203: 0 | AA203: 27.83 | AB203: 2588.6 | AC203: =[2]PORTADA!$D$10 -> 1 | AE203: 123
D204: SILVA PINTO J ASUNCIÓN | E204: SIPA400815 | F204: SIPA400815HJCLNS02 | G204: 2004-01-01 | H204: JARDINERO | I204: 15 | J204: TARJETA | L204: 0 | M204: 0 | N204: =2222/15 -> 148.1333333 | O204: 2222 | P204: 88.88 | Q204: 155.54 | R204: 0 | S204: 244.42 | T204: 2222 | U204: 2466.42 | X204: 0 | Y204: -37.079488 | Z204: 0 | AA204: 37.07 | AB204: 2503.49 | AC204: =[2]PORTADA!$D$10 -> 1 | AE204: 124
D205: MILLAN GARCIA J. JESUS | H205: JARDINERO | I205: 15 | J205: TARJETA | L205: 0 | M205: 0 | N205: =2222/15 -> 148.1333333 | O205: 2222 | P205: 88.88 | Q205: 155.54 | R205: 0 | S205: 244.42 | T205: 2222 | U205: 2466.42 | X205: 0 | Y205: -37.079488 | Z205: 0 | AA205: 37.07 | AB205: 2503.49 | AE205: 125
D206: MARTINEZ CRUZ JUAN | H206: JARDINERO | I206: 15 | J206: TARJETA | L206: 0 | M206: 0 | N206: 148.1333333 | O206: 2222 | P206: 88.88 | Q206: 155.54 | R206: 0 | S206: 244.42 | T206: 2222 | U206: 2466.42 | W206: 0 | X206: 0 | Y206: -37.079488 | Z206: 0 | AA206: 37.07 | AB206: 2503.49 | AE206: 126
D207: ACOSTA MURILLO JOAQUIN | H207: JARDINERO | I207: 15 | J207: TARJETA | L207: 0 | M207: 0 | N207: 148.1333333 | O207: 2222 | P207: 88.88 | Q207: 155.54 | R207: 0 | S207: 244.42 | T207: 2222 | U207: 2466.42 | X207: 0 | Y207: -37.079488 | Z207: 0 | AA207: 37.07 | AB207: 2503.49 | AE207: 127
D208: REGALADO BAÑUELOS FRANCISCO | E208: REBF441211 | F208: REBF441211HJCGXR05 | G208: 2005-01-01 | H208: BARRENDERO | I208: 15 | J208: TARJETA | L208: 0 | M208: 0 | N208: 148.1333333 | O208: 2222 | P208: 88.88 | Q208: 155.54 | R208: 0 | S208: 244.42 | T208: 2222 | U208: 2466.42 | X208: 0 | Y208: -37.079488 | Z208: =TRUNC(IF(Y208>0.01,Y208,0),2) -> 0 | AA208: 37.07 | AB208: 2503.49 | AC208: =[2]PORTADA!$D$10 -> 1 | AE208: 128
D209: RUIZ MUÑOZ LUIS | E209: RUML530529GL7 | F209: RUML530529HJCZXS03 | G209: 2006-01-01 | H209: VIGILANTE | I209: 15 | J209: TARJETA | L209: 0 | M209: 0 | N209: =2118/15 -> 141.2 | O209: 2118 | P209: 84.72 | Q209: 148.26 | R209: =L209 -> 0 | S209: 232.98 | T209: 2118 | U209: =S209+T209 -> 2350.98 | W209: 0 | X209: 0 | Y209: =IF(N209>0.01,(T209-VLOOKUP(T209,quincenal,1))*VLOOKUP(T209,quincenal,3)+VLOOKUP(T209,quincenal,2)-VLOOKUP(T209,subquincenal,2),0) -> -62.344688 | Z209: =TRUNC(IF(Y209>0.01,Y209,0),2) -> 0 | AA209: =TRUNC(IF(Y209<0.01,-Y209,0),2) -> 62.34 | AB209: =U209-W209-X209-Z209+AA209 -> 2413.32 | AE209: 129
D210: AYALA RODRIGUEZ MIGUEL ANGEL | E210: AARM690504 | F210: AARM690504HJCYDG04 | G210: 2004-01-01 | H210: PODADOR | I210: 15 | J210: TARJETA | L210: 0 | M210: 0 | N210: =2758/15 -> 183.8666667 | O210: 2758 | P210: 110.32 | Q210: 193.06 | R210: 0 | S210: 303.38 | T210: 2758 | U210: 3061.38 | X210: 0 | Y210: 50.637312 | Z210: =TRUNC(IF(Y210>0.01,Y210,0),2) -> 50.63 | AA210: 0 | AB210: 3010.75 | AC210: =[2]PORTADA!$D$10 -> 1 | AE210: 130
D211: VERTEDERO MUNICIPAL | O211: =SUM(O202:O210) -> 21240.03 | P211: =SUM(P202:P210) -> 849.6 | Q211: 1486.8 | R211: 0 | S211: 2336.4 | T211: 21240.03 | U211: 23576.43 | V211: 0 | W211: 0 | X211: 0 | Y211: -153.732528 | Z211: 121.83 | AA211: 275.52 | AB211: 23730.12
D213: DEPARTAMENTO DE ALUMBRADO PUBLICO
D214: RUIZ HERNANDEZ CELESTINO | E214: RUHC540519 | F214: RUHC540519HJCZRL03 | G214: 2004-01-01 | H214: JEFE DE ALUMBRADO PUBLICO | I214: 15 | J214: TARJETA | L214: 0 | M214: 0 | N214: =3428/15 -> 228.5333333 | O214: =TRUNC(N214*I214,2) -> 3428 | P214: =TRUNC(N214*I214*0.04,2) -> 137.12 | Q214: =TRUNC(N214*0.07*I214,2) -> 239.96 | R214: =L214 -> 0 | S214: =TRUNC(Q214+P214+(IF(R214>519,519,R214))+IF(K214=0,0,K214*N214),2) -> 377.08 | T214: =TRUNC((IF(K214=0,I214*N214,(I214-K214)*N214))+(IF(R214<519,0,R214-519)),2)+M214 -> 3428 | U214: =S214+T214 -> 3805.08 | X214: 0 | Y214: =IF(N214>0.01,(T214-VLOOKUP(T214,quincenal,1))*VLOOKUP(T214,quincenal,3)+VLOOKUP(T214,quincenal,2)-VLOOKUP(T214,subquincenal,2),0) -> 143.783312 | Z214: =TRUNC(IF(Y214>0.01,Y214,0),2) -> 143.78 | AA214: =TRUNC(IF(Y214<0.01,-Y214,0),2) -> 0 | AB214: =U214-W214-X214-Z214+AA214 -> 3661.3 | AC214: =[2]PORTADA!$D$10 -> 1 | AE214: 131
D215: LARES RODRIGUEZ JOSE ANGEL | H215: ENCARGADO DE ALUMBRADO PUBLICO | I215: 0 | J215: TARJETA | L215: 0 | M215: 0 | N215: 217.7938 | O215: =TRUNC(N215*I215,2) -> 0 | P215: =TRUNC(N215*I215*0.04,2) -> 0 | Q215: =TRUNC(N215*0.07*I215,2) -> 0 | R215: =L215 -> 0 | S215: =TRUNC(Q215+P215+(IF(R215>519,519,R215))+IF(K215=0,0,K215*N215),2) -> 0 | T215: =TRUNC((IF(K215=0,I215*N215,(I215-K215)*N215))+(IF(R215<519,0,R215-519)),2)+M215 -> 0 | U215: =S215+T215 -> 0 | X215: 0 | Y215: =IF(N215>0.01,(T215-VLOOKUP(T215,quincenal,1))*VLOOKUP(T215,quincenal,3)+VLOOKUP(T215,quincenal,2)-VLOOKUP(T215,subquincenal,2),0) ->  | Z215: 0 | AA215: 0 | AB215: =U215-W215-X215-Z215+AA215 -> 0 | AE215: 132
D216: HERNANDEZ ALCARAZ ALVARO | H216: AUXILIARDE ALUMBRADO PUBLICO | I216: 15 | J216: TARJETA | L216: 0 | M216: 0 | N216: 217.7938 | O216: =TRUNC(N216*I216,2) -> 3266.9 | P216: =TRUNC(N216*I216*0.04,2) -> 130.67 | Q216: =TRUNC(N216*0.07*I216,2) -> 228.68 | R216: =L216 -> 0 | S216: =TRUNC(Q216+P216+(IF(R216>519,519,R216))+IF(K216=0,0,K216*N216),2) -> 359.35 | T216: =TRUNC((IF(K216=0,I216*N216,(I216-K216)*N216))+(IF(R216<519,0,R216-519)),2)+M216 -> 3266.9 | U216: =S216+T216 -> 3626.25 | X216: 0 | Y216: =IF(N216>0.01,(T216-VLOOKUP(T216,quincenal,1))*VLOOKUP(T216,quincenal,3)+VLOOKUP(T216,quincenal,2)-VLOOKUP(T216,subquincenal,2),0) -> 126.255632 | Z216: =TRUNC(IF(Y216>0.01,Y216,0),2) -> 126.25 | AA216: =TRUNC(IF(Y216<0.01,-Y216,0),2) -> 0 | AB216: =U216-W216-X216-Z216+AA216 -> 3500 | AE216: 133
D217: ROJAS HUERTA CARLOS ALFREDO | H217: AUXILIARDE ALUMBRADO PUBLICO | I217: 15 | J217: TARJETA | L217: 0 | M217: 0 | N217: =2222/15 -> 148.1333333 | O217: =TRUNC(N217*I217,2) -> 2222 | P217: =TRUNC(N217*I217*0.04,2) -> 88.88 | Q217: =TRUNC(N217*0.07*I217,2) -> 155.54 | R217: =L217 -> 0 | S217: =TRUNC(Q217+P217+(IF(R217>519,519,R217))+IF(K217=0,0,K217*N217),2) -> 244.42 | T217: =TRUNC((IF(K217=0,I217*N217,(I217-K217)*N217))+(IF(R217<519,0,R217-519)),2)+M217 -> 2222 | U217: =S217+T217 -> 2466.42 | X217: 0 | Y217: =IF(N217>0.01,(T217-VLOOKUP(T217,quincenal,1))*VLOOKUP(T217,quincenal,3)+VLOOKUP(T217,quincenal,2)-VLOOKUP(T217,subquincenal,2),0) -> -37.079488 | Z217: =TRUNC(IF(Y217>0.01,Y217,0),2) -> 0 | AA217: =TRUNC(IF(Y217<0.01,-Y217,0),2) -> 37.07 | AB217: =U217-W217-X217-Z217+AA217 -> 2503.49 | AE217: 134
D218: DEPARTAMENTO DE ALUMBRADO PUBLICO | O218: =SUM(O214:O217) -> 8916.9 | P218: =SUM(P214:P217) -> 356.67 | Q218: 624.18 | R218: 0 | S218: 980.85 | T218: 8916.9 | U218: 9897.75 | V218: 0 | W218: 0 | X218: 0 | Z218: 270.03 | AA218: 37.07 | AB218: 9664.79
D221: DEPARTAMENTO DE DEPORTES
A222: 120 | B222: 5 | C222: 14 | D222: ACOSTA GONZALEZ MIGUEL | H222: ENCARGADO DE LA UNIDAD DEPORTIVA | I222: 15 | J222: TARJETA | L222: 0 | M222: 0 | N222: 147.9014 | O222: =TRUNC(N222*I222,2) -> 2218.52 | P222: =TRUNC(N222*I222*0.04,2) -> 88.74 | Q222: =TRUNC(N222*0.07*I222,2) -> 155.29 | R222: =L222 -> 0 | S222: =TRUNC(Q222+P222+(IF(R222>519,519,R222))+IF(K222=0,0,K222*N222),2) -> 244.03 | T222: =TRUNC((IF(K222=0,I222*N222,(I222-K222)*N222))+(IF(R222<519,0,R222-519)),2)+M222 -> 2218.52 | U222: =S222+T222 -> 2462.55 | X222: 0 | Y222: =IF(N222>0.01,(T222-VLOOKUP(T222,quincenal,1))*VLOOKUP(T222,quincenal,3)+VLOOKUP(T222,quincenal,2)-VLOOKUP(T222,subquincenal,2),0) -> -37.458112 | Z222: =TRUNC(IF(Y222>0.01,Y222,0),2) -> 0 | AA222: =TRUNC(IF(Y222<0.01,-Y222,0),2) -> 37.45 | AB222: =U222-W222-X222-Z222+AA222 -> 2500 | AE222: 135
A223: 121 | D223: GONZALEZ FLORES RAMON | H223: AUXILIAR DE MANTENIMIENTO DE LA UNIDAD DEPORTIVA | I223: 15 | J223: TARJETA | L223: 0 | M223: 0 | N223: 113.977 | O223: 1709.65 | P223: 68.38 | Q223: 119.67 | R223: 0 | S223: 188.05 | T223: 1709.65 | U223: 1897.7 | X223: 0 | Y223: -102.30024 | Z223: 0 | AA223: 102.3 | AB223: 2000 | AE223: 136
D224: RODRIGUEZ ARQUIETA DANIEL ORLANDO | H224: JARDINERO EN LA UNIDAD DEPORTIVA | I224: 15 | J224: TARJETA | L224: 0 | M224: 0 | N224: 113.977 | O224: =TRUNC(N224*I224,2) -> 1709.65 | P224: =TRUNC(N224*I224*0.04,2) -> 68.38 | Q224: =TRUNC(N224*0.07*I224,2) -> 119.67 | R224: =L224 -> 0 | S224: =TRUNC(Q224+P224+(IF(R224>519,519,R224))+IF(K224=0,0,K224*N224),2) -> 188.05 | T224: =TRUNC((IF(K224=0,I224*N224,(I224-K224)*N224))+(IF(R224<519,0,R224-519)),2)+M224 -> 1709.65 | U224: =S224+T224 -> 1897.7 | X224: 0 | Y224: =IF(N224>0.01,(T224-VLOOKUP(T224,quincenal,1))*VLOOKUP(T224,quincenal,3)+VLOOKUP(T224,quincenal,2)-VLOOKUP(T224,subquincenal,2),0) -> -102.30024 | Z224: 0 | AA224: =TRUNC(IF(Y224<0.01,-Y224,0),2) -> 102.3 | AB224: =U224-W224-X224-Z224+AA224 -> 2000 | AE224: 137
D225: MORA SANCHEZ EUSTACIO | H225: JARDINERO EN LA UNIDAD DEPORTIVA | I225: 15 | J225: TARJETA | L225: 0 | M225: 0 | N225: 113.977 | O225: 1709.65 | P225: 68.38 | Q225: 119.67 | R225: 0 | S225: 188.05 | T225: 1709.65 | U225: 1897.7 | X225: 0 | Y225: -102.30024 | Z225: 0 | AA225: 102.3 | AB225: 2000 | AE225: 138
D226: BERNAL PRECIADO JUAN JOSE | H226: JARDINERO | I226: 15 | J226: TARJETA | L226: 0 | M226: 0 | N226: =2222/15 -> 148.1333333 | O226: 2222 | P226: 88.88 | Q226: 155.54 | R226: 0 | S226: 244.42 | T226: 2222 | U226: 2466.42 | W226: 0 | X226: 0 | Y226: -37.079488 | Z226: =TRUNC(IF(Y226>0.01,Y226,0),2) -> 0 | AA226: 37.07 | AB226: 2503.49 | AE226: 139
... 140 more rows

Sheet ACUMULADO
A1: No.empleado | B1: CAPITULO | C1: PARTIDA | D1: NOMBRE | E1: RFC | F1: CURP | G1: FECHA DE INGRESO | H1: CARGO | I1: DEPENDENCIA | J1: PAGO CON | K1: DIAS LABORADOS | L1: DIAS CON INCAPACIDAD | M1: HORAS EXTRAS | N1: DESPENSA EN EFECTIVO | O1: SUELDO POR DIA ACTUAL | P1: SUELDO POR DIA PROPUESTO | Q1: FONDO DE AHORRO | R1: APOYO EDUCACIONAL | S1: TIEMPO EXTRA | T1: SUB TOTAL EXENTO | U1: SUB TOTAL GRAVADO | V1: SUB TOTAL A PAGAR | W1: FONDO DE AHORRO | X1: PRESTAMOS | Y1: OTRAS DEDUCCIONES | Z1: CALCULO | AA1: I.S.R. | AB1: SUBSIDIO AL EMPLEO | AC1: TOTAL A PAGAR | AD1: nomina | AE1: observaciones

Sheet Tablas 2015
A1: TARIFA MENSUAL ISR | E1: TARIFA QUINCENAL ISR | I1: TARIFA SEMANAL ISR | M1: 0.01 | N1: 496.07 | O1: 0 | P1: 1.92
A2: 2015 | E2: 2015 | I2: 2015 | M2: 496.08 | N2: 4210.41 | O2: 9.52 | P2: 6.4
A3: Lim. Inferior | B3: Cuota Fija | C3: % | E3: Lim. Inferior | F3: Cuota Fija | G3: % | I3: Lim. Inferior | J3: Cuota Fija | K3: % | M3: 4210.42 | N3: 7399.42 | O3: 247.24 | P3: 10.88
A4: 0.01 | B4: 0 | C4: 0.0192 | E4: 0.01 | F4: 0 | G4: 0.0192 | I4: 0.01 | J4: 0 | K4: 0.0192 | M4: 7399.43 | N4: 8601.5 | O4: 594.21 | P4: 16
A5: 496.08 | B5: 9.52 | C5: 0.064 | E5: 244.81 | F5: 4.65 | G5: 0.064 | I5: 114.25 | J5: 2.17 | K5: 0.064 | M5: 8601.51 | N5: 10298.35 | O5: 786.54 | P5: 17.92
A6: 4210.42 | B6: 247.24 | C6: 0.1088 | E6: 2077.51 | F6: 121.95 | G6: 0.1088 | I6: 969.51 | J6: 56.91 | K6: 0.1088 | M6: 10298.36 | N6: 20770.29 | O6: 1090.61 | P6: 21.36
A7: 7399.43 | B7: 594.21 | C7: 0.16 | E7: 3651.01 | F7: 293.25 | G7: 0.16 | I7: 1703.81 | J7: 136.85 | K7: 0.16 | M7: 20770.3 | N7: 32736.83 | O7: 3327.42 | P7: 23.52
A8: 8601.51 | B8: 786.54 | C8: 0.1792 | E8: 4244.11 | F8: 388.05 | G8: 0.1792 | I8: 1980.59 | J8: 181.09 | K8: 0.1792 | M8: 32736.84 | N8: 62500 | O8: 6141.95 | P8: 30
A9: 10298.36 | B9: 1090.61 | C9: 0.2136 | E9: 5081.41 | F9: 538.2 | G9: 0.2136 | I9: 2371.33 | J9: 251.16 | K9: 0.2136 | M9: 62500.01 | N9: 83333.33 | O9: 15070.9 | P9: 32
A10: 20770.3 | B10: 3327.42 | C10: 0.2352 | E10: 10248.46 | F10: 1641.75 | G10: 0.2352 | I10: 4782.62 | J10: 766.15 | K10: 0.2352 | M10: 83333.34 | N10: 250000 | O10: 21737.57 | P10: 34
A11: 32736.84 | B11: 6141.95 | C11: 0.3 | E11: 16153.06 | F11: 3030.6 | G11: 0.3 | I11: 7538.1 | J11: 1414.28 | K11: 0.3 | M11: 250000.01 | N11: En adelante | O11: 78404.23 | P11: 35
A12: 62500.01 | B12: 15070.9 | C12: 0.32 | E12: 30838.81 | F12: 7436.25 | G12: 0.32 | I12: 14391.45 | J12: 3470.25 | K12: 0.32
A13: 83333.34 | B13: 21737.57 | C13: 0.34 | E13: 41118.46 | F13: 10725.75 | G13: 0.34 | I13: 19188.62 | J13: 5005.35 | K13: 0.34
A14: 250000.01 | B14: 78404.23 | C14: 0.35 | E14: 123355.21 | F14: 38686.35 | G14: 0.35 | I14: 57565.77 | J14: 18053.63 | K14: 0.35
A19: SUBSIDIO PARA EL EMPLEO | E19: SUBSIDIO PARA EL EMPLEO | I19: SUBSIDIO PARA EL EMPLEO
A20: =+A2 -> 2015 | E20: =+E2 -> 2015 | I20: =+I2 -> 2015 | L20: 0.01 | M20: 1768.96 | N20: 407.02
A21: Para | B21: SE | E21: Para | F21: SE | I21: Para | J21: SE | L21: 1768.97 | M21: 2653.38 | N21: 406.83
A22: Ingresos | B22: Mensual | E22: Ingresos | F22: Quincenal | I22: Ingresos | J22: Semanal | L22: 2653.39 | M22: 3472.84 | N22: 406.62
A23: 0.01 | B23: 407.02 | E23: 0.01 | F23: 200.85 | I23: 0.01 | J23: 93.73 | L23: 3472.85 | M23: 3537.87 | N23: 392.77
A24: 1768.97 | B24: 406.83 | E24: 872.86 | F24: 200.7 | I24: 407.34 | J24: 93.66 | L24: 3537.88 | M24: 4446.15 | N24: 382.46
A25: 2653.39 | B25: 406.62 | E25: 1309.21 | F25: 200.7 | I25: 610.97 | J25: 93.66 | L25: 4446.16 | M25: 4717.18 | N25: 354.23
A26: 3472.85 | B26: 392.77 | E26: 1713.61 | F26: 193.8 | I26: 799.69 | J26: 90.44 | L26: 4717.19 | M26: 5335.42 | N26: 324.87
A27: 3537.88 | B27: 382.46 | E27: 1745.71 | F27: 188.7 | I27: 814.67 | J27: 88.06 | L27: 5335.43 | M27: 6224.67 | N27: 294.63
A28: 4446.16 | B28: 354.23 | E28: 2193.76 | F28: 174.75 | I28: 1023.76 | J28: 81.55 | L28: 6224.68 | M28: 7113.9 | N28: 253.54
A29: 4717.19 | B29: 324.87 | E29: 2327.56 | F29: 160.35 | I29: 1086.2 | J29: 74.83 | L29: 7113.91 | M29: 7382.33 | N29: 217.61
A30: 5335.43 | B30: 294.63 | E30: 2632.66 | F30: 145.35 | I30: 1228.58 | J30: 67.83 | L30: 7382.34 | M30: En adelante | N30: 0
A31: 6224.68 | B31: 253.54 | E31: 3071.41 | F31: 125.1 | I31: 1433.33 | J31: 58.38
A32: 7113.91 | B32: 217.61 | E32: 3510.16 | F32: 107.4 | I32: 1638.08 | J32: 50.12
A33: 7382.34 | B33: 0 | E33: 3642.61 | F33: 0 | I33: 1699.89 | J33: 0
A37: CAPITULO | B37: PARTIDA | C37: CONCEC | E37: DEPENDENCIA
A38: 1 | B38: 1 | C38: 1 | D38: SALA DE REGIDORES
A39: 1 | B39: 2 | C39: 2 | D39: PRESIDENCIA MUNICIPAL
A40: 1 | B40: 5 | C40: 3 | D40: SECRETARIA GENERAL Y SINDICATURA
A41: 1 | B41: 6 | C41: 4 | D41: OFICIALIA MAYOR
A42: 1 | B42: 7 | C42: 5 | D42: DEPARTAMENTO JURIDICO
A43: 1 | B43: 14 | C43: 6 | D43: REGISTRO CIVIL
A44: 1 | B44: 16 | C44: 7 | D44: OFICIALIA MAYOR DE CULTURA
A45: 1 | B45: 19 | C45: 8 | D45: PARTICIPACION CIUDADANA
A46: 1 | B46: 23 | C46: 9 | D46: RELACIONES EXTERIORES
A47: 2 | B47: 1 | C47: 10 | D47: DELEGACIONES
A48: 2 | B48: 2 | C48: 11 | D48: AGENCIAS
A49: 3 | B49: 1 | C49: 12 | D49: HACIENDA MUNICIPAL
A50: 3 | B50: 3 | C50: 13 | D50: DEPTO. DE INGRESOS
A51: 3 | B51: 7 | C51: 14 | D51: DEPTO. DE EGRESOS
A52: 3 | B52: 12 | C52: 15 | D52: DEPTO. DE INFORMATICA
A53: 3 | B53: 13 | C53: 16 | D53: DEPTO. DE IMPUESTO PREDIAL Y CATASTRO
A54: 4 | B54: 1 | C54: 17 | D54: DIRECCION GENERAL DE OBRAS PUBLICAS
A55: 4 | B55: 3 | C55: 18 | D55: DEPTO. DE SERVICIOS PUBLICOS
A56: 4 | B56: 4 | C56: 19 | D56: DEPTO. DE CONSTRUCCION
A57: 5 | B57: 2 | C57: 20 | D57: DEPTO. DE CEMENTERIOS
A58: 5 | B58: 3 | C58: 21 | D58: DEPTO. RASTRO
A59: 5 | B59: 5 | C59: 22 | D59: DEPTO. MERCADOS
A60: 5 | B60: 7 | C60: 23 | D60: DEPTO. DE ASEO PUBLICO
A61: 5 | B61: 8 | C61: 24 | D61: DEPTO. DE PARQUES Y JARDINES
A62: 5 | B62: 9 | C62: 25 | D62: VERTEDERO
A63: 5 | B63: 10 | C63: 26 | D63: DEPTO. DE ALUMBRADO PUBLICO
A64: 5 | B64: 11 | C64: 27 | D64: DEPTO. DE AGUA DRENAJE Y ALCANTARILLADO
A65: 5 | B65: 14 | C65: 28 | D65: DIR. DE TURISMO Y DEPORTES
A66: 5 | B66: 15 | C66: 29 | D66: SERVICIO MEDICO
A67: 5 | B67: 26 | C67: 30 | D67: INSPECCION AGRICOLA Y GANADERA
A68: 11 | B68: 17 | C68: 31 | D68: SEGURIDAD PUBLICA
A69: 11 | B69: 18 | C69: 32 | D69: PROTECCION CIVIL

Sheet Hoja1

Sheet finiquito
M1: =SUBTOTAL(9,M9:M275) -> 0 | N1: 34262.69817 | O1: 1386197.39 | P1: 55447.79 | Q1: 97033.71 | W1: =SUBTOTAL(9,W9:W275) -> 0 | X1: =SUBTOTAL(9,X9:X275) -> 0 | Y1: =SUBTOTAL(9,Y9:Y272) ->  | Z1: =SUBTOTAL(9,Z9:Z275) -> 102511.26 | AA1: =SUBTOTAL(9,AA9:AA275) -> 11905.07 | AB1: =SUBTOTAL(9,AB9:AB275) -> 1448072.7 | AD1: =SUBTOTAL(9,AD9:AD272) -> 0
O2: =TRUNC(N2*I2,2) -> 0 | P2: =TRUNC(N2*I2*0.04,2) -> 0 | Q2: =TRUNC(N2*0.07*I2,2) -> 0 | R2: =L2 -> 0 | S2: =TRUNC(Q2+P2+(IF(R2>519,519,R2))+IF(K2=0,0,K2*N2),2) -> 0 | T2: =TRUNC((IF(K2=0,I2*N2,(I2-K2)*N2))+(IF(R2<519,0,R2-519)),2)+M2 -> 0 | U2: =S2+T2 -> 0 | V2: =P2 -> 0 | Y2: =IF(N2>0.01,(T2-VLOOKUP(T2,quincenal,1))*VLOOKUP(T2,quincenal,3)+VLOOKUP(T2,quincenal,2)-VLOOKUP(T2,subquincenal,2),0) -> 0 | Z2: =TRUNC(IF(Y2>0.01,Y2,0),2) -> 0 | AA2: =TRUNC(IF(Y2<0.01,-Y2,0),2) -> 0 | AB2: =U2-W2-X2-Z2+AA2-P2 -> 0 | AC2: =#REF! -> 
A3: H. AYUNTAMIENTO DE ETZATLAN, JALISCO
B4: ADMINISTRACION 2012-2015
B5: NOMINA CORRESPONDIENTE A LA SEGUNDA QUINCENA DE MAYO DE 2015
D6: Etzatlán, Jalisco a 30 de Mayo de 2015.
B7: CAPITULO | C7: PARTIDA | D7: NOMBRE | E7: RFC | F7: CURP | G7: FECHA DE INGRESO | H7: CARGO | I7: DIAS LABORADOS | J7: PAGO CON | K7: DIAS CON INCAPACIDAD | L7: TIEMPO EXTRA | M7: OTROS INGRESOS | N7: SUELDO POR DIA PROPUESTO | O7: SUELDO BASE | P7: FONDO DE AHORRO | Q7: APOYO EDUCACIONAL | R7: TIEMPO EXTRA | S7: SUB TOTAL EXENTO | T7: SUB TOTAL GRAVADO | U7: SUB TOTAL A PAGAR | V7: FONDO DE AHORRO | W7: PRESTAMOS | X7: OTRAS DEDUCCIONES | Y7: CALCULO | Z7: I.S.R. | AA7: SUBSIDIO AL EMPLEO | AB7: TOTAL A PAGAR | AC7: nomina | AD7: FIRMA DE RECIBIDO
D8: SALA DE REGIDORES
A9: 1 | B9: 1 | C9: 1 | D9: FREGOSO GOMEZ CARLOS | E9: FEGC520708 | F9: FEGC520708HJCRMR08 | G9: 2012-10-01 | H9: REGIDOR | I9: 15 | J9: TARJETA | L9: 0 | M9: 0 | N9: =8023/15 -> 534.8666667 | O9: =TRUNC(N9*I9,2) -> 8023 | P9: =TRUNC(N9*I9*0.04,2) -> 320.92 | Q9: =TRUNC(N9*0.07*I9,2) -> 561.61 | R9: =L9 -> 0 | S9: =TRUNC(Q9+P9+(IF(R9>519,519,R9))+IF(K9=0,0,K9*N9),2) -> 882.53 | T9: =TRUNC((IF(K9=0,I9*N9,(I9-K9)*N9))+(IF(R9<519,0,R9-519)),2)+M9 -> 8023 | U9: =S9+T9 -> 8905.53 | X9: 0 | Y9: =IF(N9>0.01,(T9-VLOOKUP(T9,quincenal,1))*VLOOKUP(T9,quincenal,3)+VLOOKUP(T9,quincenal,2)-VLOOKUP(T9,subquincenal,2),0) -> 1166.523624 | Z9: =TRUNC(IF(Y9>0.01,Y9,0),2) -> 1166.52 | AA9: =TRUNC(IF(Y9<0.01,-Y9,0),2) -> 0 | AB9: =U9-W9-X9-Z9+AA9 -> 7739.01 | AC9: =#REF! -> 
D10: HERNANDEZ ENRIQUEZ J. FILEMON | H10: REGIDOR | I10: 15 | J10: TARJETA | L10: 0 | M10: 0 | N10: =8023/15 -> 534.8666667 | O10: =TRUNC(N10*I10,2) -> 8023 | P10: =TRUNC(N10*I10*0.04,2) -> 320.92 | Q10: =TRUNC(N10*0.07*I10,2) -> 561.61 | R10: =L10 -> 0 | S10: =TRUNC(Q10+P10+(IF(R10>519,519,R10))+IF(K10=0,0,K10*N10),2) -> 882.53 | T10: =TRUNC((IF(K10=0,I10*N10,(I10-K10)*N10))+(IF(R10<519,0,R10-519)),2)+M10 -> 8023 | U10: =S10+T10 -> 8905.53 | X10: 0 | Y10: =IF(N10>0.01,(T10-VLOOKUP(T10,quincenal,1))*VLOOKUP(T10,quincenal,3)+VLOOKUP(T10,quincenal,2)-VLOOKUP(T10,subquincenal,2),0) -> 1166.523624 | Z10: 1166.52 | AA10: =TRUNC(IF(Y10<0.01,-Y10,0),2) -> 0 | AB10: =U10-W10-X10-Z10+AA10 -> 7739.01
A11: 3 | B11: 1 | C11: 1 | D11: PARRA VELASCO ANA ROSA | G11: 2012-10-01 | H11: REGIDOR | I11: 15 | J11: TARJETA | L11: 0 | M11: 0 | N11: 534.8666667 | O11: 8023 | P11: 320.92 | Q11: 561.61 | R11: 0 | S11: 882.53 | T11: 8023 | U11: 8905.53 | X11: 0 | Y11: 1166.523624 | Z11: 1166.52 | AA11: 0 | AB11: 7739.01 | AC11: =#REF! -> 
A12: 4 | B12: 1 | C12: 1 | D12: MARTINEZ NAVARRO FRANCISCO | G12: 2012-10-01 | H12: REGIDOR | I12: 15 | J12: TARJETA | L12: 0 | M12: 0 | N12: 534.8666667 | O12: 8023 | P12: 320.92 | Q12: 561.61 | R12: 0 | S12: 882.53 | T12: 8023 | U12: 8905.53 | X12: 0 | Y12: 1166.523624 | Z12: 1166.52 | AA12: 0 | AB12: 7739.01 | AC12: =#REF! -> 
A13: 5 | B13: 1 | C13: 1 | D13: SOTO HERNANDEZ RAMON | G13: 2012-10-01 | H13: REGIDOR | I13: 15 | J13: TARJETA | L13: 0 | M13: 0 | N13: 534.8666667 | O13: 8023 | P13: 320.92 | Q13: 561.61 | R13: 0 | S13: 882.53 | T13: 8023 | U13: 8905.53 | X13: 0 | Y13: 1166.523624 | Z13: 1166.52 | AA13: 0 | AB13: 7739.01 | AC13: =#REF! -> 
A14: 6 | B14: 1 | C14: 1 | D14: MEDINA FLORES CARMEN AIDE | G14: 2012-10-01 | H14: REGIDOR | I14: 15 | J14: TARJETA | L14: 0 | M14: 0 | N14: 534.8666667 | O14: 8023 | P14: 320.92 | Q14: 561.61 | R14: 0 | S14: 882.53 | T14: 8023 | U14: 8905.53 | X14: 0 | Y14: 1166.523624 | Z14: 1166.52 | AA14: 0 | AB14: 7739.01 | AC14: =#REF! -> 
A15: 7 | B15: 1 | C15: 1 | D15: BECERRA GONZALEZ ALFREDO | G15: 2012-10-01 | H15: REGIDOR | I15: 15 | J15: TARJETA | L15: 0 | M15: 0 | N15: 534.8666667 | O15: 8023 | P15: 320.92 | Q15: 561.61 | R15: 0 | S15: 882.53 | T15: 8023 | U15: 8905.53 | Y15: 1166.523624 | Z15: 1166.52 | AA15: 0 | AB15: 7739.01 | AC15: =#REF! -> 
A16: 8 | B16: 1 | C16: 1 | D16: CHAVEZ JORDAN JUAN MANUEL | G16: 2012-10-01 | H16: REGIDOR | I16: 15 | J16: TARJETA | L16: 0 | M16: 0 | N16: 534.8666667 | O16: 8023 | P16: 320.92 | Q16: 561.61 | R16: 0 | S16: 882.53 | T16: 8023 | U16: 8905.53 | Y16: 1166.523624 | Z16: 1166.52 | AA16: 0 | AB16: 7739.01 | AC16: =#REF! -> 
A17: 9 | B17: 1 | C17: 1 | D17: LOPEZ PARRA DANIEL | G17: 2012-10-01 | H17: REGIDOR | I17: 15 | J17: TARJETA | L17: 0 | M17: 0 | N17: 534.8666667 | O17: 8023 | P17: 320.92 | Q17: 561.61 | R17: 0 | S17: 882.53 | T17: 8023 | U17: 8905.53 | W17: 0 | Y17: 1166.523624 | Z17: 1166.52 | AA17: 0 | AB17: 7739.01 | AC17: =#REF! -> 
B18: 1 | C18: 1 | E18: BAGV780611 | F18: BAGV780611MJCRTR04 | H18: SECRETARIA SALA DE REGIDORES | I18: 0 | J18: TARJETA | L18: 0 | M18: 0 | N18: 172.16 | O18: =TRUNC(N18*I18,2) -> 0 | P18: 0 | Q18: 0 | R18: 0 | S18: 0 | T18: 0 | U18: 0 | X18: 0 | Z18: 0 | AA18: 0 | AB18: 0 | AC18: =#REF! ->  | AE18: 2658.44
D19: SALA DE REGIDORES | O19: =SUM(O9:O18) -> 72207 | P19: =SUM(P9:P18) -> 2888.28 | Q19: 5054.49 | R19: 0 | S19: 7942.77 | T19: 72207 | U19: 80149.77 | V19: 0 | W19: 0 | X19: 0 | Y19: 10498.71262 | Z19: 10498.68 | AA19: 0 | AB19: 69651.09
D21: PRESIDENCIA MUNICIPAL
D22: RUIZ JUAREZ MARIA RAQUEL | H22: PRESIDENTE MUNICIPAL INTERINO | I22: 15 | J22: TARJETA | L22: 0 | M22: 0 | N22: =14227/15 -> 948.4666667 | O22: =TRUNC(N22*I22,2) -> 14227 | P22: =TRUNC(N22*I22*0.04,2) -> 569.08 | Q22: =TRUNC(N22*0.07*I22,2) -> 995.89 | R22: =L22 -> 0 | S22: =TRUNC(Q22+P22+(IF(R22>519,519,R22))+IF(K22=0,0,K22*N22),2) -> 1564.97 | T22: =TRUNC((IF(K22=0,I22*N22,(I22-K22)*N22))+(IF(R22<519,0,R22-519)),2)+M22 -> 14227 | U22: =S22+T22 -> 15791.97 | X22: 0 | Y22: =IF(N22>0.01,(T22-VLOOKUP(T22,quincenal,1))*VLOOKUP(T22,quincenal,3)+VLOOKUP(T22,quincenal,2)-VLOOKUP(T22,subquincenal,2),0) -> 2577.502608 | Z22: =TRUNC(IF(Y22>0.01,Y22,0),2) -> 2577.5 | AA22: =TRUNC(IF(Y22<0.01,-Y22,0),2) -> 0 | AB22: =U22-W22-X22-Z22+AA22 -> 13214.47
A23: 11 | B23: 1 | C23: 2 | D23: FREGOSO PARRA MARTHA | E23: FEPM871023ND1 | F23: FEPM871023MJCRRR07 | H23: SECRETARIA PARTICULAR | I23: 15 | J23: TARJETA | L23: 0 | M23: 0 | N23: =3349/15 -> 223.2666667 | O23: =TRUNC(N23*I23,2) -> 3349 | P23: =TRUNC(N23*I23*0.04,2) -> 133.96 | Q23: =TRUNC(N23*0.07*I23,2) -> 234.43 | R23: =L23 -> 0 | S23: =TRUNC(Q23+P23+(IF(R23>519,519,R23))+IF(K23=0,0,K23*N23),2) -> 368.39 | T23: =TRUNC((IF(K23=0,I23*N23,(I23-K23)*N23))+(IF(R23<519,0,R23-519)),2)+M23 -> 3349 | U23: =S23+T23 -> 3717.39 | X23: 0 | Y23: =IF(N23>0.01,(T23-VLOOKUP(T23,quincenal,1))*VLOOKUP(T23,quincenal,3)+VLOOKUP(T23,quincenal,2)-VLOOKUP(T23,subquincenal,2),0) -> 135.188112 | Z23: =TRUNC(IF(Y23>0.01,Y23,0),2) -> 135.18 | AA23: =TRUNC(IF(Y23<0.01,-Y23,0),2) -> 0 | AB23: =U23-W23-X23-Z23+AA23 -> 3582.21 | AC23: =#REF! -> 
D24: PRESIDENCIA MUNICIPAL | O24: =SUM(O22:O23) -> 17576 | P24: 703.04 | Q24: 1230.32 | R24: 0 | S24: 1933.36 | T24: 17576 | U24: 19509.36 | V24: 0 | W24: 0 | X24: 0 | Y24: 2712.69072 | Z24: 2712.68 | AA24: 0 | AB24: 16796.68
D26: SECRETARIA GENERAL Y SINDICATURA
A27: 13 | B27: 1 | C27: 5 | D27: TOPETE DUEÑAS SANDRA MARGARITA | H27: SINDICO MUNICIPAL | I27: 15 | J27: TARJETA | L27: 0 | M27: 0 | N27: =10307/15 -> 687.1333333 | O27: =TRUNC(N27*I27,2) -> 10307 | P27: =TRUNC(N27*I27*0.04,2) -> 412.28 | Q27: =TRUNC(N27*0.07*I27,2) -> 721.49 | R27: =L27 -> 0 | S27: =TRUNC(Q27+P27+(IF(R27>519,519,R27))+IF(K27=0,0,K27*N27),2) -> 1133.77 | T27: =TRUNC((IF(K27=0,I27*N27,(I27-K27)*N27))+(IF(R27<519,0,R27-519)),2)+M27 -> 10307 | U27: =S27+T27 -> 11440.77 | W27: 0 | X27: 0 | Y27: =IF(N27>0.01,(T27-VLOOKUP(T27,quincenal,1))*VLOOKUP(T27,quincenal,3)+VLOOKUP(T27,quincenal,2)-VLOOKUP(T27,subquincenal,2),0) -> 1655.518608 | Z27: =TRUNC(IF(Y27>0.01,Y27,0),2) -> 1655.51 | AA27: =TRUNC(IF(Y27<0.01,-Y27,0),2) -> 0 | AB27: =U27-W27-X27-Z27+AA27 -> 9785.26 | AC27: =#REF! -> 
A28: 14 | B28: 1 | C28: 1 | D28: MENDEZ NAVARRO JOSE FLORENTINO | G28: 2012-10-01 | H28: SECRETARIO GENERAL | I28: 15 | J28: TARJETA | L28: 0 | M28: 0 | N28: =10307/15 -> 687.1333333 | O28: =TRUNC(N28*I28,2) -> 10307 | P28: =TRUNC(N28*I28*0.04,2) -> 412.28 | Q28: =TRUNC(N28*0.07*I28,2) -> 721.49 | R28: =L28 -> 0 | S28: =TRUNC(Q28+P28+(IF(R28>519,519,R28))+IF(K28=0,0,K28*N28),2) -> 1133.77 | T28: =TRUNC((IF(K28=0,I28*N28,(I28-K28)*N28))+(IF(R28<519,0,R28-519)),2)+M28 -> 10307 | U28: =S28+T28 -> 11440.77 | X28: 0 | Y28: =IF(N28>0.01,(T28-VLOOKUP(T28,quincenal,1))*VLOOKUP(T28,quincenal,3)+VLOOKUP(T28,quincenal,2)-VLOOKUP(T28,subquincenal,2),0) -> 1655.518608 | Z28: =TRUNC(IF(Y28>0.01,Y28,0),2) -> 1655.51 | AA28: =TRUNC(IF(Y28<0.01,-Y28,0),2) -> 0 | AB28: =U28-W28-X28-Z28+AA28 -> 9785.26
A29: 15 | D29: GONZALEZ BALCASAR JESUS | H29: SECRETARIO | I29: 15 | J29: TARJETA | L29: 0 | M29: 0 | N29: =3086/15 -> 205.7333333 | O29: =TRUNC(N29*I29,2) -> 3086 | P29: =TRUNC(N29*I29*0.04,2) -> 123.44 | Q29: =TRUNC(N29*0.07*I29,2) -> 216.02 | R29: =L29 -> 0 | S29: =TRUNC(Q29+P29+(IF(R29>519,519,R29))+IF(K29=0,0,K29*N29),2) -> 339.46 | T29: =TRUNC((IF(K29=0,I29*N29,(I29-K29)*N29))+(IF(R29<519,0,R29-519)),2)+M29 -> 3086 | U29: =S29+T29 -> 3425.46 | X29: 0 | Y29: =IF(N29>0.01,(T29-VLOOKUP(T29,quincenal,1))*VLOOKUP(T29,quincenal,3)+VLOOKUP(T29,quincenal,2)-VLOOKUP(T29,subquincenal,2),0) -> 106.573712 | Z29: =TRUNC(IF(Y29>0.01,Y29,0),2) -> 106.57 | AA29: =TRUNC(IF(Y29<0.01,-Y29,0),2) -> 0 | AB29: =U29-W29-X29-Z29+AA29 -> 3318.89
A30: 16 | D30: SUAREZ MENDEZ FRANCISCO ALEJANDRO | H30: AUXILIAR ADMINISTRATIVO | I30: 15 | J30: TARJETA | L30: 0 | M30: 0 | N30: =3397/15 -> 226.4666667 | O30: =TRUNC(N30*I30,2) -> 3397 | P30: =TRUNC(N30*I30*0.04,2) -> 135.88 | Q30: =TRUNC(N30*0.07*I30,2) -> 237.79 | R30: =L30 -> 0 | S30: =TRUNC(Q30+P30+(IF(R30>519,519,R30))+IF(K30=0,0,K30*N30),2) -> 373.67 | T30: =TRUNC((IF(K30=0,I30*N30,(I30-K30)*N30))+(IF(R30<519,0,R30-519)),2)+M30 -> 3397 | U30: =S30+T30 -> 3770.67 | X30: 0 | Y30: =IF(N30>0.01,(T30-VLOOKUP(T30,quincenal,1))*VLOOKUP(T30,quincenal,3)+VLOOKUP(T30,quincenal,2)-VLOOKUP(T30,subquincenal,2),0) -> 140.410512 | Z30: =TRUNC(IF(Y30>0.01,Y30,0),2) -> 140.41 | AA30: =TRUNC(IF(Y30<0.01,-Y30,0),2) -> 0 | AB30: =U30-W30-X30-Z30+AA30 -> 3630.26 | AC30: =#REF! -> 
D31: SECRETARIA GENERAL Y SINDICATURA | O31: =SUM(O27:O30) -> 27097 | P31: 1083.88 | Q31: 1896.79 | R31: 0 | S31: 2980.67 | T31: 27097 | U31: 30077.67 | V31: 0 | W31: 0 | X31: 0 | Y31: =SUM(Y27:Y30) -> 3558.02144 | Z31: 3558 | AA31: 0 | AB31: 26519.67
D33: OFICIALIA MAYOR ADMINISTRATIVA
D34: CHAVEZ GOMEZ DAVID | H34: OFICIAL MAYOR INTERINO | I34: 15 | J34: TARJETA | L34: 0 | M34: 0 | N34: =7229/15 -> 481.9333333 | O34: =TRUNC(N34*I34,2) -> 7229 | P34: =TRUNC(N34*I34*0.04,2) -> 289.16 | Q34: =TRUNC(N34*0.07*I34,2) -> 506.03 | R34: =L34 -> 0 | S34: =TRUNC(Q34+P34+(IF(R34>519,519,R34))+IF(K34=0,0,K34*N34),2) -> 795.19 | T34: =TRUNC((IF(K34=0,I34*N34,(I34-K34)*N34))+(IF(R34<519,0,R34-519)),2)+M34 -> 7229 | U34: =S34+T34 -> 8024.19 | X34: 0 | Y34: =IF(N34>0.01,(T34-VLOOKUP(T34,quincenal,1))*VLOOKUP(T34,quincenal,3)+VLOOKUP(T34,quincenal,2)-VLOOKUP(T34,subquincenal,2),0) -> 996.925224 | Z34: =TRUNC(IF(Y34>0.01,Y34,0),2) -> 996.92 | AA34: =TRUNC(IF(Y34<0.01,-Y34,0),2) -> 0 | AB34: =U34-W34-X34-Z34+AA34 -> 7027.27
A35: 18 | B35: 1 | C35: 6 | D35: VENTURA PEREZ HERLINDA AURORA | E35: VEPH840722PR4 | F35: VEPH840722MJCNRR04 | H35: SECRETARIA | I35: 15 | J35: TARJETA | L35: 0 | M35: 0 | N35: =3056/15 -> 203.7333333 | O35: 3056 | P35: 122.24 | Q35: 213.92 | R35: 0 | S35: 336.16 | T35: 3056 | U35: 3392.16 | W35: 0 | X35: 0 | Y35: 83.059712 | Z35: 83.05 | AA35: 0 | AB35: 3309.11 | AC35: =#REF! -> 
A36: 19 | D36: ENRIQUEZ VALENCIA NARCISO | H36: ENCARGADO DEL DEPTO DE COMPRAS | I36: 15 | J36: TARJETA | L36: 0 | M36: 0 | N36: =4385/15 -> 292.3333333 | O36: 4385 | P36: 175.4 | Q36: 306.95 | R36: 0 | S36: 482.35 | T36: 4385 | U36: 4867.35 | W36: 0 | X36: 0 | Y36: 413.297488 | Z36: 413.29 | AA36: 0 | AB36: 4454.06 | AC36: =#REF! -> 
A37: 20 | D37: GOMEZ TAMAYO MARIA GUADALUPE YANETH | E37: GOTG850723 | H37: SECRATARIA DEL DEPTO DE COMPRAS | I37: 15 | J37: TARJETA | L37: 0 | M37: 0 | N37: =2492/15 -> 166.1333333 | O37: 2492 | P37: 99.68 | Q37: 174.44 | R37: 0 | S37: 274.12 | T37: 2492 | U37: 2766.12 | W37: 0 | X37: 0 | Y37: 6.696512 | Z37: 6.69 | AA37: 0 | AB37: 2759.43 | AC37: =#REF! -> 
A38: 21 | B38: 1 | C38: 6 | D38: BARBOZA FONSECA BENJAMIN | H38: CHOFER | I38: 15 | J38: TARJETA | L38: 0 | M38: 0 | N38: =3117/15 -> 207.8 | O38: 3117 | P38: 124.68 | Q38: 218.19 | R38: 0 | S38: 342.87 | T38: 3117 | U38: 3459.87 | W38: 0 | Y38: 109.946512 | Z38: 109.94 | AA38: 0 | AB38: 3349.93 | AC38: =#REF! -> 
A39: 22 | D39: CARO GONZALEZ ANA ROSA | H39: CONSERJE | I39: 15 | J39: SOBRE | L39: 0 | M39: 0 | N39: =1491/15 -> 99.4 | O39: 1491 | P39: 59.64 | Q39: 104.37 | R39: 0 | S39: 164.01 | T39: 1491 | U39: 1655.01 | W39: 0 | X39: 0 | Y39: -116.29384 | Z39: 0 | AA39: 116.29 | AB39: 1771.3 | AC39: =#REF! -> 
D40: OFICIALIA MAYOR ADMINISTRATIVA | O40: =SUM(O34:O39) -> 21770 | P40: 870.8 | Q40: 1523.9 | R40: 0 | S40: 2394.7 | T40: 21770 | U40: 24164.7 | V40: 0 | W40: 0 | X40: 0 | Y40: 1493.631608 | Z40: 1609.89 | AA40: 116.29 | AB40: 22671.1
D42: DEPARTAMENTO JURIDICO
A43: 23 | B43: 1 | C43: 7 | D43: DOMINGUEZ MORA JOSE RAFAEL | H43: DIRECTOR JURIDICO | I43: 15 | J43: TARJETA | L43: 0 | M43: 0 | N43: =6348/15 -> 423.2 | O43: =TRUNC(N43*I43,2) -> 6348 | P43: =TRUNC(N43*I43*0.04,2) -> 253.92 | Q43: =TRUNC(N43*0.07*I43,2) -> 444.36 | R43: =L43 -> 0 | S43: =TRUNC(Q43+P43+(IF(R43>519,519,R43))+IF(K43=0,0,K43*N43),2) -> 698.28 | T43: =TRUNC((IF(K43=0,I43*N43,(I43-K43)*N43))+(IF(R43<519,0,R43-519)),2)+M43 -> 6348 | U43: =S43+T43 -> 7046.28 | X43: 0 | Y43: =IF(N43>0.01,(T43-VLOOKUP(T43,quincenal,1))*VLOOKUP(T43,quincenal,3)+VLOOKUP(T43,quincenal,2)-VLOOKUP(T43,subquincenal,2),0) -> 808.743624 | Z43: =TRUNC(IF(Y43>0.01,Y43,0),2) -> 808.74 | AA43: =TRUNC(IF(Y43<0.01,-Y43,0),2) -> 0 | AB43: =U43-W43-X43-Z43+AA43 -> 6237.54 | AC43: =#REF! -> 
A44: 24 | D44: REYNAGA LOPEZ NAHSDHELLY ALEJANDRA | H44: AUXILIAR JURIDICO | I44: 15 | J44: TARJETA | L44: 0 | M44: 0 | N44: =3896/15 -> 259.7333333 | O44: =TRUNC(N44*I44,2) -> 3896 | P44: =TRUNC(N44*I44*0.04,2) -> 155.84 | Q44: =TRUNC(N44*0.07*I44,2) -> 272.72 | R44: =L44 -> 0 | S44: =TRUNC(Q44+P44+(IF(R44>519,519,R44))+IF(K44=0,0,K44*N44),2) -> 428.56 | T44: =TRUNC((IF(K44=0,I44*N44,(I44-K44)*N44))+(IF(R44<519,0,R44-519)),2)+M44 -> 3896 | U44: =S44+T44 -> 4324.56 | X44: 0 | Y44: =IF(N44>0.01,(T44-VLOOKUP(T44,quincenal,1))*VLOOKUP(T44,quincenal,3)+VLOOKUP(T44,quincenal,2)-VLOOKUP(T44,subquincenal,2),0) -> 332.4484 | Z44: =TRUNC(IF(Y44>0.01,Y44,0),2) -> 332.44 | AA44: =TRUNC(IF(Y44<0.01,-Y44,0),2) -> 0 | AB44: =U44-W44-X44-Z44+AA44 -> 3992.12
A45: 25 | B45: 1 | C45: 7 | D45: GONZALEZ ROMERO JESUS ALFONSO | E45: CARH770717 | F45: CARH770717HJCRDG01 | H45: JUEZ CALIFICADOR | I45: 15 | J45: TARJETA | L45: 0 | M45: 0 | N45: =4612/15 -> 307.4666667 | O45: =TRUNC(N45*I45,2) -> 4612 | P45: =TRUNC(N45*I45*0.04,2) -> 184.48 | Q45: =TRUNC(N45*0.07*I45,2) -> 322.84 | R45: =L45 -> 0 | S45: =TRUNC(Q45+P45+(IF(R45>519,519,R45))+IF(K45=0,0,K45*N45),2) -> 507.32 | T45: =TRUNC((IF(K45=0,I45*N45,(I45-K45)*N45))+(IF(R45<519,0,R45-519)),2)+M45 -> 4612 | U45: =S45+T45 -> 5119.32 | X45: 0 | Y45: =IF(N45>0.01,(T45-VLOOKUP(T45,quincenal,1))*VLOOKUP(T45,quincenal,3)+VLOOKUP(T45,quincenal,2)-VLOOKUP(T45,subquincenal,2),0) -> 453.975888 | Z45: =TRUNC(IF(Y45>0.01,Y45,0),2) -> 453.97 | AA45: =TRUNC(IF(Y45<0.01,-Y45,0),2) -> 0 | AB45: =U45-W45-X45-Z45+AA45 -> 4665.35 | AC45: =#REF! -> 
D46: DEPARTAMENTO JURIDICO | O46: =SUM(O43:O45) -> 14856 | P46: =SUM(P43:P45) -> 594.24 | Q46: 1039.92 | R46: 0 | S46: 1634.16 | T46: 14856 | U46: 16490.16 | V46: 0 | W46: 0 | X46: 0 | Y46: 1595.167912 | Z46: 1595.15 | AA46: 0 | AB46: 14895.01
D48: DIRECCION DE REGISTRO CIVIL
A49: 26 | B49: 1 | C49: 14 | D49: HERNANDEZ ENRIQUEZ ROSA GUADALUPE | E49: HEEG670312 | F49: HEER670312MJCRNS06 | G49: 2007-01-08 | H49: JEFE OFICIAL DE REGISTRO CIVIL | I49: 15 | J49: TARJETA | L49: 0 | M49: 0 | N49: =4459/15 -> 297.2666667 | O49: =TRUNC(N49*I49,2) -> 4459 | P49: =TRUNC(N49*I49*0.04,2) -> 178.36 | Q49: =TRUNC(N49*0.07*I49,2) -> 312.13 | R49: =L49 -> 0 | S49: =TRUNC(Q49+P49+(IF(R49>519,519,R49))+IF(K49=0,0,K49*N49),2) -> 490.49 | T49: =TRUNC((IF(K49=0,I49*N49,(I49-K49)*N49))+(IF(R49<519,0,R49-519)),2)+M49 -> 4459 | U49: =S49+T49 -> 4949.49 | X49: 0 | Y49: =IF(N49>0.01,(T49-VLOOKUP(T49,quincenal,1))*VLOOKUP(T49,quincenal,3)+VLOOKUP(T49,quincenal,2)-VLOOKUP(T49,subquincenal,2),0) -> 426.558288 | Z49: =TRUNC(IF(Y49>0.01,Y49,0),2) -> 426.55 | AA49: =TRUNC(IF(Y49<0.01,-Y49,0),2) -> 0 | AB49: =U49-W49-X49-Z49+AA49 -> 4522.94 | AC49: =#REF! -> 
A50: 27 | B50: 1 | C50: 6 | D50: PLASCENCIA GARCIA MIREYA ESMERALDA | E50: PAGM780607 | F50: PAGM780607MJCLRR03 | H50: OFICIAL AUX. DE REGISTRO CIVIL | I50: 15 | J50: TARJETA | L50: 0 | M50: 0 | N50: =2492/15 -> 166.1333333 | O50: =TRUNC(N50*I50,2) -> 2492 | P50: =TRUNC(N50*I50*0.04,2) -> 99.68 | Q50: =TRUNC(N50*0.07*I50,2) -> 174.44 | R50: =L50 -> 0 | S50: =TRUNC(Q50+P50+(IF(R50>519,519,R50))+IF(K50=0,0,K50*N50),2) -> 274.12 | T50: =TRUNC((IF(K50=0,I50*N50,(I50-K50)*N50))+(IF(R50<519,0,R50-519)),2)+M50 -> 2492 | U50: =S50+T50 -> 2766.12 | X50: 0 | Y50: =IF(N50>0.01,(T50-VLOOKUP(T50,quincenal,1))*VLOOKUP(T50,quincenal,3)+VLOOKUP(T50,quincenal,2)-VLOOKUP(T50,subquincenal,2),0) -> 6.696512 | Z50: =TRUNC(IF(Y50>0.01,Y50,0),2) -> 6.69 | AA50: =TRUNC(IF(Y50<0.01,-Y50,0),2) -> 0 | AB50: =U50-W50-X50-Z50+AA50 -> 2759.43 | AC50: =#REF! -> 
A51: 28 | B51: 1 | C51: 14 | H51: OFICIAL AUX. DE REGISTRO CIVIL | I51: 0 | J51: TARJETA | L51: 0 | M51: 0 | N51: =2556/15 -> 170.4 | O51: =TRUNC(N51*I51,2) -> 0 | P51: =TRUNC(N51*I51*0.04,2) -> 0 | Q51: =TRUNC(N51*0.07*I51,2) -> 0 | R51: =L51 -> 0 | S51: =TRUNC(Q51+P51+(IF(R51>519,519,R51))+IF(K51=0,0,K51*N51),2) -> 0 | T51: =TRUNC((IF(K51=0,I51*N51,(I51-K51)*N51))+(IF(R51<519,0,R51-519)),2)+M51 -> 0 | U51: =S51+T51 -> 0 | X51: 0 | Y51: =IF(N51>0.01,(T51-VLOOKUP(T51,quincenal,1))*VLOOKUP(T51,quincenal,3)+VLOOKUP(T51,quincenal,2)-VLOOKUP(T51,subquincenal,2),0) ->  | AB51: =U51-W51-X51-Z51+AA51 -> 0 | AC51: =#REF! -> 
D52: DIRECCION DE REGISTRO CIVIL | O52: =SUM(O49:O51) -> 6951 | P52: =SUM(P49:P51) -> 278.04 | Q52: 486.57 | R52: 0 | S52: 764.61 | T52: 6951 | U52: 7715.61 | V52: 0 | W52: 0 | X52: 0 | Z52: 433.24 | AA52: 0 | AB52: 7282.37
D54: OFICIALIA MAYOR DE CULTURA
A55: 30 | B55: 1 | C55: 16 | D55: PARRA RON CARLOS ENRIQUE | E55: PARC480708 | F55: PARC480708HJCRNR08 | G55: 2004-01-01 | H55: CRONISTA | I55: 15 | J55: TARJETA | L55: 0 | M55: 0 | N55: =3463/15 -> 230.8666667 | O55: =TRUNC(N55*I55,2) -> 3463 | P55: =TRUNC(N55*I55*0.04,2) -> 138.52 | Q55: =TRUNC(N55*0.07*I55,2) -> 242.41 | R55: =L55 -> 0 | S55: =TRUNC(Q55+P55+(IF(R55>519,519,R55))+IF(K55=0,0,K55*N55),2) -> 380.93 | T55: =TRUNC((IF(K55=0,I55*N55,(I55-K55)*N55))+(IF(R55<519,0,R55-519)),2)+M55 -> 3463 | U55: =S55+T55 -> 3843.93 | X55: 0 | Y55: =IF(N55>0.01,(T55-VLOOKUP(T55,quincenal,1))*VLOOKUP(T55,quincenal,3)+VLOOKUP(T55,quincenal,2)-VLOOKUP(T55,subquincenal,2),0) -> 147.591312 | Z55: =TRUNC(IF(Y55>0.01,Y55,0),2) -> 147.59 | AA55: =TRUNC(IF(Y55<0.01,-Y55,0),2) -> 0 | AB55: =U55-W55-X55-Z55+AA55 -> 3696.34 | AC55: =#REF! -> 
A56: 31 | D56: GOMEZ TOVAR MIREYA LIZBETH | H56: AUXILIAR DE DIRECCION DE CULTURA Y TURISMO | I56: 15 | J56: TARJETA | N56: =2658/15 -> 177.2 | O56: 2658 | P56: 106.32 | Q56: 186.06 | R56: 0 | S56: 292.38 | T56: 2658 | U56: 2950.38 | X56: 0 | Y56: 39.757312 | Z56: 39.75 | AA56: 0 | AB56: 2910.63
A57: 32 | B57: 1 | C57: 16 | D57: HERNANDEZ SEGURA DELIA | H57: SECRETARIA | I57: 15 | J57: TARJETA | L57: 0 | M57: 0 | N57: =2658/15 -> 177.2 | O57: 2658 | P57: 106.32 | Q57: 186.06 | R57: 0 | S57: 292.38 | T57: 2658 | U57: 2950.38 | X57: 0 | Y57: 39.757312 | Z57: 39.75 | AA57: 0 | AB57: 2910.63 | AC57: =#REF! -> 
A58: 33 | B58: 1 | C58: 16 | D58: ARCINIEGA RODRIGUEZ ANTONIO | H58: ENCARGADO DE EQUIPO DE SONIDO | I58: 15 | J58: TARJETA | L58: 0 | M58: 0 | N58: =4060/15 -> 270.6666667 | O58: 4060 | P58: 162.4 | Q58: 284.2 | R58: 0 | S58: 446.6 | T58: 4060 | U58: 4506.6 | X58: 0 | Y58: 358.6884 | Z58: 358.68 | AA58: 0 | AB58: 4147.92 | AC58: =#REF! -> 
A59: 34 | B59: 1 | C59: 16 | D59: MARTINEZ CRUZ REYNALDA | H59: CONSERJE | I59: 15 | J59: TARJETA | L59: 0 | M59: 0 | N59: =2106/15 -> 140.4 | O59: 2106 | P59: 84.24 | Q59: 147.42 | R59: 0 | S59: 231.66 | T59: 2106 | U59: 2337.66 | X59: 0 | Y59: -63.650288 | Z59: 0 | AA59: 63.65 | AB59: 2401.31 | AC59: =#REF! -> 
D60: OFICIALIA MAYOR DE CULTURA | O60: =SUM(O55:O59) -> 14945 | P60: 597.8 | Q60: 1046.15 | R60: 0 | S60: 1643.95 | T60: 14945 | U60: 16588.95 | V60: 0 | W60: 0 | X60: 0 | Y60: 522.144048 | Z60: 585.77 | AA60: 63.65 | AB60: 16066.83
D62: DEPARTAMENTO DE PRENSA Y PUBLICIDAD
A63: 35 | B63: 1 | C63: 19 | D63: MEZA ROMERO FAUSTO | H63: DIRECTOR DE PRENSA Y PUBLICIDAD | I63: 15 | J63: TARJETA | L63: 0 | M63: 0 | N63: =4612/15 -> 307.4666667 | O63: =TRUNC(N63*I63,2) -> 4612 | P63: =TRUNC(N63*I63*0.04,2) -> 184.48 | Q63: =TRUNC(N63*0.07*I63,2) -> 322.84 | R63: =L63 -> 0 | S63: =TRUNC(Q63+P63+(IF(R63>519,519,R63))+IF(K63=0,0,K63*N63),2) -> 507.32 | T63: =TRUNC((IF(K63=0,I63*N63,(I63-K63)*N63))+(IF(R63<519,0,R63-519)),2)+M63 -> 4612 | U63: =S63+T63 -> 5119.32 | W63: 0 | X63: 0 | Y63: =IF(N63>0.01,(T63-VLOOKUP(T63,quincenal,1))*VLOOKUP(T63,quincenal,3)+VLOOKUP(T63,quincenal,2)-VLOOKUP(T63,subquincenal,2),0) -> 453.975888 | Z63: =TRUNC(IF(Y63>0.01,Y63,0),2) -> 453.97 | AA63: 0 | AB63: =U63-W63-X63-Z63+AA63 -> 4665.35 | AC63: =#REF! -> 
A64: 36 | D64: SIORDIA HERMOSILLO EDER ALBERTO | H64: AUXILIAR PRENSA Y PUBLICIDAD | I64: 15 | J64: TARJETA | L64: 0 | M64: 0 | N64: =2788/15 -> 185.8666667 | O64: =TRUNC(N64*I64,2) -> 2788 | P64: =TRUNC(N64*I64*0.04,2) -> 111.52 | Q64: =TRUNC(N64*0.07*I64,2) -> 195.16 | R64: =L64 -> 0 | S64: =TRUNC(Q64+P64+(IF(R64>519,519,R64))+IF(K64=0,0,K64*N64),2) -> 306.68 | T64: =TRUNC((IF(K64=0,I64*N64,(I64-K64)*N64))+(IF(R64<519,0,R64-519)),2)+M64 -> 2788 | U64: =S64+T64 -> 3094.68 | W64: 0 | X64: 0 | Y64: =IF(N64>0.01,(T64-VLOOKUP(T64,quincenal,1))*VLOOKUP(T64,quincenal,3)+VLOOKUP(T64,quincenal,2)-VLOOKUP(T64,subquincenal,2),0) -> 53.901312 | Z64: =TRUNC(IF(Y64>0.01,Y64,0),2) -> 53.9 | AA64: 0 | AB64: =U64-W64-X64-Z64+AA64 -> 3040.78 | AC64: =#REF! -> 
D65: DEPARTAMENTO DE PRENSA Y PUBLICIDAD | O65: =SUM(O63:O64) -> 7400 | P65: =SUM(P63:P64) -> 296 | Q65: 518 | R65: 0 | S65: 814 | T65: 7400 | U65: 8214 | V65: 0 | W65: 0 | X65: 0 | Y65: 507.8772 | Z65: 507.87 | AA65: 0 | AB65: 7706.13
D67: DIRECCION DE EDUCACION
A68: 37 | D68: FREGOSO VARGAS VIDALIA CECILIA | H68: DIRECTOR DE EDUCACION | I68: 15 | J68: TARJETA | L68: 0 | M68: 0 | N68: =5316/15 -> 354.4 | O68: =TRUNC(N68*I68,2) -> 5316 | P68: =TRUNC(N68*I68*0.04,2) -> 212.64 | Q68: =TRUNC(N68*0.07*I68,2) -> 372.12 | R68: =L68 -> 0 | S68: =TRUNC(Q68+P68+(IF(R68>519,519,R68))+IF(K68=0,0,K68*N68),2) -> 584.76 | T68: =TRUNC((IF(K68=0,I68*N68,(I68-K68)*N68))+(IF(R68<519,0,R68-519)),2)+M68 -> 5316 | U68: =S68+T68 -> 5900.76 | X68: 0 | Y68: =IF(N68>0.01,(T68-VLOOKUP(T68,quincenal,1))*VLOOKUP(T68,quincenal,3)+VLOOKUP(T68,quincenal,2)-VLOOKUP(T68,subquincenal,2),0) -> 588.308424 | Z68: =TRUNC(IF(Y68>0.01,Y68,0),2) -> 588.3 | AA68: =TRUNC(IF(Y68<0.01,-Y68,0),2) -> 0 | AB68: =U68-W68-X68-Z68+AA68 -> 5312.46 | AC68: =#REF! -> 
D69: DIRECCION DE EDUCACION | O69: =SUM(O68) -> 5316 | P69: =SUM(P68) -> 212.64 | Q69: 372.12 | R69: 0 | S69: 584.76 | T69: 5316 | U69: 5900.76 | V69: 0 | W69: 0 | X69: 0 | Y69: 588.308424 | Z69: 588.3 | AA69: 0 | AB69: 5312.46
D71: DEPARTAMENTO DE PROMOCION Y DESARROLLO ECONOMICO
A72: 38 | D72: ESTRADA SANTIAGO ANTONIO | H72: DIRECTOR | I72: 15 | J72: TARJETA | L72: 0 | M72: 0 | N72: =5316/15 -> 354.4 | O72: =TRUNC(N72*I72,2) -> 5316 | P72: =TRUNC(N72*I72*0.04,2) -> 212.64 | Q72: =TRUNC(N72*0.07*I72,2) -> 372.12 | R72: =L72 -> 0 | S72: =TRUNC(Q72+P72+(IF(R72>519,519,R72))+IF(K72=0,0,K72*N72),2) -> 584.76 | T72: =TRUNC((IF(K72=0,I72*N72,(I72-K72)*N72))+(IF(R72<519,0,R72-519)),2)+M72 -> 5316 | U72: =S72+T72 -> 5900.76 | X72: 0 | Y72: =IF(N72>0.01,(T72-VLOOKUP(T72,quincenal,1))*VLOOKUP(T72,quincenal,3)+VLOOKUP(T72,quincenal,2)-VLOOKUP(T72,subquincenal,2),0) -> 588.308424 | Z72: =TRUNC(IF(Y72>0.01,Y72,0),2) -> 588.3 | AA72: =TRUNC(IF(Y72<0.01,-Y72,0),2) -> 0 | AB72: =U72-W72-X72-Z72+AA72 -> 5312.46
A73: 39 | B73: 1 | C73: 6 | D73: MARTINEZ MARTINEZ SALVADOR TAURINO JONATHAN | E73: MAMS900118M80 | F73: MAMS900118HJCRRL02 | G73: 2007-01-01 | H73: AYUDANTE | I73: 15 | J73: TARJETA | L73: 0 | M73: 0 | N73: =2788/15 -> 185.8666667 | O73: =TRUNC(N73*I73,2) -> 2788 | P73: =TRUNC(N73*I73*0.04,2) -> 111.52 | Q73: =TRUNC(N73*0.07*I73,2) -> 195.16 | R73: =L73 -> 0 | S73: =TRUNC(Q73+P73+(IF(R73>519,519,R73))+IF(K73=0,0,K73*N73),2) -> 306.68 | T73: =TRUNC((IF(K73=0,I73*N73,(I73-K73)*N73))+(IF(R73<519,0,R73-519)),2)+M73 -> 2788 | U73: =S73+T73 -> 3094.68 | X73: 0 | Y73: =IF(N73>0.01,(T73-VLOOKUP(T73,quincenal,1))*VLOOKUP(T73,quincenal,3)+VLOOKUP(T73,quincenal,2)-VLOOKUP(T73,subquincenal,2),0) -> 53.901312 | Z73: =TRUNC(IF(Y73>0.01,Y73,0),2) -> 53.9 | AA73: 0 | AB73: =U73-W73-X73-Z73+AA73 -> 3040.78 | AC73: =#REF! -> 
A74: 40 | B74: 1 | C74: 19 | D74: ULLOA MARTINEZ MARCELA GUADALUPE | E74: UOMM730612 | F74: UOMM730612MJCLRR02 | G74: 1998-01-01 | H74: AUXILIAR ADMINISTRATIVO | I74: 15 | J74: TARJETA | L74: 0 | M74: 0 | N74: =3261/15 -> 217.4 | O74: =TRUNC(N74*I74,2) -> 3261 | P74: =TRUNC(N74*I74*0.04,2) -> 130.44 | Q74: =TRUNC(N74*0.07*I74,2) -> 228.27 | R74: =L74 -> 0 | S74: =TRUNC(Q74+P74+(IF(R74>519,519,R74))+IF(K74=0,0,K74*N74),2) -> 358.71 | T74: =TRUNC((IF(K74=0,I74*N74,(I74-K74)*N74))+(IF(R74<519,0,R74-519)),2)+M74 -> 3261 | U74: =S74+T74 -> 3619.71 | X74: 0 | Y74: =IF(N74>0.01,(T74-VLOOKUP(T74,quincenal,1))*VLOOKUP(T74,quincenal,3)+VLOOKUP(T74,quincenal,2)-VLOOKUP(T74,subquincenal,2),0) -> 125.613712 | Z74: =TRUNC(IF(Y74>0.01,Y74,0),2) -> 125.61 | AA74: =TRUNC(IF(Y74<0.01,-Y74,0),2) -> 0 | AB74: =U74-W74-X74-Z74+AA74 -> 3494.1 | AC74: =#REF! -> 
A75: 41 | B75: 1 | C75: 19 | D75: GONZALEZ MARTINEZ ERIKA DELFINA | E75: FEIA870704 | F75: FEIA870704MJCRXN02 | H75: SECRETARIA | I75: 15 | J75: TARJETA | L75: 0 | M75: 0 | N75: =2658/15 -> 177.2 | O75: =TRUNC(N75*I75,2) -> 2658 | P75: =TRUNC(N75*I75*0.04,2) -> 106.32 | Q75: =TRUNC(N75*0.07*I75,2) -> 186.06 | R75: =L75 -> 0 | S75: =TRUNC(Q75+P75+(IF(R75>519,519,R75))+IF(K75=0,0,K75*N75),2) -> 292.38 | T75: =TRUNC((IF(K75=0,I75*N75,(I75-K75)*N75))+(IF(R75<519,0,R75-519)),2)+M75 -> 2658 | U75: =S75+T75 -> 2950.38 | W75: 0 | X75: 0 | Y75: =IF(N75>0.01,(T75-VLOOKUP(T75,quincenal,1))*VLOOKUP(T75,quincenal,3)+VLOOKUP(T75,quincenal,2)-VLOOKUP(T75,subquincenal,2),0) -> 39.757312 | Z75: =TRUNC(IF(Y75>0.01,Y75,0),2) -> 39.75 | AA75: =TRUNC(IF(Y75<0.01,-Y75,0),2) -> 0 | AB75: =U75-W75-X75-Z75+AA75 -> 2910.63 | AC75: =#REF! -> 
D76: DEPARTAMENTO DE PROMOCION Y DESARROLLO ECONOMICO | O76: =SUM(O72:O75) -> 14023 | P76: =SUM(P72:P75) -> 560.92 | Q76: 981.61 | R76: 0 | S76: 1542.53 | T76: 14023 | U76: 15565.53 | V76: 0 | W76: 0 | X76: 0 | Y76: 807.58076 | Z76: 807.56 | AA76: 0 | AB76: 14757.97
D78: OFICINA DE ENLACE RELACIONES EXTERIORES
A79: 42 | B79: 1 | C79: 23 | D79: GUTIERREZ REYES CAROL | E79: GURC680410 | F79: GURC680410MJCTYR00 | G79: 2001-01-02 | H79: JEFE ADMINISTRADOR | I79: 15 | J79: TARJETA | L79: 0 | M79: 0 | N79: 370.2 | O79: =TRUNC(N79*I79,2) -> 5553 | P79: =TRUNC(N79*I79*0.04,2) -> 222.12 | Q79: =TRUNC(N79*0.07*I79,2) -> 388.71 | R79: =L79 -> 0 | S79: =TRUNC(Q79+P79+(IF(R79>519,519,R79))+IF(K79=0,0,K79*N79),2) -> 610.83 | T79: =TRUNC((IF(K79=0,I79*N79,(I79-K79)*N79))+(IF(R79<519,0,R79-519)),2)+M79 -> 5553 | U79: =S79+T79 -> 6163.83 | X79: 0 | Y79: =IF(N79>0.01,(T79-VLOOKUP(T79,quincenal,1))*VLOOKUP(T79,quincenal,3)+VLOOKUP(T79,quincenal,2)-VLOOKUP(T79,subquincenal,2),0) -> 638.931624 | Z79: =TRUNC(IF(Y79>0.01,Y79,0),2) -> 638.93 | AA79: =TRUNC(IF(Y79<0.01,-Y79,0),2) -> 0 | AB79: =U79-W79-X79-Z79+AA79 -> 5524.9 | AC79: =#REF! -> 
A80: 42 | B80: 1 | C80: 23 | D80: FREGOSO HURTADO ALEJANDRA | E80: FEHA831218 | F80: FEHA831218MJCRRL07 | G80: 2007-04-10 | H80: AUX. ADMINISTRATIVO | I80: 15 | J80: TARJETA | L80: 0 | M80: 0 | N80: 211.816 | O80: =TRUNC(N80*I80,2) -> 3177.24 | P80: =TRUNC(N80*I80*0.04,2) -> 127.08 | Q80: =TRUNC(N80*0.07*I80,2) -> 222.4 | R80: =L80 -> 0 | S80: =TRUNC(Q80+P80+(IF(R80>519,519,R80))+IF(K80=0,0,K80*N80),2) -> 349.48 | T80: =TRUNC((IF(K80=0,I80*N80,(I80-K80)*N80))+(IF(R80<519,0,R80-519)),2)+M80 -> 3177.24 | U80: =S80+T80 -> 3526.72 | X80: 0 | Y80: =IF(N80>0.01,(T80-VLOOKUP(T80,quincenal,1))*VLOOKUP(T80,quincenal,3)+VLOOKUP(T80,quincenal,2)-VLOOKUP(T80,subquincenal,2),0) -> 116.500624 | Z80: =TRUNC(IF(Y80>0.01,Y80,0),2) -> 116.5 | AA80: =TRUNC(IF(Y80<0.01,-Y80,0),2) -> 0 | AB80: =U80-W80-X80-Z80+AA80 -> 3410.22 | AC80: =#REF! -> 
A81: 44 | B81: 1 | C81: 23 | D81: LOPEZ MARTINEZ YVETTE AMALIA MARGARITA | E81: LOMY681017 | F81: LOMY681017MJCPRV08 | G81: 2001-01-01 | H81: SUPERVISOR | I81: 15 | J81: TARJETA | L81: 0 | M81: 0 | N81: 211.816 | O81: =TRUNC(N81*I81,2) -> 3177.24 | P81: =TRUNC(N81*I81*0.04,2) -> 127.08 | Q81: =TRUNC(N81*0.07*I81,2) -> 222.4 | R81: =L81 -> 0 | S81: =TRUNC(Q81+P81+(IF(R81>519,519,R81))+IF(K81=0,0,K81*N81),2) -> 349.48 | T81: =TRUNC((IF(K81=0,I81*N81,(I81-K81)*N81))+(IF(R81<519,0,R81-519)),2)+M81 -> 3177.24 | U81: =S81+T81 -> 3526.72 | X81: 0 | Y81: =IF(N81>0.01,(T81-VLOOKUP(T81,quincenal,1))*VLOOKUP(T81,quincenal,3)+VLOOKUP(T81,quincenal,2)-VLOOKUP(T81,subquincenal,2),0) -> 116.500624 | Z81: =TRUNC(IF(Y81>0.01,Y81,0),2) -> 116.5 | AA81: =TRUNC(IF(Y81<0.01,-Y81,0),2) -> 0 | AB81: =U81-W81-X81-Z81+AA81 -> 3410.22 | AC81: =#REF! -> 
A82: 45 | B82: 1 | C82: 23 | D82: ESTRADA GOMEZ JUAN CARLOS | E82: EAGJ510220NR1 | F82: EAGJ510220HJCSMN09 | H82: MENSAJERO | I82: 15 | J82: TARJETA | L82: 0 | M82: 0 | N82: 216.7235 | O82: =TRUNC(N82*I82,2) -> 3250.85 | P82: =TRUNC(N82*I82*0.04,2) -> 130.03 | Q82: =TRUNC(N82*0.07*I82,2) -> 227.55 | R82: =L82 -> 0 | S82: =TRUNC(Q82+P82+(IF(R82>519,519,R82))+IF(K82=0,0,K82*N82),2) -> 357.58 | T82: =TRUNC((IF(K82=0,I82*N82,(I82-K82)*N82))+(IF(R82<519,0,R82-519)),2)+M82 -> 3250.85 | U82: =S82+T82 -> 3608.43 | W82: 0 | X82: 0 | Y82: =IF(N82>0.01,(T82-VLOOKUP(T82,quincenal,1))*VLOOKUP(T82,quincenal,3)+VLOOKUP(T82,quincenal,2)-VLOOKUP(T82,subquincenal,2),0) -> 124.509392 | Z82: =TRUNC(IF(Y82>0.01,Y82,0),2) -> 124.5 | AA82: =TRUNC(IF(Y82<0.01,-Y82,0),2) -> 0 | AB82: =U82-W82-X82-Z82+AA82 -> 3483.93 | AC82: =#REF! -> 
D83: OFICINA DE ENLACE RELACIONES EXTERIORES | O83: =SUM(O79:O82) -> 15158.33 | P83: =SUM(P79:P82) -> 606.31 | Q83: 1061.06 | R83: 0 | S83: 1667.37 | T83: 15158.33 | U83: 16825.7 | V83: 0 | W83: 0 | X83: 0 | Y83: 996.442264 | Z83: 996.43 | AA83: 0 | AB83: 15829.27
D85: AGENCIAS MUNICIPALES
A86: 46 | B86: 2 | C86: 2 | D86: AGUILAR DIAS JOSE DE JESUS | H86: AGENTE MUNICIPAL STA. ROSALIA | I86: 15 | J86: TARJETA | L86: 0 | M86: 0 | N86: =1993/15 -> 132.8666667 | O86: =TRUNC(N86*I86,2) -> 1993 | P86: =TRUNC(N86*I86*0.04,2) -> 79.72 | Q86: =TRUNC(N86*0.07*I86,2) -> 139.51 | R86: =L86 -> 0 | S86: =TRUNC(Q86+P86+(IF(R86>519,519,R86))+IF(K86=0,0,K86*N86),2) -> 219.23 | T86: =TRUNC((IF(K86=0,I86*N86,(I86-K86)*N86))+(IF(R86<519,0,R86-519)),2)+M86 -> 1993 | U86: =S86+T86 -> 2212.23 | X86: 0 | Y86: =IF(N86>0.01,(T86-VLOOKUP(T86,quincenal,1))*VLOOKUP(T86,quincenal,3)+VLOOKUP(T86,quincenal,2)-VLOOKUP(T86,subquincenal,2),0) -> -72.16584 | Z86: =TRUNC(IF(Y86>0.01,Y86,0),2) -> 0 | AA86: =TRUNC(IF(Y86<0.01,-Y86,0),2) -> 72.16 | AB86: =U86-W86-X86-Z86+AA86 -> 2284.39 | AC86: =#REF! ->  | AE86: 1778.88
A87: 47 | B87: 2 | C87: 2 | D87: PARRA LOPEZ RAUL | E87: PALR | H87: AGENTE MUNICIPAL SAN RAFAEL | I87: 15 | J87: TARJETA | L87: 0 | M87: 0 | N87: =1371/15 -> 91.4 | O87: 1371 | P87: 54.84 | Q87: 95.97 | R87: 0 | S87: 150.81 | T87: 1371 | U87: 1521.81 | X87: 0 | Y87: -123.97384 | Z87: 0 | AA87: 123.97 | AB87: 1645.78 | AC87: =#REF! ->  | AE87: 1488.82
A88: 48 | B88: 2 | C88: 2 | D88: GONZALEZ RUIZ MANUEL | E88: GORA710130M39 | F88: GORA710130HJCNZN08 | H88: AGENTE MUNICIPAL SAN SEBASTIAN | I88: 15 | J88: TARJETA | L88: 0 | M88: 0 | N88: =1371/15 -> 91.4 | O88: 1371 | P88: 54.84 | Q88: 95.97 | R88: 0 | S88: 150.81 | T88: 1371 | U88: 1521.81 | X88: 0 | Y88: -123.97384 | Z88: 0 | AA88: 123.97 | AB88: 1645.78 | AC88: =#REF! ->  | AE88: 1488.82
A89: 49 | B89: 2 | C89: 2 | D89: SIERRA LLAMAS JUAN JOSE | E89: SILJ660418 | F89: SILJ660418HJCRLN17 | H89: AGENTE MUNICIPAL DE PUERTA DE PERICOS | I89: 15 | J89: TARJETA | L89: 0 | M89: 0 | N89: =1683/15 -> 112.2 | O89: 1683 | P89: 67.32 | Q89: 117.81 | R89: 0 | S89: 185.13 | T89: 1683 | U89: 1868.13 | X89: 0 | Y89: -104.00584 | Z89: 0 | AA89: 104 | AB89: 1972.13 | AC89: =#REF! ->  | AE89: 1778.88
A90: 50 | B90: 2 | C90: 2 | D90: ROBLES GONZALEZ RENE | E90: ROGR520511 | F90: ROGR520511HJCBNN08 | H90: AGENTE MUNICIPAL LA MAZATA | I90: 15 | J90: TARJETA | L90: 0 | M90: 0 | N90: =1683/15 -> 112.2 | O90: 1683 | P90: 67.32 | Q90: 117.81 | R90: 0 | S90: 185.13 | T90: 1683 | U90: 1868.13 | X90: 0 | Y90: -104.00584 | Z90: 0 | AA90: 104 | AB90: 1972.13 | AC90: =#REF! ->  | AE90: 1778.88
A91: 51 | B91: 2 | C91: 2 | D91: PEREZ ESPARZA MATEO | E91: PEEM720720 | F91: PEEM720720HJCRST02 | H91: AGENTE MUNICIPAL LA QUEBRADA | I91: 15 | J91: TARJETA | L91: 0 | M91: 0 | N91: =1434/15 -> 95.6 | O91: 1434 | P91: 57.36 | Q91: 100.38 | R91: 0 | S91: 157.74 | T91: 1434 | U91: 1591.74 | X91: 0 | Y91: -119.94184 | Z91: 0 | AA91: 119.94 | AB91: 1711.68 | AC91: =#REF! ->  | AE91: 567.88
A92: 52 | B92: 2 | C92: 2 | D92: AGUAYO CORTES MIGUEL | E92: AUCM770311 | F92: AUCM770311HJCGRG09 | H92: AGENTE MUNICIPAL LA EMBOCADA | I92: 15 | J92: TARJETA | L92: 0 | M92: 0 | N92: =1434/15 -> 95.6 | O92: 1434 | P92: 57.36 | Q92: 100.38 | R92: 0 | S92: 157.74 | T92: 1434 | U92: 1591.74 | X92: 0 | Y92: -119.94184 | Z92: 0 | AA92: 119.94 | AB92: 1711.68 | AC92: =#REF! ->  | AE92: 1546.83
A93: 53 | D93: RAMOS QUIRARTE J. CARMEN | E93: AUCM770311 | F93: AUCM770311HJCGRG09 | H93: AGENTE MUNICIPAL LAS EJIMENEZ | I93: 15 | J93: TARJETA | L93: 0 | M93: 0 | N93: =1032/15 -> 68.8 | O93: =TRUNC(N93*I93,2) -> 1032 | P93: =TRUNC(N93*I93*0.04,2) -> 41.28 | Q93: =TRUNC(N93*0.07*I93,2) -> 72.24 | R93: =L93 -> 0 | S93: =TRUNC(Q93+P93+(IF(R93>519,519,R93))+IF(K93=0,0,K93*N93),2) -> 113.52 | T93: =TRUNC((IF(K93=0,I93*N93,(I93-K93)*N93))+(IF(R93<519,0,R93-519)),2)+M93 -> 1032 | U93: =S93+T93 -> 1145.52 | X93: 0 | Y93: =IF(N93>0.01,(T93-VLOOKUP(T93,quincenal,1))*VLOOKUP(T93,quincenal,3)+VLOOKUP(T93,quincenal,2)-VLOOKUP(T93,subquincenal,2),0) -> -145.66984 | Z93: =TRUNC(IF(Y93>0.01,Y93,0),2) -> 0 | AA93: =TRUNC(IF(Y93<0.01,-Y93,0),2) -> 145.66 | AB93: =U93-W93-X93-Z93+AA93 -> 1291.18
A94: 54 | D94: CASILLAS VALENZUELA MARCO ANTONIO | H94: ASEO LA MAZATA | I94: 15 | J94: TARJETA | N94: =1286/15 -> 85.73333333 | O94: =TRUNC(N94*I94,2) -> 1286 | P94: =TRUNC(N94*I94*0.04,2) -> 51.44 | Q94: =TRUNC(N94*0.07*I94,2) -> 90.02 | R94: =L94 -> 0 | S94: =TRUNC(Q94+P94+(IF(R94>519,519,R94))+IF(K94=0,0,K94*N94),2) -> 141.46 | T94: =TRUNC((IF(K94=0,I94*N94,(I94-K94)*N94))+(IF(R94<519,0,R94-519)),2)+M94 -> 1286 | U94: =S94+T94 -> 1427.46 | X94: 0 | Y94: =IF(N94>0.01,(T94-VLOOKUP(T94,quincenal,1))*VLOOKUP(T94,quincenal,3)+VLOOKUP(T94,quincenal,2)-VLOOKUP(T94,subquincenal,2),0) -> -129.41384 | Z94: =TRUNC(IF(Y94>0.01,Y94,0),2) -> 0 | AA94: =TRUNC(IF(Y94<0.01,-Y94,0),2) -> 129.41 | AB94: =U94-W94-X94-Z94+AA94 -> 1556.87
A95: 55 | B95: 2 | C95: 2 | D95: LOPEZ SILVA CARLOS DAMIAN | E95: GOHV780710 | F95: GOHV780710HJCMRL00 | G95: 2007-02-01 | H95: CHOFER RECOLECTOR | I95: 15 | J95: TARJETA | L95: 0 | M95: 0 | N95: =2530/15 -> 168.6666667 | O95: =TRUNC(N95*I95,2) -> 2530 | P95: =TRUNC(N95*I95*0.04,2) -> 101.2 | Q95: =TRUNC(N95*0.07*I95,2) -> 177.1 | R95: =L95 -> 0 | S95: =TRUNC(Q95+P95+(IF(R95>519,519,R95))+IF(K95=0,0,K95*N95),2) -> 278.3 | T95: =TRUNC((IF(K95=0,I95*N95,(I95-K95)*N95))+(IF(R95<519,0,R95-519)),2)+M95 -> 2530 | U95: =S95+T95 -> 2808.3 | X95: 0 | Y95: =IF(N95>0.01,(T95-VLOOKUP(T95,quincenal,1))*VLOOKUP(T95,quincenal,3)+VLOOKUP(T95,quincenal,2)-VLOOKUP(T95,subquincenal,2),0) -> 10.830912 | Z95: =TRUNC(IF(Y95>0.01,Y95,0),2) -> 10.83 | AA95: =TRUNC(IF(Y95<0.01,-Y95,0),2) -> 0 | AB95: =U95-W95-X95-Z95+AA95 -> 2797.47 | AC95: =#REF! ->  | AE95: 0
D96: AGENCIAS MUNICIPALES | O96: =SUM(O86:O95) -> 15817 | P96: =SUM(P86:P95) -> 632.68 | Q96: 1107.19 | R96: 0 | S96: 1739.87 | T96: 15817 | U96: 17556.87 | V96: 0 | W96: 0 | X96: 0 | Y96: -1032.261648 | Z96: 10.83 | AA96: 1043.05 | AB96: 18589.09
D98: ADMIN ISTRACION DE LA HACIENDA MUNICIPAL
A99: 56 | B99: 3 | C99: 1 | D99: DE LEON GARCIA JUAN ANTONIO | H99: ENCARGADO DE HACIENDA PUBLICA | I99: 15 | J99: TARJETA | L99: 0 | M99: 0 | N99: =8355/15 -> 557 | O99: =TRUNC(N99*I99,2) -> 8355 | P99: =TRUNC(N99*I99*0.04,2) -> 334.2 | Q99: =TRUNC(N99*0.07*I99,2) -> 584.85 | R99: =L99 -> 0 | S99: =TRUNC(Q99+P99+(IF(R99>519,519,R99))+IF(K99=0,0,K99*N99),2) -> 919.05 | T99: =TRUNC((IF(K99=0,I99*N99,(I99-K99)*N99))+(IF(R99<519,0,R99-519)),2)+M99 -> 8355 | U99: =S99+T99 -> 9274.05 | X99: 0 | Y99: =IF(N99>0.01,(T99-VLOOKUP(T99,quincenal,1))*VLOOKUP(T99,quincenal,3)+VLOOKUP(T99,quincenal,2)-VLOOKUP(T99,subquincenal,2),0) -> 1237.438824 | Z99: =TRUNC(IF(Y99>0.01,Y99,0),2) -> 1237.43 | AA99: =TRUNC(IF(Y99<0.01,-Y99,0),2) -> 0 | AB99: =U99-W99-X99-Z99+AA99 -> 8036.62 | AC99: =#REF! -> 
A100: 57 | B100: 3 | C100: 1 | D100: MARTINEZ PAREDES ANNA VERONICA | E100: MAPA820618 | F100: MAPA820618MJCRRN00 | G100: 2007-01-31 | H100: AUXILIAR CONTABLE | I100: 15 | J100: TARJETA | L100: 0 | M100: 0 | N100: =4693/15 -> 312.8666667 | O100: =TRUNC(N100*I100,2) -> 4693 | P100: =TRUNC(N100*I100*0.04,2) -> 187.72 | Q100: =TRUNC(N100*0.07*I100,2) -> 328.51 | R100: =L100 -> 0 | S100: =TRUNC(Q100+P100+(IF(R100>519,519,R100))+IF(K100=0,0,K100*N100),2) -> 516.23 | T100: =TRUNC((IF(K100=0,I100*N100,(I100-K100)*N100))+(IF(R100<519,0,R100-519)),2)+M100 -> 4693 | U100: =S100+T100 -> 5209.23 | X100: 0 | Y100: =IF(N100>0.01,(T100-VLOOKUP(T100,quincenal,1))*VLOOKUP(T100,quincenal,3)+VLOOKUP(T100,quincenal,2)-VLOOKUP(T100,subquincenal,2),0) -> 468.491088 | Z100: =TRUNC(IF(Y100>0.01,Y100,0),2) -> 468.49 | AA100: =TRUNC(IF(Y100<0.01,-Y100,0),2) -> 0 | AB100: =U100-W100-X100-Z100+AA100 -> 4740.74 | AC100: =#REF! -> 
A101: 58 | B101: 3 | C101: 1 | D101: PEREZ JAIME ARTURO | E101: PEJA600718 | F101: PEXJ600718HJCRXM09 | G101: 2009-01-05 | H101: AUXILIAR CONTABLE | I101: 15 | J101: TARJETA | L101: 0 | M101: 0 | N101: =5198/15 -> 346.5333333 | O101: =TRUNC(N101*I101,2) -> 5198 | P101: =TRUNC(N101*I101*0.04,2) -> 207.92 | Q101: =TRUNC(N101*0.07*I101,2) -> 363.86 | R101: =L101 -> 0 | S101: =TRUNC(Q101+P101+(IF(R101>519,519,R101))+IF(K101=0,0,K101*N101),2) -> 571.78 | T101: =TRUNC((IF(K101=0,I101*N101,(I101-K101)*N101))+(IF(R101<519,0,R101-519)),2)+M101 -> 5198 | U101: =S101+T101 -> 5769.78 | X101: 0 | Y101: =IF(N101>0.01,(T101-VLOOKUP(T101,quincenal,1))*VLOOKUP(T101,quincenal,3)+VLOOKUP(T101,quincenal,2)-VLOOKUP(T101,subquincenal,2),0) -> 563.103624 | Z101: =TRUNC(IF(Y101>0.01,Y101,0),2) -> 563.1 | AA101: =TRUNC(IF(Y101<0.01,-Y101,0),2) -> 0 | AB101: =U101-W101-X101-Z101+AA101 -> 5206.68
A102: 59 | B102: 3 | C102: 1 | D102: RUIZ GUZMAN JESUS MANUEL | E102: RUGJ | H102: AUXI. DE PRESUPUESTO | I102: 15 | J102: TARJETA | L102: 0 | M102: 0 | N102: =3397/15 -> 226.4666667 | O102: =TRUNC(N102*I102,2) -> 3397 | P102: =TRUNC(N102*I102*0.04,2) -> 135.88 | Q102: =TRUNC(N102*0.07*I102,2) -> 237.79 | R102: =L102 -> 0 | S102: =TRUNC(Q102+P102+(IF(R102>519,519,R102))+IF(K102=0,0,K102*N102),2) -> 373.67 | T102: =TRUNC((IF(K102=0,I102*N102,(I102-K102)*N102))+(IF(R102<519,0,R102-519)),2)+M102 -> 3397 | U102: =S102+T102 -> 3770.67 | X102: 0 | Y102: =IF(N102>0.01,(T102-VLOOKUP(T102,quincenal,1))*VLOOKUP(T102,quincenal,3)+VLOOKUP(T102,quincenal,2)-VLOOKUP(T102,subquincenal,2),0) -> 140.410512 | Z102: =TRUNC(IF(Y102>0.01,Y102,0),2) -> 140.41 | AA102: =TRUNC(IF(Y102<0.01,-Y102,0),2) -> 0 | AB102: =U102-W102-X102-Z102+AA102 -> 3630.26 | AC102: =#REF! -> 
D103: ADMIN ISTRACION DE LA HACIENDA MUNICIPAL | O103: =SUM(O99:O102) -> 21643 | P103: =SUM(P99:P102) -> 865.72 | Q103: 1515.01 | R103: 0 | S103: 2380.73 | T103: 21643 | U103: 24023.73 | V103: 0 | W103: 0 | X103: 0 | Y103: 2409.444048 | Z103: 2409.43 | AA103: 0 | AB103: 21614.3
D105: DEPARTAMENTO DE INGRESOS
A106: 60 | B106: 3 | C106: 3 | D106: ARIAS RAMOS MARIA DEL SOCORRO | E106: AIRS650514 | F106: AIRS650514MJCRMC06 | H106: CAJERA | I106: 15 | J106: TARJETA | L106: 0 | M106: 0 | N106: =3228/15 -> 215.2 | O106: =TRUNC(N106*I106,2) -> 3228 | P106: =TRUNC(N106*I106*0.04,2) -> 129.12 | Q106: =TRUNC(N106*0.07*I106,2) -> 225.96 | R106: =L106 -> 0 | S106: =TRUNC(Q106+P106+(IF(R106>519,519,R106))+IF(K106=0,0,K106*N106),2) -> 355.08 | T106: =TRUNC((IF(K106=0,I106*N106,(I106-K106)*N106))+(IF(R106<519,0,R106-519)),2)+M106 -> 3228 | U106: =S106+T106 -> 3583.08 | X106: 0 | Y106: =IF(N106>0.01,(T106-VLOOKUP(T106,quincenal,1))*VLOOKUP(T106,quincenal,3)+VLOOKUP(T106,quincenal,2)-VLOOKUP(T106,subquincenal,2),0) -> 122.023312 | Z106: =TRUNC(IF(Y106>0.01,Y106,0),2) -> 122.02 | AA106: =TRUNC(IF(Y106<0.01,-Y106,0),2) -> 0 | AB106: =U106-W106-X106-Z106+AA106 -> 3461.06 | AC106: =#REF! -> 
A107: 61 | B107: 11 | C107: 17 | D107: MARTINEZ GOMEZ GALDINO | E107: MAGG | H107: INSPECTOR FISCAL | I107: 15 | J107: TARJETA | L107: 0 | M107: 0 | N107: =2624/15 -> 174.9333333 | O107: =TRUNC(N107*I107,2) -> 2624 | P107: =TRUNC(N107*I107*0.04,2) -> 104.96 | Q107: =TRUNC(N107*0.07*I107,2) -> 183.68 | R107: =L107 -> 0 | S107: =TRUNC(Q107+P107+(IF(R107>519,519,R107))+IF(K107=0,0,K107*N107),2) -> 288.64 | T107: =TRUNC((IF(K107=0,I107*N107,(I107-K107)*N107))+(IF(R107<519,0,R107-519)),2)+M107 -> 2624 | U107: =S107+T107 -> 2912.64 | X107: 0 | Y107: =IF(N107>0.01,(T107-VLOOKUP(T107,quincenal,1))*VLOOKUP(T107,quincenal,3)+VLOOKUP(T107,quincenal,2)-VLOOKUP(T107,subquincenal,2),0) -> 21.058112 | Z107: =TRUNC(IF(Y107>0.01,Y107,0),2) -> 21.05 | AA107: =TRUNC(IF(Y107<0.01,-Y107,0),2) -> 0 | AB107: =U107-W107-X107-Z107+AA107 -> 2891.59 | AC107: =#REF! -> 
A108: 62 | B108: 3 | C108: 3 | D108: CABRALES GONZALEZ JOSE MANUEL | E108: CAGM680912 | F108: CAGM680912HJCBNN06 | G108: 2007-01-01 | H108: RECAUDADOR DE PISO | I108: 15 | J108: TARJETA | L108: 0 | M108: 0 | N108: =3016/15 -> 201.0666667 | O108: =TRUNC(N108*I108,2) -> 3016 | P108: =TRUNC(N108*I108*0.04,2) -> 120.64 | Q108: =TRUNC(N108*0.07*I108,2) -> 211.12 | R108: =L108 -> 0 | S108: =TRUNC(Q108+P108+(IF(R108>519,519,R108))+IF(K108=0,0,K108*N108),2) -> 331.76 | T108: =TRUNC((IF(K108=0,I108*N108,(I108-K108)*N108))+(IF(R108<519,0,R108-519)),2)+M108 -> 3016 | U108: =S108+T108 -> 3347.76 | X108: 0 | Y108: =IF(N108>0.01,(T108-VLOOKUP(T108,quincenal,1))*VLOOKUP(T108,quincenal,3)+VLOOKUP(T108,quincenal,2)-VLOOKUP(T108,subquincenal,2),0) -> 78.707712 | Z108: =TRUNC(IF(Y108>0.01,Y108,0),2) -> 78.7 | AA108: =TRUNC(IF(Y108<0.01,-Y108,0),2) -> 0 | AB108: =U108-W108-X108-Z108+AA108 -> 3269.06 | AC108: =#REF! -> 
D109: DEPARTAMENTO DE INGRESOS | O109: =SUM(O106:O108) -> 8868 | P109: =SUM(P106:P108) -> 354.72 | Q109: 620.76 | R109: 0 | S109: 975.48 | T109: 8868 | U109: 9843.48 | V109: 0 | W109: 0 | X109: 0 | Y109: 221.789136 | Z109: 221.77 | AA109: 0 | AB109: 9621.71
D111: DEPARTAMENTO DE EGRESOS
A112: 63 | B112: 3 | C112: 7 | E112: LEGJ | H112: COORDINADOR DE EGRESOS | I112: 0 | J112: TARJETA | L112: 0 | M112: 0 | N112: =5198/15 -> 346.5333333 | O112: =TRUNC(N112*I112,2) -> 0 | P112: =TRUNC(N112*I112*0.04,2) -> 0 | Q112: =TRUNC(N112*0.07*I112,2) -> 0 | R112: =L112 -> 0 | S112: =TRUNC(Q112+P112+(IF(R112>519,519,R112))+IF(K112=0,0,K112*N112),2) -> 0 | T112: =TRUNC((IF(K112=0,I112*N112,(I112-K112)*N112))+(IF(R112<519,0,R112-519)),2)+M112 -> 0 | U112: =S112+T112 -> 0 | X112: 0 | Y112: =IF(N112>0.01,(T112-VLOOKUP(T112,quincenal,1))*VLOOKUP(T112,quincenal,3)+VLOOKUP(T112,quincenal,2)-VLOOKUP(T112,subquincenal,2),0) ->  | AB112: =U112-W112-X112-Z112+AA112 -> 0 | AC112: =#REF! -> 
D113: DEPARTAMENTO DE EGRESOS | O113: =SUM(O112) -> 0 | P113: 0 | Q113: 0 | R113: 0 | S113: 0 | T113: 0 | U113: 0 | V113: 0 | W113: 0 | X113: 0 | Z113: 0 | AA113: 0 | AB113: 0
D115: DEPARTAMENTO DE INFORMATICA
A116: 64 | B116: 3 | C116: 12 | D116: DIAZ MONTES EDGAR ALEXANDRO | E116: DIME | H116: DIRECTOR DE IL DEPARTAMENTO DE NFORMATICA | I116: 15 | J116: TARJETA | L116: 0 | M116: 0 | N116: =5198/15 -> 346.5333333 | O116: =TRUNC(N116*I116,2) -> 5198 | P116: =TRUNC(N116*I116*0.04,2) -> 207.92 | Q116: =TRUNC(N116*0.07*I116,2) -> 363.86 | R116: =L116 -> 0 | S116: =TRUNC(Q116+P116+(IF(R116>519,519,R116))+IF(K116=0,0,K116*N116),2) -> 571.78 | T116: =TRUNC((IF(K116=0,I116*N116,(I116-K116)*N116))+(IF(R116<519,0,R116-519)),2)+M116 -> 5198 | U116: =S116+T116 -> 5769.78 | X116: 0 | Y116: =IF(N116>0.01,(T116-VLOOKUP(T116,quincenal,1))*VLOOKUP(T116,quincenal,3)+VLOOKUP(T116,quincenal,2)-VLOOKUP(T116,subquincenal,2),0) -> 563.103624 | Z116: =TRUNC(IF(Y116>0.01,Y116,0),2) -> 563.1 | AA116: =TRUNC(IF(Y116<0.01,-Y116,0),2) -> 0 | AB116: =U116-W116-X116-Z116+AA116 -> 5206.68 | AC116: =#REF! -> 
D117: AUXILIAR | H117: AUXILIAR DEL DEPARTAMENTO DE NFORMATICA | I117: 0 | L117: 0 | M117: 0 | N117: 137.42 | O117: =TRUNC(N117*I117,2) -> 0 | P117: =TRUNC(N117*I117*0.04,2) -> 0 | Q117: =TRUNC(N117*0.07*I117,2) -> 0 | R117: =L117 -> 0 | S117: =TRUNC(Q117+P117+(IF(R117>519,519,R117))+IF(K117=0,0,K117*N117),2) -> 0 | T117: =TRUNC((IF(K117=0,I117*N117,(I117-K117)*N117))+(IF(R117<519,0,R117-519)),2)+M117 -> 0 | U117: =S117+T117 -> 0 | Y117: =IF(N117>0.01,(T117-VLOOKUP(T117,quincenal,1))*VLOOKUP(T117,quincenal,3)+VLOOKUP(T117,quincenal,2)-VLOOKUP(T117,subquincenal,2),0) ->  | Z117: 0 | AA117: 0 | AB117: =U117-W117-X117-Z117+AA117 -> 0 | AC117: =#REF! -> 
D118: DEPARTAMENTO DE COMPUTO E INFORMATICA | O118: =SUM(O116) -> 5198 | P118: 207.92 | Q118: 363.86 | R118: 0 | S118: 571.78 | T118: 5198 | U118: 5769.78 | V118: 0 | W118: 0 | X118: 0 | Y118: 563.103624 | Z118: 563.1 | AA118: 0 | AB118: 5206.68
D120: DEPARTAMENTO DE IMPUESTO PREDIAL Y CATASTRO
D121: BLANCO ARVIZU CESAR ROBERTO | H121: DIRECTOR INTERINO | I121: 15 | J121: TARJETA | L121: 0 | M121: 0 | N121: =5968/15 -> 397.8666667 | O121: =TRUNC(N121*I121,2) -> 5968 | P121: =TRUNC(N121*I121*0.04,2) -> 238.72 | Q121: =TRUNC(N121*0.07*I121,2) -> 417.76 | R121: =L121 -> 0 | S121: =TRUNC(Q121+P121+(IF(R121>519,519,R121))+IF(K121=0,0,K121*N121),2) -> 656.48 | T121: =TRUNC((IF(K121=0,I121*N121,(I121-K121)*N121))+(IF(R121<519,0,R121-519)),2)+M121 -> 5968 | U121: =S121+T121 -> 6624.48 | X121: 0 | Y121: =IF(N121>0.01,(T121-VLOOKUP(T121,quincenal,1))*VLOOKUP(T121,quincenal,3)+VLOOKUP(T121,quincenal,2)-VLOOKUP(T121,subquincenal,2),0) -> 727.575624 | Z121: =TRUNC(IF(Y121>0.01,Y121,0),2) -> 727.57 | AA121: =TRUNC(IF(Y121<0.01,-Y121,0),2) -> 0 | AB121: =U121-W121-X121-Z121+AA121 -> 5896.91
A122: 66 | B122: 3 | C122: 13 | D122: CAMARENA PEREZ BERTA ALICIA | E122: CAPB801105 | F122: CAPB801105MJCMRR06 | G122: 2007-01-01 | H122: SUB-DIRECTOR DE CATASTRO | I122: 15 | J122: TARJETA | L122: 0 | M122: 0 | N122: =4196/15 -> 279.7333333 | O122: 4196 | P122: 167.84 | Q122: 293.72 | R122: 0 | S122: 461.56 | T122: 4196 | U122: 4657.56 | X122: 0 | Y122: 380.4484 | Z122: =TRUNC(IF(Y122>0.01,Y122,0),2) -> 380.44 | AA122: =TRUNC(IF(Y122<0.01,-Y122,0),2) -> 0 | AB122: 4277.12 | AC122: =#REF! -> 
A123: 63 | B123: 3 | C123: 13 | E123: GOME840310 | F123: GOME840310MJCNRR06 | G123: 2009-01-01 | H123: SECRETARIA | I123: 0 | J123: TARJETA | L123: 0 | M123: 0 | N123: 170.38 | O123: 0 | P123: 0 | Q123: 0 | R123: 0 | S123: 0 | T123: 0 | U123: 0 | W123: 0 | X123: 0 | AB123: 0 | AC123: =#REF! -> 
A124: 67 | D124: HERNANDEZ BERNAL CESAR ALEJANDRO | E124: HEBC | H124: SUB-DIRECTOR DE PREDIAL | I124: 15 | J124: TARJETA | L124: 0 | M124: 0 | N124: =4196/15 -> 279.7333333 | O124: 4196 | P124: 167.84 | Q124: 293.72 | R124: 0 | S124: 461.56 | T124: 4196 | U124: 4657.56 | X124: 0 | Y124: 380.4484 | Z124: =TRUNC(IF(Y124>0.01,Y124,0),2) -> 380.44 | AA124: =TRUNC(IF(Y124<0.01,-Y124,0),2) -> 0 | AB124: 4277.12
A125: 68 | B125: 3 | C125: 13 | E125: MUPM | H125: AUXILIAR | I125: 0 | J125: TARJETA | L125: 0 | M125: 0 | N125: =2492/15 -> 166.1333333 | O125: 0 | P125: 0 | Q125: 0 | R125: 0 | S125: 0 | T125: 0 | U125: 0 | W125: 0 | X125: 0 | Z125: 0 | AA125: 0 | AB125: 0 | AC125: =#REF! -> 
D126: DEPARTAMENTO DE IMPUESTO PREDIAL Y CATASTRO | O126: =SUM(O121:O125) -> 14360 | P126: 574.4 | Q126: 1005.2 | R126: 0 | S126: 1579.6 | T126: 14360 | U126: 15939.6 | V126: 0 | W126: 0 | X126: 0 | Z126: 1488.45 | AA126: 0 | AB126: 14451.15
D128: ADMINISTRACION DE LOS SERVICIOS PUBLICOS MUNICIPALES
A129: 69 | D129: CORTEZ GODOY EUSEBIO | E129: HEAM740507 | F129: HEAM740507HJCRGN04 | G129: 2008-05-01 | H129: OPERADOR DE MAQUINAS | I129: 15 | J129: TARJETA | L129: 0 | M129: 0 | N129: =3428/15 -> 228.5333333 | O129: =TRUNC(N129*I129,2) -> 3428 | P129: =TRUNC(N129*I129*0.04,2) -> 137.12 | Q129: =TRUNC(N129*0.07*I129,2) -> 239.96 | R129: =L129 -> 0 | S129: =TRUNC(Q129+P129+(IF(R129>519,519,R129))+IF(K129=0,0,K129*N129),2) -> 377.08 | T129: =TRUNC((IF(K129=0,I129*N129,(I129-K129)*N129))+(IF(R129<519,0,R129-519)),2)+M129 -> 3428 | U129: =S129+T129 -> 3805.08 | Y129: =IF(N129>0.01,(T129-VLOOKUP(T129,quincenal,1))*VLOOKUP(T129,quincenal,3)+VLOOKUP(T129,quincenal,2)-VLOOKUP(T129,subquincenal,2),0) -> 143.783312 | Z129: =TRUNC(IF(Y129>0.01,Y129,0),2) -> 143.78 | AA129: =TRUNC(IF(Y129<0.01,-Y129,0),2) -> 0 | AB129: =U129-W129-X129-Z129+AA129 -> 3661.3 | AC129: =#REF! -> 
A130: 68 | D130: VACANTE (OPERADOR DE MAQUINARIA) | H130: OPERADOR DE MAQUINAS | I130: 0 | L130: 0 | M130: 0 | N130: 219.75 | O130: =TRUNC(N130*I130,2) -> 0 | P130: =TRUNC(N130*I130*0.04,2) -> 0 | Q130: =TRUNC(N130*0.07*I130,2) -> 0 | R130: =L130 -> 0 | S130: =TRUNC(Q130+P130+(IF(R130>519,519,R130))+IF(K130=0,0,K130*N130),2) -> 0 | T130: =TRUNC((IF(K130=0,I130*N130,(I130-K130)*N130))+(IF(R130<519,0,R130-519)),2)+M130 -> 0 | U130: =S130+T130 -> 0 | Z130: 0 | AA130: 0 | AB130: =U130-W130-X130-Z130+AA130 -> 0 | AC130: =#REF! -> 
A131: 70 | D131: ILLAN OCAMPO RUBEN | E131: IAOR | H131: ENCARGADO DE MANTENIMIENTO A VEHICULOS | I131: 15 | J131: TARJETA | L131: 0 | M131: 0 | N131: =4385/15 -> 292.3333333 | O131: 4385 | P131: 175.4 | Q131: 306.95 | R131: 0 | S131: 482.35 | T131: 4385 | U131: 4867.35 | X131: 0 | Y131: 413.297488 | Z131: 413.29 | AA131: 0 | AB131: 4454.06
A132: 70 | E132: FEGC520708TD3 | F132: FEGC520708HJCRMR08 | J132: TARJETA | L132: 0 | M132: 0 | N132: 152.41 | R132: 0 | S132: 0 | T132: 0 | U132: 0 | AB132: 0
A133: 71 | D133: MOJARRO BERUMEN ENRIQUE | H133: EMPEDRADOR | I133: 15 | J133: TARJETA | L133: 0 | M133: 0 | N133: =2866/15 -> 191.0666667 | O133: 2866 | P133: 114.64 | Q133: 200.62 | R133: 0 | S133: 315.26 | T133: 2866 | U133: 3181.26 | Y133: 62.387712 | Z133: 62.38 | AA133: 0 | AB133: 3118.88
A134: 72 | D134: FERREL ALCANTAR EDMUNDO | H134: EMPEDRADOR | I134: 15 | J134: TARJETA | L134: 0 | M134: 0 | N134: =2866/15 -> 191.0666667 | O134: 2866 | P134: 114.64 | Q134: 200.62 | R134: 0 | S134: 315.26 | T134: 2866 | U134: 3181.26 | Y134: 62.387712 | Z134: 62.38 | AA134: 0 | AB134: 3118.88
A135: 73 | H135: AUXILIAR GENERAL | I135: 0 | J135: TARJETA | L135: 0 | M135: 0 | N135: =2601/15 -> 173.4 | O135: 0 | P135: 0 | Q135: 0 | R135: 0 | S135: 0 | T135: 0 | U135: 0 | W135: 0 | AB135: 0
A136: 74 | D136: NAVARRO GUTIERREZ MOISES EDMUNDO | H136: AYUDANTE | I136: 14 | J136: TARJETA | L136: 0 | M136: 0 | N136: =2222/15 -> 148.1333333 | O136: 2073.86 | P136: 82.95 | Q136: 145.17 | R136: 0 | S136: 228.12 | T136: 2073.86 | U136: 2301.98 | Y136: -66.9908 | Z136: 0 | AA136: 66.99 | AB136: 2368.97
A137: 75 | D137: GALLEGOS RIVAS ADRIAN | H137: AYUDANTE | I137: 15 | J137: TARJETA | L137: 0 | M137: 0 | N137: =2222/15 -> 148.1333333 | O137: 2222 | P137: 88.88 | Q137: 155.54 | R137: 0 | S137: 244.42 | T137: 2222 | U137: 2466.42 | Y137: -37.079488 | Z137: 0 | AA137: 37.07 | AB137: 2503.49
A138: 76 | D138: RAMIREZ GARCIA J. JESUS | H138: AYUDANTE | I138: 15 | J138: TARJETA | L138: 0 | M138: 0 | N138: =2222/15 -> 148.1333333 | O138: 2222 | P138: 88.88 | Q138: 155.54 | R138: 0 | S138: 244.42 | T138: 2222 | U138: 2466.42 | Y138: -37.079488 | Z138: 0 | AA138: 37.07 | AB138: 2503.49
A139: 77 | D139: ORENDAIN BERNAL ROBERTO | H139: AYUDANTE | I139: 15 | J139: TARJETA | L139: 0 | M139: 0 | N139: =2222/15 -> 148.1333333 | O139: 2222 | P139: 88.88 | Q139: 155.54 | R139: 0 | S139: 244.42 | T139: 2222 | U139: 2466.42 | Y139: -37.079488 | Z139: 0 | AA139: 37.07 | AB139: 2503.49
A140: 78 | D140: OFICIAL | H140: OFICIAL | I140: 0 | J140: SOBRE | L140: 0 | M140: 0 | N140: 183.76 | O140: 0 | P140: 0 | Q140: 0 | R140: 0 | S140: 0 | T140: 0 | U140: 0 | Z140: 0 | AA140: 0 | AB140: 0
A141: 79 | D141: CHOFER | H141: CHOFER | I141: 0 | J141: SOBRE | L141: 0 | M141: 0 | N141: 219.75 | O141: 0 | P141: 0 | Q141: 0 | R141: 0 | S141: 0 | T141: 0 | U141: 0 | Z141: 0 | AA141: 0 | AB141: 0
A142: 78 | D142: GARCIA CISNEROS ARTURO | H142: ALMACENISTA | I142: 15 | J142: TARJETA | L142: 0 | M142: 0 | N142: =1989/15 -> 132.6 | O142: 1989 | P142: 79.56 | Q142: 139.23 | R142: 0 | S142: 218.79 | T142: 1989 | U142: 2207.79 | Y142: -72.42184 | Z142: 0 | AA142: 72.42 | AB142: 2280.21
A143: 79 | D143: BAILON FLORES ANSELMO | H143: AYUDANTE | I143: 15 | J143: TARJETA | L143: 0 | M143: 0 | N143: =1989/15 -> 132.6 | O143: 1989 | P143: 79.56 | Q143: 139.23 | R143: 0 | S143: 218.79 | T143: 1989 | U143: 2207.79 | Y143: -72.42184 | Z143: 0 | AA143: 72.42 | AB143: 2280.21
A144: 80 | D144: DAMIAN MARTINEZ FRANCISCO | H144: AYUDANTE | I144: 15 | J144: TARJETA | L144: 0 | M144: 0 | N144: =1989/15 -> 132.6 | O144: 1989 | P144: 79.56 | Q144: 139.23 | R144: 0 | S144: 218.79 | T144: 1989 | U144: 2207.79 | Y144: -72.42184 | Z144: 0 | AA144: 72.42 | AB144: 2280.21
A145: 81 | D145: GONZALEZ AZPEITIA ALVARO | H145: AYUDANTE | I145: 15 | J145: TARJETA | L145: 0 | M145: 0 | N145: =1989/15 -> 132.6 | O145: =TRUNC(N145*I145,2) -> 1989 | P145: =TRUNC(N145*I145*0.04,2) -> 79.56 | Q145: =TRUNC(N145*0.07*I145,2) -> 139.23 | R145: =L145 -> 0 | S145: =TRUNC(Q145+P145+(IF(R145>519,519,R145))+IF(K145=0,0,K145*N145),2) -> 218.79 | T145: =TRUNC((IF(K145=0,I145*N145,(I145-K145)*N145))+(IF(R145<519,0,R145-519)),2)+M145 -> 1989 | U145: =S145+T145 -> 2207.79 | Y145: =IF(N145>0.01,(T145-VLOOKUP(T145,quincenal,1))*VLOOKUP(T145,quincenal,3)+VLOOKUP(T145,quincenal,2)-VLOOKUP(T145,subquincenal,2),0) -> -72.42184 | Z145: =TRUNC(IF(Y145>0.01,Y145,0),2) -> 0 | AA145: =TRUNC(IF(Y145<0.01,-Y145,0),2) -> 72.42 | AB145: =U145-W145-X145-Z145+AA145 -> 2280.21
A146: 82 | D146: ARQUIETA VADILLO ARTURO | E146: AUVA551030FJ0 | F146: AUVA551030HJCRDR15 | H146: PINTOR GENERAL | I146: 15 | J146: SOBRE | L146: 0 | M146: 0 | N146: =4527/15 -> 301.8 | O146: =TRUNC(N146*I146,2) -> 4527 | P146: =TRUNC(N146*I146*0.04,2) -> 181.08 | Q146: =TRUNC(N146*0.07*I146,2) -> 316.89 | R146: =L146 -> 0 | S146: =TRUNC(Q146+P146+(IF(R146>519,519,R146))+IF(K146=0,0,K146*N146),2) -> 497.97 | T146: =TRUNC((IF(K146=0,I146*N146,(I146-K146)*N146))+(IF(R146<519,0,R146-519)),2)+M146 -> 4527 | U146: =S146+T146 -> 5024.97 | Y146: =IF(N146>0.01,(T146-VLOOKUP(T146,quincenal,1))*VLOOKUP(T146,quincenal,3)+VLOOKUP(T146,quincenal,2)-VLOOKUP(T146,subquincenal,2),0) -> 438.743888 | Z146: 438.74 | AA146: 0 | AB146: =U146-W146-X146-Z146+AA146 -> 4586.23
D147: ADMINISTRACION DE LOS SERVICIOS PUBLICOS MUNICIPALES | O147: =SUM(O129:O146) -> 34767.86 | P147: =SUM(P129:P146) -> 1390.71 | Q147: 2433.75 | R147: 0 | S147: 3824.46 | T147: 34767.86 | U147: 38592.32 | V147: 0 | W147: 0 | X147: 0 | Y147: 652.683488 | Z147: 1120.57 | AA147: 467.88 | AB147: 37939.63
D148: DIRECCION GENERAL DE OBRAS PUBLICAS
A149: 83 | B149: 4 | C149: 1 | D149: CASTELLANOS CORREA HIGINIO ERNESTO | H149: DIRECTOR DE OBRAS PÚBLICAS | I149: 15 | J149: TARJETA | L149: 0 | M149: 0 | N149: =6513/15 -> 434.2 | O149: =TRUNC(N149*I149,2) -> 6513 | P149: =TRUNC(N149*I149*0.04,2) -> 260.52 | Q149: =TRUNC(N149*0.07*I149,2) -> 455.91 | R149: =L149 -> 0 | S149: =TRUNC(Q149+P149+(IF(R149>519,519,R149))+IF(K149=0,0,K149*N149),2) -> 716.43 | T149: =TRUNC((IF(K149=0,I149*N149,(I149-K149)*N149))+(IF(R149<519,0,R149-519)),2)+M149 -> 6513 | U149: =S149+T149 -> 7229.43 | W149: 0 | X149: 0 | Y149: =IF(N149>0.01,(T149-VLOOKUP(T149,quincenal,1))*VLOOKUP(T149,quincenal,3)+VLOOKUP(T149,quincenal,2)-VLOOKUP(T149,subquincenal,2),0) -> 843.987624 | Z149: =TRUNC(IF(Y149>0.01,Y149,0),2) -> 843.98 | AA149: =TRUNC(IF(Y149<0.01,-Y149,0),2) -> 0 | AB149: =U149-W149-X149-Z149+AA149 -> 6385.45 | AC149: =#REF! -> 
A150: 84 | B150: 4 | C150: 1 | D150: FLORES IÑIGUEZ JUAN RAYMUNDO | E150: FOIJ8508313Z1 | F150: FOIJ850831HJCLXN07 | G150: 2007-01-01 | H150: SUB-DIRECTOR DESARROLLO URBANO | I150: 15 | J150: TARJETA | L150: 0 | M150: 0 | N150: =3741/15 -> 249.4 | O150: 3741 | P150: 149.64 | Q150: 261.87 | R150: 0 | S150: 411.51 | T150: 3741 | U150: 4152.51 | X150: 0 | Y150: 307.6484 | Z150: 307.64 | AA150: 0 | AB150: 3844.87 | AC150: =#REF! -> 
A151: 85 | B151: 4 | C151: 1 | D151: RENTERIA MENDEZ FRANCISCO | E151: REMF850816I26 | F151: REMF850816HJCNNR00 | G151: 2008-03-05 | H151: AUXILIAR DE DIRECCIÓN | I151: 15 | J151: TARJETA | L151: 0 | M151: 0 | N151: =4385/15 -> 292.3333333 | O151: 4385 | P151: 175.4 | Q151: 306.95 | R151: 0 | S151: 482.35 | T151: 4385 | U151: 4867.35 | X151: 0 | Y151: 413.297488 | Z151: 413.29 | AA151: 0 | AB151: 4454.06 | AC151: =#REF! -> 
A152: 86 | B152: 4 | C152: 1 | D152: FREGOSO MARTINEZ ISMAEL | E152: FEMI | H152: MAESTRO DE OBRA | I152: 15 | J152: TARJETA | L152: 0 | M152: 0 | N152: =3669/15 -> 244.6 | O152: 3669 | P152: 146.76 | Q152: 256.83 | R152: 0 | S152: 403.59 | T152: 3669 | U152: 4072.59 | X152: 0 | Y152: 296.1284 | Z152: 296.12 | AA152: 0 | AB152: 3776.47 | AC152: =#REF! -> 
A153: 88 | D153: RENTERIA LOPEZ JUAN CARLOS | H153: AUXILIAR DESARROLLO URBANO | I153: 15 | J153: TARJETA | L153: 0 | M153: 0 | N153: =2411.14/15 -> 160.7426667 | O153: =TRUNC(N153*I153,2) -> 2411.14 | P153: =TRUNC(N153*I153*0.04,2) -> 96.44 | Q153: =TRUNC(N153*0.07*I153,2) -> 168.77 | R153: =L153 -> 0 | S153: =TRUNC(Q153+P153+(IF(R153>519,519,R153))+IF(K153=0,0,K153*N153),2) -> 265.21 | T153: =TRUNC((IF(K153=0,I153*N153,(I153-K153)*N153))+(IF(R153<519,0,R153-519)),2)+M153 -> 2411.14 | U153: =S153+T153 -> 2676.35 | X153: 0 | Y153: =IF(N153>0.01,(T153-VLOOKUP(T153,quincenal,1))*VLOOKUP(T153,quincenal,3)+VLOOKUP(T153,quincenal,2)-VLOOKUP(T153,subquincenal,2),0) -> -2.101056 | Z153: =TRUNC(IF(Y153>0.01,Y153,0),2) -> 0 | AA153: =TRUNC(IF(Y153<0.01,-Y153,0),2) -> 2.1 | AB153: =U153-W153-X153-Z153+AA153 -> 2678.45 | AC153: =#REF! -> 
A154: 89 | B154: 4 | C154: 1 | D154: NOLASCO VALLE ARTURO | E154: NOVA | H154: CHOFER | I154: 15 | J154: TARJETA | L154: 0 | M154: 0 | N154: =2866/15 -> 191.0666667 | O154: 2866 | P154: 114.64 | Q154: 200.62 | R154: 0 | S154: 315.26 | T154: 2866 | U154: 3181.26 | W154: 0 | X154: 0 | Y154: 62.387712 | Z154: 62.38 | AA154: 0 | AB154: 3118.88 | AC154: =#REF! -> 
A155: 90 | B155: 4 | C155: 1 | E155: NADM490419 | F155: NADM490419HJCBLN01 | G155: 2007-01-01 | I155: 0 | J155: TARJETA | L155: 0 | M155: 0 | N155: =3016/15 -> 201.0666667 | O155: =TRUNC(N155*I155,2) -> 0 | P155: =TRUNC(N155*I155*0.04,2) -> 0 | Q155: =TRUNC(N155*0.07*I155,2) -> 0 | R155: =L155 -> 0 | S155: =TRUNC(Q155+P155+(IF(R155>519,519,R155))+IF(K155=0,0,K155*N155),2) -> 0 | T155: =TRUNC((IF(K155=0,I155*N155,(I155-K155)*N155))+(IF(R155<519,0,R155-519)),2)+M155 -> 0 | U155: =S155+T155 -> 0 | W155: 0 | X155: 0 | Y155: =IF(N155>0.01,(T155-VLOOKUP(T155,quincenal,1))*VLOOKUP(T155,quincenal,3)+VLOOKUP(T155,quincenal,2)-VLOOKUP(T155,subquincenal,2),0) ->  | Z155: 0 | AA155: 0 | AB155: =U155-W155-X155-Z155+AA155 -> 0 | AC155: =#REF! -> 
D156: =D148 -> DIRECCION GENERAL DE OBRAS PUBLICAS | O156: =SUM(O149:O155) -> 23585.14 | P156: =SUM(P149:P155) -> 943.4 | Q156: 1650.95 | R156: 0 | S156: 2594.35 | T156: 23585.14 | U156: 26179.49 | V156: 0 | W156: 0 | X156: 0 | Z156: 1923.41 | AA156: 2.1 | AB156: 24258.18
D158: DEPARTAMENTO DE CEMENTERIOS
A159: 91 | B159: 5 | C159: 2 | D159: RIVERA ORENDAIN ADALBERTO | E159: RIOA520619 | F159: RIOA520619HJCVRD05 | H159: ADMINISTRADOR DE CEMENTERIOS | I159: 15 | J159: TARJETA | L159: 0 | M159: 0 | N159: =2827/15 -> 188.4666667 | O159: =TRUNC(N159*I159,2) -> 2827 | P159: =TRUNC(N159*I159*0.04,2) -> 113.08 | Q159: =TRUNC(N159*0.07*I159,2) -> 197.89 | R159: =L159 -> 0 | S159: =TRUNC(Q159+P159+(IF(R159>519,519,R159))+IF(K159=0,0,K159*N159),2) -> 310.97 | T159: =TRUNC((IF(K159=0,I159*N159,(I159-K159)*N159))+(IF(R159<519,0,R159-519)),2)+M159 -> 2827 | U159: =S159+T159 -> 3137.97 | X159: 0 | Y159: =IF(N159>0.01,(T159-VLOOKUP(T159,quincenal,1))*VLOOKUP(T159,quincenal,3)+VLOOKUP(T159,quincenal,2)-VLOOKUP(T159,subquincenal,2),0) -> 58.144512 | Z159: =TRUNC(IF(Y159>0.01,Y159,0),2) -> 58.14 | AA159: =TRUNC(IF(Y159<0.01,-Y159,0),2) -> 0 | AB159: =U159-W159-X159-Z159+AA159 -> 3079.83 | AC159: =#REF! -> 
A160: 94 | D160: PROPONER O CAPTURAR | H160: AYUDANTE DEL DEPARTAMENTO DE CEMENTERIOS | I160: 0 | L160: 0 | M160: 0 | N160: 137.42 | O160: =TRUNC(N160*I160,2) -> 0 | P160: =TRUNC(N160*I160*0.04,2) -> 0 | Q160: =TRUNC(N160*0.07*I160,2) -> 0 | R160: =L160 -> 0 | S160: =TRUNC(Q160+P160+(IF(R160>519,519,R160))+IF(K160=0,0,K160*N160),2) -> 0 | T160: =TRUNC((IF(K160=0,I160*N160,(I160-K160)*N160))+(IF(R160<519,0,R160-519)),2)+M160 -> 0 | U160: =S160+T160 -> 0 | Z160: 0 | AA160: 0 | AB160: =U160-W160-X160-Z160+AA160 -> 0 | AC160: =#REF! -> 
A161: 95 | D161: PROPONER O CAPTURAR | H161: AYUDANTE DEL DEPARTAMENTO DE CEMENTERIOS | I161: 0 | L161: 0 | M161: 0 | N161: 137.42 | O161: =TRUNC(N161*I161,2) -> 0 | P161: =TRUNC(N161*I161*0.04,2) -> 0 | Q161: =TRUNC(N161*0.07*I161,2) -> 0 | R161: =L161 -> 0 | S161: =TRUNC(Q161+P161+(IF(R161>519,519,R161))+IF(K161=0,0,K161*N161),2) -> 0 | T161: =TRUNC((IF(K161=0,I161*N161,(I161-K161)*N161))+(IF(R161<519,0,R161-519)),2)+M161 -> 0 | U161: =S161+T161 -> 0 | Z161: 0 | AA161: 0 | AB161: =U161-W161-X161-Z161+AA161 -> 0 | AC161: =#REF! -> 
D162: DEPARTAMENTO DE CEMENTERIOS | O162: =SUM(O159:O161) -> 2827 | P162: =SUM(P159:P161) -> 113.08 | Q162: 197.89 | R162: 0 | S162: 310.97 | T162: 2827 | U162: 3137.97 | V162: 0 | W162: 0 | X162: 0 | Y162: 58.144512 | Z162: 58.14 | AA162: 0 | AB162: 3079.83
D164: DEPARTAMENTO DE RASTRO
A165: 92 | B165: 5 | C165: 3 | D165: LOPEZ VILLEGAS J. JESUS | E165: LOVJ470602UN7 | F165: LOVJ470602HJCPLS07 | H165: GUARDA RASTRO | I165: 15 | J165: TARJETA | L165: 0 | M165: 0 | N165: =2367/15 -> 157.8 | O165: =TRUNC(N165*I165,2) -> 2367 | P165: =TRUNC(N165*I165*0.04,2) -> 94.68 | Q165: =TRUNC(N165*0.07*I165,2) -> 165.69 | R165: =L165 -> 0 | S165: =TRUNC(Q165+P165+(IF(R165>519,519,R165))+IF(K165=0,0,K165*N165),2) -> 260.37 | T165: =TRUNC((IF(K165=0,I165*N165,(I165-K165)*N165))+(IF(R165<519,0,R165-519)),2)+M165 -> 2367 | U165: =S165+T165 -> 2627.37 | X165: 0 | Y165: =IF(N165>0.01,(T165-VLOOKUP(T165,quincenal,1))*VLOOKUP(T165,quincenal,3)+VLOOKUP(T165,quincenal,2)-VLOOKUP(T165,subquincenal,2),0) -> -6.903488 | Z165: =TRUNC(IF(Y165>0.01,Y165,0),2) -> 0 | AA165: =TRUNC(IF(Y165<0.01,-Y165,0),2) -> 6.9 | AB165: =U165-W165-X165-Z165+AA165 -> 2634.27 | AC165: =#REF! -> 
A166: 93 | B166: 5 | C166: 26 | D166: RAUL PARRA ROSAS | E166: PARR | H166: VETERINARIO | I166: 15 | J166: TARJETA | L166: 0 | M166: 0 | N166: =3669/15 -> 244.6 | O166: =TRUNC(N166*I166,2) -> 3669 | P166: =TRUNC(N166*I166*0.04,2) -> 146.76 | Q166: =TRUNC(N166*0.07*I166,2) -> 256.83 | R166: =L166 -> 0 | S166: =TRUNC(Q166+P166+(IF(R166>519,519,R166))+IF(K166=0,0,K166*N166),2) -> 403.59 | T166: =TRUNC((IF(K166=0,I166*N166,(I166-K166)*N166))+(IF(R166<519,0,R166-519)),2)+M166 -> 3669 | U166: =S166+T166 -> 4072.59 | X166: 0 | Y166: =IF(N166>0.01,(T166-VLOOKUP(T166,quincenal,1))*VLOOKUP(T166,quincenal,3)+VLOOKUP(T166,quincenal,2)-VLOOKUP(T166,subquincenal,2),0) -> 296.1284 | Z166: =TRUNC(IF(Y166>0.01,Y166,0),2) -> 296.12 | AA166: =TRUNC(IF(Y166<0.01,-Y166,0),2) -> 0 | AB166: =U166-W166-X166-Z166+AA166 -> 3776.47 | AC166: =#REF! -> 
A167: 94 | D167: MARTINEZ TORRES JUSTINO | E167: MATJ | H167: AUXILIAR DE MENTENIMIENTO | I167: 15 | J167: TARJETA | L167: 0 | M167: 0 | N167: =1591/15 -> 106.0666667 | O167: =TRUNC(N167*I167,2) -> 1591 | P167: =TRUNC(N167*I167*0.04,2) -> 63.64 | Q167: =TRUNC(N167*0.07*I167,2) -> 111.37 | R167: =L167 -> 0 | S167: =TRUNC(Q167+P167+(IF(R167>519,519,R167))+IF(K167=0,0,K167*N167),2) -> 175.01 | T167: =TRUNC((IF(K167=0,I167*N167,(I167-K167)*N167))+(IF(R167<519,0,R167-519)),2)+M167 -> 1591 | U167: =S167+T167 -> 1766.01 | X167: 0 | Y167: =IF(N167>0.01,(T167-VLOOKUP(T167,quincenal,1))*VLOOKUP(T167,quincenal,3)+VLOOKUP(T167,quincenal,2)-VLOOKUP(T167,subquincenal,2),0) -> -109.89384 | Z167: =TRUNC(IF(Y167>0.01,Y167,0),2) -> 0 | AA167: =TRUNC(IF(Y167<0.01,-Y167,0),2) -> 109.89 | AB167: =U167-W167-X167-Z167+AA167 -> 1875.9
D168: DEPARTAMENTO DE RASTRO | O168: =SUM(O165:O167) -> 7627 | P168: =SUM(P165:P167) -> 305.08 | Q168: 533.89 | R168: 0 | S168: 838.97 | T168: 7627 | U168: 8465.97 | V168: 0 | W168: 0 | X168: 0 | Y168: 179.331072 | Z168: 296.12 | AA168: 116.79 | AB168: 8286.64
D170: DEPARTAMENTO DE MERCADOS
A171: 95 | B171: 5 | C171: 5 | D171: GONZALEZ JARA J. REFUGIO JAVIER | E171: GOJR670808 | F171: GOJR670808HJCNRF13 | G171: 2007-03-17 | H171: VELADOR DEPTO DE MERCADOS | I171: 15 | J171: TARJETA | L171: 0 | M171: 0 | N171: =1577/15 -> 105.1333333 | O171: =TRUNC(N171*I171,2) -> 1577 | P171: =TRUNC(N171*I171*0.04,2) -> 63.08 | Q171: =TRUNC(N171*0.07*I171,2) -> 110.39 | R171: =L171 -> 0 | S171: =TRUNC(Q171+P171+(IF(R171>519,519,R171))+IF(K171=0,0,K171*N171),2) -> 173.47 | T171: =TRUNC((IF(K171=0,I171*N171,(I171-K171)*N171))+(IF(R171<519,0,R171-519)),2)+M171 -> 1577 | U171: =S171+T171 -> 1750.47 | X171: 0 | Y171: =IF(N171>0.01,(T171-VLOOKUP(T171,quincenal,1))*VLOOKUP(T171,quincenal,3)+VLOOKUP(T171,quincenal,2)-VLOOKUP(T171,subquincenal,2),0) -> -110.78984 | Z171: =TRUNC(IF(Y171>0.01,Y171,0),2) -> 0 | AA171: =TRUNC(IF(Y171<0.01,-Y171,0),2) -> 110.78 | AB171: =U171-W171-X171-Z171+AA171 -> 1861.25 | AC171: =#REF! -> 
A172: 96 | B172: 5 | C172: 5 | D172: MARTINEZ GONZALEZ JOSE DE JESUS | E172: MAGJ401015 | F172: MAGJ401015HJCRNC00 | G172: 2004-01-01 | H172: VELADOR DEPTO DE MERCADOS | I172: 15 | J172: TARJETA | L172: 0 | M172: 0 | N172: =1577/15 -> 105.1333333 | O172: =TRUNC(N172*I172,2) -> 1577 | P172: =TRUNC(N172*I172*0.04,2) -> 63.08 | Q172: =TRUNC(N172*0.07*I172,2) -> 110.39 | R172: =L172 -> 0 | S172: =TRUNC(Q172+P172+(IF(R172>519,519,R172))+IF(K172=0,0,K172*N172),2) -> 173.47 | T172: =TRUNC((IF(K172=0,I172*N172,(I172-K172)*N172))+(IF(R172<519,0,R172-519)),2)+M172 -> 1577 | U172: =S172+T172 -> 1750.47 | X172: 0 | Y172: =IF(N172>0.01,(T172-VLOOKUP(T172,quincenal,1))*VLOOKUP(T172,quincenal,3)+VLOOKUP(T172,quincenal,2)-VLOOKUP(T172,subquincenal,2),0) -> -110.78984 | Z172: =TRUNC(IF(Y172>0.01,Y172,0),2) -> 0 | AA172: =TRUNC(IF(Y172<0.01,-Y172,0),2) -> 110.78 | AB172: =U172-W172-X172-Z172+AA172 -> 1861.25 | AC172: =#REF! -> 
D173: DEPARTAMENTO DE MERCADOS | O173: =SUM(O171:O172) -> 3154 | P173: =SUM(P171:P172) -> 126.16 | Q173: 220.78 | R173: 0 | S173: 346.94 | T173: 3154 | U173: 3500.94 | V173: 0 | W173: 0 | X173: 0 | Y173: -221.57968 | Z173: 0 | AA173: 221.56 | AB173: 3722.5
D175: DEPARTAMENTO DE ASEO PUBLICO
A176: 97 | B176: 5 | C176: 7 | D176: HUERTA AGUILA BERNARDINO | E176: HUAB811011 | F176: HUAB810114HJCRGR01 | G176: 2007-02-01 | H176: RECOLECTOR ASEO PUBLICO | I176: 15 | J176: TARJETA | L176: 0 | M176: 0 | N176: =2222/15 -> 148.1333333 | O176: =TRUNC(N176*I176,2) -> 2222 | P176: =TRUNC(N176*I176*0.04,2) -> 88.88 | Q176: =TRUNC(N176*0.07*I176,2) -> 155.54 | R176: =L176 -> 0 | S176: =TRUNC(Q176+P176+(IF(R176>519,519,R176))+IF(K176=0,0,K176*N176),2) -> 244.42 | T176: =TRUNC((IF(K176=0,I176*N176,(I176-K176)*N176))+(IF(R176<519,0,R176-519)),2)+M176 -> 2222 | U176: =S176+T176 -> 2466.42 | X176: 0 | Y176: =IF(N176>0.01,(T176-VLOOKUP(T176,quincenal,1))*VLOOKUP(T176,quincenal,3)+VLOOKUP(T176,quincenal,2)-VLOOKUP(T176,subquincenal,2),0) -> -37.079488 | Z176: =TRUNC(IF(Y176>0.01,Y176,0),2) -> 0 | AA176: =TRUNC(IF(Y176<0.01,-Y176,0),2) -> 37.07 | AB176: =U176-W176-X176-Z176+AA176 -> 2503.49 | AC176: =#REF! -> 
A177: 98 | B177: 5 | C177: 7 | D177: GRACIA GOMEZ JAVIER | E177: GAGJ731114 | F177: GAGJ731114HJCRMV00 | G177: 2004-01-01 | H177: RECOLECTOR ASEO PUBLICO | I177: 15 | J177: TARJETA | L177: 0 | M177: 0 | N177: =2222/15 -> 148.1333333 | O177: 2222 | P177: 88.88 | Q177: 155.54 | R177: 0 | S177: 244.42 | T177: 2222 | U177: 2466.42 | X177: 0 | Y177: -37.079488 | Z177: 0 | AA177: 37.07 | AB177: 2503.49 | AC177: =#REF! -> 
A178: 99 | B178: 5 | C178: 7 | D178: FREGOZO ALVARADO ALFONSO | E178: FEAA650918 | F178: FEAA650818HJCRLL05 | G178: 2003-01-01 | H178: RECOLECTOR ASEO PUBLICO | I178: 15 | J178: TARJETA | L178: 0 | M178: 0 | N178: 148.1333333 | O178: 2222 | P178: 88.88 | Q178: 155.54 | R178: 0 | S178: 244.42 | T178: 2222 | U178: 2466.42 | X178: 0 | Y178: -37.079488 | Z178: 0 | AA178: 37.07 | AB178: 2503.49 | AC178: =#REF! -> 
A179: 100 | D179: TELLEZ GOMEZ VICENTE | H179: RECOLECTOR ASEO PUBLICO | I179: 15 | J179: TARJETA | L179: 0 | M179: 0 | N179: 148.1333333 | O179: =TRUNC(N179*I179,2) -> 2222 | P179: =TRUNC(N179*I179*0.04,2) -> 88.88 | Q179: =TRUNC(N179*0.07*I179,2) -> 155.54 | R179: =L179 -> 0 | S179: =TRUNC(Q179+P179+(IF(R179>519,519,R179))+IF(K179=0,0,K179*N179),2) -> 244.42 | T179: =TRUNC((IF(K179=0,I179*N179,(I179-K179)*N179))+(IF(R179<519,0,R179-519)),2)+M179 -> 2222 | U179: =S179+T179 -> 2466.42 | W179: 0 | X179: 0 | Y179: =IF(N179>0.01,(T179-VLOOKUP(T179,quincenal,1))*VLOOKUP(T179,quincenal,3)+VLOOKUP(T179,quincenal,2)-VLOOKUP(T179,subquincenal,2),0) -> -37.079488 | Z179: 0 | AA179: =TRUNC(IF(Y179<0.01,-Y179,0),2) -> 37.07 | AB179: =U179-W179-X179-Z179+AA179 -> 2503.49 | AE179: 2269.54
A180: 101 | B180: 5 | C180: 7 | D180: MARTINEZ VEJAR JUAN JOSE | E180: MAVJ710822 | F180: MAVJ710822HJCRJN04 | G180: 2004-01-01 | H180: CHOFER ASEO PUBLICO | I180: 15 | J180: TARJETA | L180: 0 | M180: 0 | N180: =2659/15 -> 177.2666667 | O180: =TRUNC(N180*I180,2) -> 2659 | P180: =TRUNC(N180*I180*0.04,2) -> 106.36 | Q180: =TRUNC(N180*0.07*I180,2) -> 186.13 | R180: =L180 -> 0 | S180: =TRUNC(Q180+P180+(IF(R180>519,519,R180))+IF(K180=0,0,K180*N180),2) -> 292.49 | T180: =TRUNC((IF(K180=0,I180*N180,(I180-K180)*N180))+(IF(R180<519,0,R180-519)),2)+M180 -> 2659 | U180: =S180+T180 -> 2951.49 | X180: 0 | Y180: =IF(N180>0.01,(T180-VLOOKUP(T180,quincenal,1))*VLOOKUP(T180,quincenal,3)+VLOOKUP(T180,quincenal,2)-VLOOKUP(T180,subquincenal,2),0) -> 39.866112 | Z180: 39.86 | AA180: =TRUNC(IF(Y180<0.01,-Y180,0),2) -> 0 | AB180: =U180-W180-X180-Z180+AA180 -> 2911.63 | AC180: =#REF! -> 
A181: 102 | B181: 5 | C181: 7 | D181: HERNANDEZ RICO JUAN JOSE | E181: MATM450918 | F181: MATM451028HJCRRG08 | G181: 2004-01-01 | H181: CHOFER ASEO PUBLICO | I181: 15 | J181: TARJETA | L181: 0 | M181: 0 | N181: =2745/15 -> 183 | O181: 2745 | P181: 109.8 | Q181: 192.15 | R181: 0 | S181: 301.95 | T181: 2745 | U181: 3046.95 | X181: 0 | Y181: 49.222912 | Z181: =TRUNC(IF(Y181>0.01,Y181,0),2) -> 49.22 | AA181: =TRUNC(IF(Y181<0.01,-Y181,0),2) -> 0 | AB181: 2997.73 | AC181: =#REF! -> 
A182: 103 | B182: 4 | C182: 1 | D182: DOMINGUEZ HECTOR FREDDI | E182: BECR460228 | F182: BECR460207HJCRHS07 | G182: 2004-01-01 | H182: CHOFER ASEO PUBLICO | I182: 15 | J182: TARJETA | L182: 0 | M182: 0 | N182: =2745/15 -> 183 | O182: 2745 | P182: 109.8 | Q182: 192.15 | R182: 0 | S182: 301.95 | T182: 2745 | U182: 3046.95 | X182: 0 | Y182: 49.222912 | Z182: =TRUNC(IF(Y182>0.01,Y182,0),2) -> 49.22 | AA182: =TRUNC(IF(Y182<0.01,-Y182,0),2) -> 0 | AB182: 2997.73
A183: 104 | B183: 5 | C183: 8 | D183: MENDEZ GARCIA MIGUEL ANGEL | E183: MEGM851109 | F183: MEGM851109HJCNRG03 | G183: 2009-01-16 | H183: AUX. DE LIMPIEZA GRAL. | I183: 15 | J183: TARJETA | L183: 0 | M183: 0 | N183: =2745/15 -> 183 | O183: 2745 | P183: 109.8 | Q183: 192.15 | R183: 0 | S183: 301.95 | T183: 2745 | U183: 3046.95 | X183: 0 | Y183: 49.222912 | Z183: 49.22 | AA183: 0 | AB183: 2997.73 | AC183: =#REF! ->  | AE183: 2711.33
A184: 105 | D184: VILLALOBOS OCEGUEDA MIGUEL | H184: RECOLECTOR ASEO PUBLICO | I184: 15 | J184: TARJETA | L184: 0 | M184: 0 | N184: =2222/15 -> 148.1333333 | O184: =TRUNC(N184*I184,2) -> 2222 | P184: =TRUNC(N184*I184*0.04,2) -> 88.88 | Q184: =TRUNC(N184*0.07*I184,2) -> 155.54 | R184: =L184 -> 0 | S184: =TRUNC(Q184+P184+(IF(R184>519,519,R184))+IF(K184=0,0,K184*N184),2) -> 244.42 | T184: =TRUNC((IF(K184=0,I184*N184,(I184-K184)*N184))+(IF(R184<519,0,R184-519)),2)+M184 -> 2222 | U184: =S184+T184 -> 2466.42 | X184: 0 | Y184: =IF(N184>0.01,(T184-VLOOKUP(T184,quincenal,1))*VLOOKUP(T184,quincenal,3)+VLOOKUP(T184,quincenal,2)-VLOOKUP(T184,subquincenal,2),0) -> -37.079488 | Z184: =TRUNC(IF(Y184>0.01,Y184,0),2) -> 0 | AA184: =TRUNC(IF(Y184<0.01,-Y184,0),2) -> 37.07 | AB184: =U184-W184-X184-Z184+AA184 -> 2503.49
A185: 106 | B185: 1 | C185: 6 | D185: CISNEROS VAZQUEZ RAMIRO | E185: CIVR540430 | F185: CIVR540430HJCSZM04 | G185: 2007-01-01 | H185: RECOLECTOR ASEO PUBLICO | I185: 15 | J185: TARJETA | L185: 0 | M185: 0 | N185: =2222/15 -> 148.1333333 | O185: 2222 | P185: 88.88 | Q185: 155.54 | R185: 0 | S185: 244.42 | T185: 2222 | U185: 2466.42 | X185: 0 | Y185: -37.079488 | Z185: 0 | AA185: 37.07 | AB185: 2503.49 | AC185: =#REF! ->  | AE185: 2269.54
D186: DEPARTAMENTO DE ASEO PUBLICO | O186: =SUM(O176:O185) -> 24226 | P186: =SUM(P176:P185) -> 969.04 | Q186: 1695.82 | R186: 0 | S186: 2664.86 | T186: 24226 | U186: 26890.86 | V186: 0 | W186: 0 | X186: 0 | Y186: -34.94208 | Z186: 187.52 | AA186: 222.42 | AB186: 26925.76
D188: DEPARTAMENTO DE PARQUES Y JARDINES
A189: 107 | B189: 5 | C189: 8 | D189: HUERTA CORTES RAMON | E189: HUCR450811 | F189: HUCR450831HJCRRM08 | G189: 2004-01-01 | H189: JARDINERO | I189: 15 | J189: TARJETA | L189: 0 | M189: 0 | N189: =2307/15 -> 153.8 | O189: =TRUNC(N189*I189,2) -> 2307 | P189: =TRUNC(N189*I189*0.04,2) -> 92.28 | Q189: =TRUNC(N189*0.07*I189,2) -> 161.49 | R189: =L189 -> 0 | S189: =TRUNC(Q189+P189+(IF(R189>519,519,R189))+IF(K189=0,0,K189*N189),2) -> 253.77 | T189: =TRUNC((IF(K189=0,I189*N189,(I189-K189)*N189))+(IF(R189<519,0,R189-519)),2)+M189 -> 2307 | U189: =S189+T189 -> 2560.77 | X189: 0 | Y189: =IF(N189>0.01,(T189-VLOOKUP(T189,quincenal,1))*VLOOKUP(T189,quincenal,3)+VLOOKUP(T189,quincenal,2)-VLOOKUP(T189,subquincenal,2),0) -> -27.831488 | Z189: =TRUNC(IF(Y189>0.01,Y189,0),2) -> 0 | AA189: =TRUNC(IF(Y189<0.01,-Y189,0),2) -> 27.83 | AB189: =U189-W189-X189-Z189+AA189 -> 2588.6 | AC189: =#REF! -> 
A190: 108 | B190: 5 | C190: 8 | D190: SILVA PINTO J ASUNCIÓN | E190: SIPA400815 | F190: SIPA400815HJCLNS02 | G190: 2004-01-01 | H190: JARDINERO | I190: 15 | J190: TARJETA | L190: 0 | M190: 0 | N190: =2222/15 -> 148.1333333 | O190: 2222 | P190: 88.88 | Q190: 155.54 | R190: 0 | S190: 244.42 | T190: 2222 | U190: 2466.42 | X190: 0 | Y190: -37.079488 | Z190: 0 | AA190: 37.07 | AB190: 2503.49 | AC190: =#REF! ->  | AE190: 2269.54
A191: 109 | D191: MILLAN GARCIA J. JESUS | H191: JARDINERO | I191: 15 | J191: TARJETA | L191: 0 | M191: 0 | N191: =2222/15 -> 148.1333333 | O191: 2222 | P191: 88.88 | Q191: 155.54 | R191: 0 | S191: 244.42 | T191: 2222 | U191: 2466.42 | X191: 0 | Y191: -37.079488 | Z191: 0 | AA191: 37.07 | AB191: 2503.49
A192: 110 | D192: BERNAL PRECIADO JUAN JOSE | H192: JARDINERO | I192: 15 | J192: TARJETA | L192: 0 | M192: 0 | N192: 148.1333333 | O192: 2222 | P192: 88.88 | Q192: 155.54 | R192: 0 | S192: 244.42 | T192: 2222 | U192: 2466.42 | W192: 0 | X192: 0 | Y192: -37.079488 | Z192: 0 | AA192: 37.07 | AB192: 2503.49 | AE192: 2269.54
A193: 111 | D193: MARTINEZ CRUZ JUAN | H193: JARDINERO | I193: 15 | J193: TARJETA | L193: 0 | M193: 0 | N193: 148.1333333 | O193: 2222 | P193: 88.88 | Q193: 155.54 | R193: 0 | S193: 244.42 | T193: 2222 | U193: 2466.42 | W193: 0 | X193: 0 | Y193: -37.079488 | Z193: 0 | AA193: 37.07 | AB193: 2503.49 | AE193: 2269.54
A194: 112 | D194: ACOSTA MURILLO JOAQUIN | H194: JARDINERO | I194: 15 | J194: TARJETA | L194: 0 | M194: 0 | N194: 148.1333333 | O194: 2222 | P194: 88.88 | Q194: 155.54 | R194: 0 | S194: 244.42 | T194: 2222 | U194: 2466.42 | X194: 0 | Y194: -37.079488 | Z194: 0 | AA194: 37.07 | AB194: 2503.49
A195: 0 | D195: VACANTE BARRENDERO | H195: BARRENDERO | I195: 0 | L195: 0 | M195: 0 | N195: 148.1333333 | O195: =TRUNC(N195*I195,2) -> 0 | P195: =TRUNC(N195*I195*0.04,2) -> 0 | Q195: =TRUNC(N195*0.07*I195,2) -> 0 | R195: =L195 -> 0 | S195: =TRUNC(Q195+P195+(IF(R195>519,519,R195))+IF(K195=0,0,K195*N195),2) -> 0 | T195: =TRUNC((IF(K195=0,I195*N195,(I195-K195)*N195))+(IF(R195<519,0,R195-519)),2)+M195 -> 0 | U195: =S195+T195 -> 0 | Z195: 0 | AA195: 0 | AB195: =U195-W195-X195-Z195+AA195 -> 0
A196: 0 | D196: VACANTE BARRENDERO | H196: BARRENDERO | I196: 0 | L196: 0 | M196: 0 | N196: 148.1333333 | O196: =TRUNC(N196*I196,2) -> 0 | P196: =TRUNC(N196*I196*0.04,2) -> 0 | Q196: =TRUNC(N196*0.07*I196,2) -> 0 | R196: =L196 -> 0 | S196: =TRUNC(Q196+P196+(IF(R196>519,519,R196))+IF(K196=0,0,K196*N196),2) -> 0 | T196: =TRUNC((IF(K196=0,I196*N196,(I196-K196)*N196))+(IF(R196<519,0,R196-519)),2)+M196 -> 0 | U196: =S196+T196 -> 0 | Z196: 0 | AA196: 0 | AB196: =U196-W196-X196-Z196+AA196 -> 0
A197: 0 | D197: VACANTE BARRENDERO | H197: BARRENDERO | I197: 0 | L197: 0 | M197: 0 | N197: 148.1333333 | O197: =TRUNC(N197*I197,2) -> 0 | P197: =TRUNC(N197*I197*0.04,2) -> 0 | Q197: =TRUNC(N197*0.07*I197,2) -> 0 | R197: =L197 -> 0 | S197: =TRUNC(Q197+P197+(IF(R197>519,519,R197))+IF(K197=0,0,K197*N197),2) -> 0 | T197: =TRUNC((IF(K197=0,I197*N197,(I197-K197)*N197))+(IF(R197<519,0,R197-519)),2)+M197 -> 0 | U197: =S197+T197 -> 0 | Z197: 0 | AA197: 0 | AB197: =U197-W197-X197-Z197+AA197 -> 0
A198: 113 | B198: 5 | C198: 8 | D198: REGALADO BAÑUELOS FRANCISCO | E198: REBF441211 | F198: REBF441211HJCGXR05 | G198: 2005-01-01 | H198: BARRENDERO | I198: 15 | J198: TARJETA | L198: 0 | M198: 0 | N198: 148.1333333 | O198: 2222 | P198: 88.88 | Q198: 155.54 | R198: 0 | S198: 244.42 | T198: 2222 | U198: 2466.42 | X198: 0 | Y198: -37.079488 | Z198: =TRUNC(IF(Y198>0.01,Y198,0),2) -> 0 | AA198: 37.07 | AB198: 2503.49 | AC198: =#REF! -> 
A199: 114 | D199: RUIZ MUÑOZ LUIS | E199: RUML530529GL7 | F199: RUML530529HJCZXS03 | G199: 2006-01-01 | H199: VIGILANTE | I199: 15 | J199: TARJETA | L199: 0 | M199: 0 | N199: =2118/15 -> 141.2 | O199: =TRUNC(N199*I199,2) -> 2118 | P199: =TRUNC(N199*I199*0.04,2) -> 84.72 | Q199: =TRUNC(N199*0.07*I199,2) -> 148.26 | R199: =L199 -> 0 | S199: =TRUNC(Q199+P199+(IF(R199>519,519,R199))+IF(K199=0,0,K199*N199),2) -> 232.98 | T199: =TRUNC((IF(K199=0,I199*N199,(I199-K199)*N199))+(IF(R199<519,0,R199-519)),2)+M199 -> 2118 | U199: =S199+T199 -> 2350.98 | W199: 0 | X199: 0 | Y199: =IF(N199>0.01,(T199-VLOOKUP(T199,quincenal,1))*VLOOKUP(T199,quincenal,3)+VLOOKUP(T199,quincenal,2)-VLOOKUP(T199,subquincenal,2),0) -> -62.344688 | Z199: =TRUNC(IF(Y199>0.01,Y199,0),2) -> 0 | AA199: =TRUNC(IF(Y199<0.01,-Y199,0),2) -> 62.34 | AB199: =U199-W199-X199-Z199+AA199 -> 2413.32
A200: 115 | B200: 5 | C200: 8 | D200: AYALA RODRIGUEZ MIGUEL ANGEL | E200: AARM690504 | F200: AARM690504HJCYDG04 | G200: 2004-01-01 | H200: PODADOR | I200: 15 | J200: TARJETA | L200: 0 | M200: 0 | N200: =2758/15 -> 183.8666667 | O200: 2758 | P200: 110.32 | Q200: 193.06 | R200: 0 | S200: 303.38 | T200: 2758 | U200: 3061.38 | X200: 0 | Y200: 50.637312 | Z200: =TRUNC(IF(Y200>0.01,Y200,0),2) -> 50.63 | AA200: 0 | AB200: 3010.75 | AC200: =#REF! ->  | AE200: =SUM(AE190:AE198) -> 6808.62
D201: DEPARTAMENTO DE PARQUES Y JARDINES | O201: =SUM(O189:O200) -> 20515 | P201: =SUM(P189:P200) -> 820.6 | Q201: 1436.05 | R201: 0 | S201: 2256.65 | T201: 20515 | U201: 22771.65 | V201: 0 | W201: 0 | X201: 0 | Y201: -262.015792 | Z201: 50.63 | AA201: 312.59 | AB201: 23033.61
D203: VERTEDERO MUNICIPAL
A204: 116 | B204: 5 | C204: 9 | E204: RUML530529GL7 | F204: RUML530529HJCZXS03 | G204: 2006-01-01 | J204: TARJETA | L204: 0 | M204: 0 | O204: =TRUNC(N204*I204,2) -> 0 | P204: =TRUNC(N204*I204*0.04,2) -> 0 | Q204: =TRUNC(N204*0.07*I204,2) -> 0 | R204: =L204 -> 0 | S204: =TRUNC(Q204+P204+(IF(R204>519,519,R204))+IF(K204=0,0,K204*N204),2) -> 0 | T204: =TRUNC((IF(K204=0,I204*N204,(I204-K204)*N204))+(IF(R204<519,0,R204-519)),2)+M204 -> 0 | U204: =S204+T204 -> 0 | W204: 0 | X204: 0 | Y204: =IF(N204>0.01,(T204-VLOOKUP(T204,quincenal,1))*VLOOKUP(T204,quincenal,3)+VLOOKUP(T204,quincenal,2)-VLOOKUP(T204,subquincenal,2),0) -> 0 | Z204: =TRUNC(IF(Y204>0.01,Y204,0),2) -> 0 | AA204: =TRUNC(IF(Y204<0.01,-Y204,0),2) -> 0 | AB204: =U204-W204-X204-Z204+AA204 -> 0 | AC204: =#REF! -> 
D205: VERTEDERO MUNICIPAL | O205: =SUM(O204) -> 0 | P205: 0 | Q205: 0 | R205: 0 | S205: 0 | T205: 0 | U205: 0 | V205: 0 | W205: 0 | X205: 0 | Y205: 0 | Z205: 0 | AA205: 0 | AB205: 0
D207: DEPARTAMENTO DE ALUMBRADO PUBLICO
A208: 117 | B208: 5 | C208: 10 | D208: RUIZ HERNANDEZ CELESTINO | E208: RUHC540519 | F208: RUHC540519HJCZRL03 | G208: 2004-01-01 | H208: JEFE DE ALUMBRADO PUBLICO | I208: 15 | J208: TARJETA | L208: 0 | M208: 0 | N208: =3428/15 -> 228.5333333 | O208: =TRUNC(N208*I208,2) -> 3428 | P208: =TRUNC(N208*I208*0.04,2) -> 137.12 | Q208: =TRUNC(N208*0.07*I208,2) -> 239.96 | R208: =L208 -> 0 | S208: =TRUNC(Q208+P208+(IF(R208>519,519,R208))+IF(K208=0,0,K208*N208),2) -> 377.08 | T208: =TRUNC((IF(K208=0,I208*N208,(I208-K208)*N208))+(IF(R208<519,0,R208-519)),2)+M208 -> 3428 | U208: =S208+T208 -> 3805.08 | X208: 0 | Y208: =IF(N208>0.01,(T208-VLOOKUP(T208,quincenal,1))*VLOOKUP(T208,quincenal,3)+VLOOKUP(T208,quincenal,2)-VLOOKUP(T208,subquincenal,2),0) -> 143.783312 | Z208: =TRUNC(IF(Y208>0.01,Y208,0),2) -> 143.78 | AA208: =TRUNC(IF(Y208<0.01,-Y208,0),2) -> 0 | AB208: =U208-W208-X208-Z208+AA208 -> 3661.3 | AC208: =#REF! -> 
A209: 118 | B209: 5 | C209: 10 | D209: ROJAS HUERTA CARLOS ALFREDO | H209: AUXILIARDE ALUMBRADO PUBLICO | I209: 15 | J209: TARJETA | L209: 0 | M209: 0 | N209: =2222/15 -> 148.1333333 | O209: =TRUNC(N209*I209,2) -> 2222 | P209: =TRUNC(N209*I209*0.04,2) -> 88.88 | Q209: =TRUNC(N209*0.07*I209,2) -> 155.54 | R209: =L209 -> 0 | S209: =TRUNC(Q209+P209+(IF(R209>519,519,R209))+IF(K209=0,0,K209*N209),2) -> 244.42 | T209: =TRUNC((IF(K209=0,I209*N209,(I209-K209)*N209))+(IF(R209<519,0,R209-519)),2)+M209 -> 2222 | U209: =S209+T209 -> 2466.42 | X209: 0 | Y209: =IF(N209>0.01,(T209-VLOOKUP(T209,quincenal,1))*VLOOKUP(T209,quincenal,3)+VLOOKUP(T209,quincenal,2)-VLOOKUP(T209,subquincenal,2),0) -> -37.079488 | Z209: =TRUNC(IF(Y209>0.01,Y209,0),2) -> 0 | AA209: =TRUNC(IF(Y209<0.01,-Y209,0),2) -> 37.07 | AB209: =U209-W209-X209-Z209+AA209 -> 2503.49
D210: DEPARTAMENTO DE ALUMBRADO PUBLICO | O210: =SUM(O208:O209) -> 5650 | P210: =SUM(P208:P209) -> 226 | Q210: 395.5 | R210: 0 | S210: 621.5 | T210: 5650 | U210: 6271.5 | V210: 0 | W210: 0 | X210: 0 | Y210: 106.703824 | Z210: 143.78 | AA210: 37.07 | AB210: 6164.79
D212: DEPARTAMENTO DE DEPORTES
A213: 119 | B213: 5 | C213: 14 | D213: NAVARRO MARTINEZ JUAN CARLOS | E213: NAMJ640808 | F213: NAMJ640808HJCVRN01 | G213: 2004-01-01 | H213: DIRECTOR DE DEPORTES | I213: 15 | J213: TARJETA | L213: 0 | M213: 0 | N213: =3428/15 -> 228.5333333 | O213: =TRUNC(N213*I213,2) -> 3428 | P213: =TRUNC(N213*I213*0.04,2) -> 137.12 | Q213: =TRUNC(N213*0.07*I213,2) -> 239.96 | R213: =L213 -> 0 | S213: =TRUNC(Q213+P213+(IF(R213>519,519,R213))+IF(K213=0,0,K213*N213),2) -> 377.08 | T213: =TRUNC((IF(K213=0,I213*N213,(I213-K213)*N213))+(IF(R213<519,0,R213-519)),2)+M213 -> 3428 | U213: =S213+T213 -> 3805.08 | X213: 0 | Y213: =IF(N213>0.01,(T213-VLOOKUP(T213,quincenal,1))*VLOOKUP(T213,quincenal,3)+VLOOKUP(T213,quincenal,2)-VLOOKUP(T213,subquincenal,2),0) -> 143.783312 | Z213: =TRUNC(IF(Y213>0.01,Y213,0),2) -> 143.78 | AA213: =TRUNC(IF(Y213<0.01,-Y213,0),2) -> 0 | AB213: =U213-W213-X213-Z213+AA213 -> 3661.3 | AC213: =#REF! -> 
A214: 120 | B214: 5 | C214: 14 | D214: ARANA ZAMORANO SALVADOR | H214: AUXILIAR DE MANTENIMIENTO DEL DEPTO. DE DEPORTES | I214: 15 | J214: TARJETA | L214: 0 | M214: 0 | N214: =1989/15 -> 132.6 | O214: 1989 | P214: 79.56 | Q214: 139.23 | R214: 0 | S214: 218.79 | T214: 1989 | U214: 2207.79 | X214: 0 | Y214: -72.42184 | Z214: 0 | AA214: 72.42 | AB214: 2280.21
A215: 121 | D215: ENRIQUEZ MARTINEZ CARLOS | H215: AUXILIAR DE MANTENIMIENTO DEL DEPTO. DE DEPORTES | I215: 15 | J215: TARJETA | L215: 0 | M215: 0 | N215: =1989/15 -> 132.6 | O215: 1989 | P215: 79.56 | Q215: 139.23 | R215: 0 | S215: 218.79 | T215: 1989 | U215: 2207.79 | X215: 0 | Y215: -72.42184 | Z215: 0 | AA215: 72.42 | AB215: 2280.21
A216: 122 | D216: OCHOA FLORES RAMON | H216: AUXILIAR DE MANTENIMIENTO DEL DEPTO. DE DEPORTES | I216: 15 | J216: TARJETA | L216: 0 | M216: 0 | N216: 132.6 | O216: 1989 | P216: 79.56 | Q216: 139.23 | R216: 0 | S216: 218.79 | T216: 1989 | U216: 2207.79 | X216: 0 | Y216: -72.42184 | Z216: 0 | AA216: 72.42 | AB216: 2280.21
A217: 123 | D217: GODINA ENRIQUEZ SILVIA | E217: GOES781103IAA | F217: GOES781103MJCDNL05 | G217: 2009-01-01 | H217: CONSERJE DOMO POLIDEPORTIVO | I217: 15 | J217: TARJETA | L217: 0 | M217: 0 | N217: =2106/15 -> 140.4 | O217: 2106 | P217: 84.24 | Q217: 147.42 | R217: 0 | S217: 231.66 | T217: 2106 | U217: 2337.66 | X217: 0 | Y217: -63.650288 | Z217: 0 | AA217: 63.65 | AB217: 2401.31 | AC217: =#REF! -> 
D218: MELCHOR PEREZ GRISELDA | H218: CONSERJE DOMO POLIDEPORTIVO | I218: 15 | J218: TARJETA | L218: 0 | M218: 0 | N218: =1550/15 -> 103.3333333 | O218: =TRUNC(N218*I218,2) -> 1550 | P218: =TRUNC(N218*I218*0.04,2) -> 62 | Q218: =TRUNC(N218*0.07*I218,2) -> 108.5 | R218: =L218 -> 0 | S218: =TRUNC(Q218+P218+(IF(R218>519,519,R218))+IF(K218=0,0,K218*N218),2) -> 170.5 | T218: =TRUNC((IF(K218=0,I218*N218,(I218-K218)*N218))+(IF(R218<519,0,R218-519)),2)+M218 -> 1550 | U218: =S218+T218 -> 1720.5 | X218: 0 | Y218: =IF(N218>0.01,(T218-VLOOKUP(T218,quincenal,1))*VLOOKUP(T218,quincenal,3)+VLOOKUP(T218,quincenal,2)-VLOOKUP(T218,subquincenal,2),0) -> -112.51784 | Z218: 0 | AA218: 112.51 | AB218: =U218-W218-X218-Z218+AA218 -> 1833.01
A219: 125 | B219: 5 | C219: 14 | D219: TRINIDAD ESQUIVEL ROCIO | H219: SECRETARIA DOMO POLIDEPORTIVO | I219: 15 | J219: TARJETA | L219: 0 | M219: 0 | N219: =2155/15 -> 143.6666667 | O219: 2155 | P219: 86.2 | Q219: 150.85 | R219: 0 | S219: 237.05 | T219: 2155 | U219: 2392.05 | Y219: -58.319088 | Z219: =TRUNC(IF(Y219>0.01,Y219,0),2) -> 0 | AA219: =TRUNC(IF(Y219<0.01,-Y219,0),2) -> 58.31 | AB219: 2450.36 | AC219: =#REF! -> 
A220: 126 | D220: GOMEZ ESTEVEZ JOSE DE JESUS | E220: FEGC520708TD3 | F220: FEGC520708HJCRMR08 | H220: VIGILANTE | I220: 15 | J220: TARJETA | L220: 0 | M220: 0 | N220: =2377/15 -> 158.4666667 | O220: 2377 | P220: 95.08 | Q220: 166.39 | R220: 0 | S220: 261.47 | T220: 2377 | U220: 2638.47 | Y220: -5.815488 | Z220: =TRUNC(IF(Y220>0.01,Y220,0),2) -> 0 | AA220: =TRUNC(IF(Y220<0.01,-Y220,0),2) -> 5.81 | AB220: 2644.28
D221: DEPARTAMENTO DE DEPORTES | O221: =SUM(O213:O220) -> 17583 | P221: =SUM(P213:P220) -> 703.32 | Q221: 1230.81 | R221: 0 | S221: 1934.13 | T221: 17583 | U221: 19517.13 | V221: 0 | W221: 0 | X221: 0 | Y221: -313.784912 | Z221: 143.78 | AA221: 457.54 | AB221: 19830.89
D223: SERVICIOS MEDICOS
A224: 127 | B224: 5 | C224: 15 | D224: MARTINEZ VALDIVIA FRANCISCO | E224: MAVF520525 | F224: MAVF520525HJCRLR02 | G224: 2004-01-01 | H224: MEDICO MUNICIPAL | I224: 15 | J224: TARJETA | L224: 0 | M224: 0 | N224: =3634/15 -> 242.2666667 | O224: =TRUNC(N224*I224,2) -> 3634 | P224: =TRUNC(N224*I224*0.04,2) -> 145.36 | Q224: =TRUNC(N224*0.07*I224,2) -> 254.38 | R224: =L224 -> 0 | S224: =TRUNC(Q224+P224+(IF(R224>519,519,R224))+IF(K224=0,0,K224*N224),2) -> 399.74 | T224: =TRUNC((IF(K224=0,I224*N224,(I224-K224)*N224))+(IF(R224<519,0,R224-519)),2)+M224 -> 3634 | U224: =S224+T224 -> 4033.74 | X224: 0 | Y224: =IF(N224>0.01,(T224-VLOOKUP(T224,quincenal,1))*VLOOKUP(T224,quincenal,3)+VLOOKUP(T224,quincenal,2)-VLOOKUP(T224,subquincenal,2),0) -> 183.896112 | Z224: =TRUNC(IF(Y224>0.01,Y224,0),2) -> 183.89 | AA224: =TRUNC(IF(Y224<0.01,-Y224,0),2) -> 0 | AB224: =U224-W224-X224-Z224+AA224 -> 3849.85 | AC224: =#REF! -> 
D225: SERVICIOS MEDICOS | O225: =SUM(O224) -> 3634 | P225: 145.36 | Q225: 254.38 | R225: 0 | S225: 399.74 | T225: 3634 | U225: 4033.74 | V225: 0 | W225: 0 | X225: 0 | Y225: 183.896112 | Z225: 183.89 | AA225: 0 | AB225: 3849.85
D227: INSPECCION AGRICOLA Y GANADERA
... 92 more rows
